DIRECTORATE,SECTION,DIVISON,VENDOR_NAME,VENDOR_SITE_ID,PAYMENT_DATE,VOUCHER_NO,AMOUNT,IRRECOVERABLE VATE,PURPOSE_OF_SPEND,PROCUREMENT_CLASSIFICATION
Adults Health and Housing,Capital,Capital,A HULL ELECTRICAL LTD,557445,03/12/2019,3363308,"2,448.23",0.00,N/A,N/A
Mental Health Support,Mental Health - Mental Health Support,Mental Health,AARONS SPECIALIST UNIT,1128474,03/12/2019,3360714,"1,197.00",0.00,N/A,N/A
Property Design & Maintenance,Building - Repairs & Maintenance,"Regeneration, Property & Housing",ABBEY GLASS DERBY LTD,187834,03/12/2019,3362952,508.42,0.00,N/A,N/A
Property Design & Maintenance,Building - Repairs & Maintenance,"Regeneration, Property & Housing",ABBEY GLASS DERBY LTD,187834,03/12/2019,3362917,518.00,0.00,N/A,N/A
Commissioning - Schools Block,Recoupment - Independent Special School Fees,Schools Block,ACORN CARE AND EDUCATION LTD,185515,03/12/2019,3363275,"13,626.66",0.00,N/A,N/A
Commissioning - Schools Block,Recoupment - Independent Special School Fees,Schools Block,ACORN CARE AND EDUCATION LTD,185515,03/12/2019,3363170,"16,166.67",0.00,N/A,N/A
Commissioning - Schools Block,Recoupment - Independent Special School Fees,Schools Block,ACORN CARE AND EDUCATION LTD,185515,03/12/2019,3363178,"16,166.67",0.00,N/A,N/A
Commissioning - Schools Block,Recoupment - Independent Special School Fees,Schools Block,ACORN CARE AND EDUCATION LTD,185515,03/12/2019,3363180,"16,167.67",0.00,N/A,N/A
Commissioning - Schools Block,Recoupment - Independent Special School Fees,Schools Block,ACORN CARE AND EDUCATION LTD,185515,03/12/2019,3363180,"16,166.67",0.00,N/A,N/A
Commissioning - Schools Block,Recoupment - Independent Special School Fees,Schools Block,ACORN CARE AND EDUCATION LTD,185515,03/12/2019,3363182,"16,166.67",0.00,N/A,N/A
Commissioning - Schools Block,Recoupment - Independent Special School Fees,Schools Block,ACORN CARE AND EDUCATION LTD,185515,03/12/2019,3363173,"16,166.67",0.00,N/A,N/A
Commissioning - Schools Block,Recoupment - Independent Special School Fees,Schools Block,ACORN CARE AND EDUCATION LTD,185515,03/12/2019,3363183,"16,166.67",0.00,N/A,N/A
Commissioning - Schools Block,Recoupment - Independent Special School Fees,Schools Block,ACORN CARE AND EDUCATION LTD,185515,03/12/2019,3363177,"7,333.33",0.00,N/A,N/A
Commissioning - Schools Block,Recoupment - Independent Special School Fees,Schools Block,ACORN CARE AND EDUCATION LTD,185515,03/12/2019,3363184,"16,166.67",0.00,N/A,N/A
Commissioning - Schools Block,Recoupment - Independent Special School Fees,Schools Block,ACORN CARE AND EDUCATION LTD,185515,03/12/2019,3363186,"14,227.00",0.00,N/A,N/A
Commissioning - Schools Block,Recoupment - Independent Special School Fees,Schools Block,ACORN CARE AND EDUCATION LTD,185515,03/12/2019,3363187,"16,166.67",0.00,N/A,N/A
Commissioning - Schools Block,Recoupment - Independent Special School Fees,Schools Block,ACORN CARE AND EDUCATION LTD,185515,03/12/2019,3363188,"14,227.00",0.00,N/A,N/A
Commissioning - Schools Block,Recoupment - Independent Special School Fees,Schools Block,ACORN CARE AND EDUCATION LTD,185515,03/12/2019,3363189,"21,631.00",0.00,N/A,N/A
Commissioning - Schools Block,Recoupment - Independent Special School Fees,Schools Block,ACORN CARE AND EDUCATION LTD,185515,03/12/2019,3363190,"16,166.67",0.00,N/A,N/A
Commissioning - Schools Block,Recoupment - Independent Special School Fees,Schools Block,ACORN CARE AND EDUCATION LTD,185515,03/12/2019,3363192,"7,500.00",0.00,N/A,N/A
Commissioning - Schools Block,Recoupment - Independent Special School Fees,Schools Block,ACORN CARE AND EDUCATION LTD,185515,03/12/2019,3363193,"16,166.67",0.00,N/A,N/A
Commissioning - Schools Block,Recoupment - Independent Special School Fees,Schools Block,ACORN CARE AND EDUCATION LTD,185515,03/12/2019,3363194,"2,000.00",0.00,N/A,N/A
Property Design & Maintenance,Building - Repairs & Maintenance,"Regeneration, Property & Housing",ADT FIRE AND SECURITY PLC,188268,03/12/2019,3362924,"6,579.98",0.00,N/A,N/A
Property Design & Maintenance,Building - Repairs & Maintenance,"Regeneration, Property & Housing",ADT FIRE AND SECURITY PLC,188268,03/12/2019,3362928,"1,572.83",0.00,N/A,N/A
Early Help & Children�s Safeguarding,Integrated and Safeguarding Services Locality 3/4,Non-Schools,ADVANCED CHILD CARE ASSESMENTS LTD,473478,03/12/2019,3360630,"1,976.35",0.00,N/A,N/A
Early Help & Children�s Safeguarding,Integrated Services Locality 1/5,Non-Schools,ADVANCED CHILD CARE ASSESMENTS LTD,473478,03/12/2019,3360630,"2,371.62",0.00,N/A,N/A
Regeneration Projects,Regeneration Projects,"Regeneration, Property & Housing",AECOM INFRASTRUCTURE AND ENVIRONMENT UK LTD,244421,03/12/2019,3352387,"19,956.54",0.00,Communities & Place,Engineering and Research and Technology
Neighbourhoods,Capital,Capital,AECOM LTD,787456,03/12/2019,3363488,"10,250.00",0.00,N/A,N/A
Highways & Engineering,Highways Maintenance & Street Lighting,"Strategic Partnerships, Planning & Streetpride",AGGREGATE INDUSTRIES UK LTD,117850,03/12/2019,3362570,758.69,0.00,Communities & Place,Building and Construction Machinery and
Highways & Engineering,Highways Maintenance & Street Lighting,"Strategic Partnerships, Planning & Streetpride",AGGREGATE INDUSTRIES UK LTD,117850,03/12/2019,3362571,500.35,0.00,Communities & Place,Building and Construction Machinery and
Highways & Engineering,Highways Maintenance & Street Lighting,"Strategic Partnerships, Planning & Streetpride",AGGREGATE INDUSTRIES UK LTD,117850,03/12/2019,3362606,"1,633.91",0.00,Communities & Place,Building and Construction Machinery and
Highways & Engineering,Highways Maintenance & Street Lighting,"Strategic Partnerships, Planning & Streetpride",AGGREGATE INDUSTRIES UK LTD,117850,03/12/2019,3362607,521.38,0.00,Communities & Place,Building and Construction Machinery and
Highways & Engineering,Highways Maintenance & Street Lighting,"Strategic Partnerships, Planning & Streetpride",AGGREGATE INDUSTRIES UK LTD,117850,03/12/2019,3362608,854.72,0.00,Communities & Place,Building and Construction Machinery and
Highways & Engineering,Highways Maintenance & Street Lighting,"Strategic Partnerships, Planning & Streetpride",AGGREGATE INDUSTRIES UK LTD,117850,03/12/2019,3362613,690.97,0.00,Communities & Place,Building and Construction Machinery and
Highways & Engineering,Highways Maintenance & Street Lighting,"Strategic Partnerships, Planning & Streetpride",AGGREGATE INDUSTRIES UK LTD,117850,03/12/2019,3363216,743.18,0.00,Communities & Place,Building and Construction Machinery and
Highways & Engineering,Highways Maintenance & Street Lighting,"Strategic Partnerships, Planning & Streetpride",AGGREGATE INDUSTRIES UK LTD,117850,03/12/2019,3363219,733.00,0.00,Communities & Place,Building and Construction Machinery and
Highways & Engineering,Highways Maintenance & Street Lighting,"Strategic Partnerships, Planning & Streetpride",AGGREGATE INDUSTRIES UK LTD,117850,03/12/2019,3363220,700.93,0.00,Communities & Place,Building and Construction Machinery and
Early Help & Children�s Safeguarding,Children In Care,Non-Schools,ALDI STORES LIMITED,1029494,03/12/2019,3363077,"1,500.00",0.00,N/A,N/A
Early Help & Children�s Safeguarding,Children In Care,Non-Schools,ALDI STORES LIMITED,1029494,03/12/2019,3363081,"1,500.00",0.00,N/A,N/A
Non Delegated Schools Budget,Non Delegated School Expenditure,Schools Block,ALLESTREE WOODLANDS SCHOOL,125376,03/12/2019,3361252,630.00,0.00,N/A,N/A
Integrated Services,Agency Placements,Non-Schools,ALLIANCE FOSTER CARE,265,03/12/2019,3362508,"4,004.46",0.00,People Services - Children & Young People,Politics and Civic Affairs Services
Integrated Services,Agency Placements,Non-Schools,ALLIANCE FOSTER CARE,265,03/12/2019,3362509,"2,807.97",0.00,People Services - Children & Young People,Politics and Civic Affairs Services
Integrated Services,Agency Placements,Non-Schools,ALLIANCE FOSTER CARE,265,03/12/2019,3362526,"3,494.01",0.00,People Services - Children & Young People,Politics and Civic Affairs Services
Integrated Services,Agency Placements,Non-Schools,ALLIANCE FOSTER CARE,265,03/12/2019,3363570,"2,583.53",0.00,People Services - Children & Young People,Politics and Civic Affairs Services
Property Design & Maintenance,Building - Repairs & Maintenance,"Regeneration, Property & Housing",ALPHEUS ENVIRONMENTAL LTD,948472,03/12/2019,3362925,535.59,0.00,N/A,N/A
Property Design & Maintenance,Building - Repairs & Maintenance,"Regeneration, Property & Housing",ALPHEUS ENVIRONMENTAL LTD,948472,03/12/2019,3362926,"8,726.50",0.00,N/A,N/A
Highways & Engineering,Highways Maintenance & Street Lighting,"Strategic Partnerships, Planning & Streetpride",AMA SUPPLIES LTD,285,03/12/2019,3362456,645.56,0.00,Communities & Place,Apparel and Luggage and Personal Care Pr
Integrated Services,Agency Placements,Non-Schools,ANCHOR FOSTER CARE,537480,03/12/2019,3362681,"6,309.74",0.00,N/A,N/A
Integrated Services,Agency Placements,Non-Schools,ANCHOR FOSTER CARE,537480,03/12/2019,3362546,"1,424.78",0.00,N/A,N/A
Integrated Services,Agency Placements,Non-Schools,ANGLIA FOSTERING AGENCY LTD,872462,03/12/2019,3362642,"3,369.39",0.00,N/A,N/A
Integrated Services,Agency Placements,Non-Schools,ANGLIA FOSTERING AGENCY LTD,872462,03/12/2019,3362649,"3,443.17",0.00,N/A,N/A
Neighbourhoods,Capital,Capital,APEX HEIGHT SAFETY LIMITED,891484,03/12/2019,3362940,"1,950.00",0.00,N/A,N/A
Non Delegated Schools Budget,Non Delegated School Expenditure,Schools Block,ARCHWAY LEARNING TRUST,748488,03/12/2019,3361228,"1,200.00",0.00,N/A,N/A
Corporate,Treasury Management,Corporate,ARLINGCLOSE LTD,1081484,03/12/2019,3360628,"19,494.00",0.00,N/A,N/A
Learning & Inclusion,Adult Learning - SFA,Non-Schools,ARRIVA MIDLANDS LTD,864451,03/12/2019,3363575,513.00,0.00,N/A,N/A
Early Help & Children�s Safeguarding,Integrated and Safeguarding Services Locality 1/5,Non-Schools,ARRIVA MIDLANDS LTD,864451,03/12/2019,3362720,"1,280.00",0.00,N/A,N/A
Traffic & Transportation,Traffic & Transportation (inc Integrated Pass Transport),"Strategic Partnerships, Planning & Streetpride",ARRIVA MIDLANDS LTD,864451,03/12/2019,3363120,"1,653.54",0.00,N/A,N/A
Libraries,Libraries,"Leisure, Culture and Tourism",ARROW SPECIALISED TRANSPORT LIMITED,1141493,03/12/2019,3363460,"3,133.20",0.00,N/A,N/A
Libraries,Libraries,"Leisure, Culture and Tourism",ASKEWS AND HOLTS LIBRARY SERVICES LTD,876447,03/12/2019,3361189,"2,423.61",0.00,N/A,N/A
Leisure,Leisure,"Leisure, Culture and Tourism",ATLOW CONTRACTING LTD,423402,03/12/2019,3362744,"1,831.00",0.00,Communities & Place,Environmental Services
Neighbourhoods,Capital,Capital,BALFOUR BEATTY LIVING PLACES LTD,1009468,03/12/2019,3360393,943.35,0.00,N/A,N/A
Integrated Services,Agency Placements,Non-Schools,BANYA FAMILY PLACEMENT AGENCY LTD,175346,03/12/2019,3359739,"3,100.00",0.00,People Services - Children & Young People,Politics and Civic Affairs Services
Culture & Business Development,Culture & Business Development,"Leisure, Culture and Tourism",BAUER RADIO LTD,707450,03/12/2019,3363589,"1,500.00",0.00,N/A,N/A
Non Delegated Schools Budget,Non Delegated School Expenditure,Schools Block,BLIDWORTH OAKS PRIMARY,815448,03/12/2019,3361243,"1,556.00",0.00,N/A,N/A
Integrated Services,Agency Placements,Non-Schools,BLUE MOUNTAIN HOMES LTD,8344,03/12/2019,3362519,"16,926.00",0.00,People Services - Children & Young People,Politics and Civic Affairs Services
Social Care Activities,Mental Health - Social Care Activities,Mental Health,BROWNE JACOBSON LLP,143376,03/12/2019,3361125,"1,164.50",0.00,People Services - Adults and Health,Management and Business Professionals an
Highways & Engineering,Highways Maintenance & Street Lighting,"Strategic Partnerships, Planning & Streetpride",BUILDBASE LTD,424,03/12/2019,3357706,550.00,0.00,Communities & Place,Structures and Building and Construction
Physical Support,Community Support - Physical Support,Community Support,BWA HEALTH AND CARE SERVICE LTD,1089474,03/12/2019,3362342,"1,366.00",0.00,N/A,N/A
Physical Support,Community Support - Physical Support,Community Support,BWA HEALTH AND CARE SERVICE LTD,1089474,03/12/2019,3362343,"1,483.76",0.00,N/A,N/A
Physical Support,Community Support - Physical Support,Community Support,BWA HEALTH AND CARE SERVICE LTD,1089474,03/12/2019,3362031,"1,199.16",0.00,N/A,N/A
Physical Support,Community Support - Physical Support,Community Support,BWA HEALTH AND CARE SERVICE LTD,1089474,03/12/2019,3362397,"1,066.57",0.00,N/A,N/A
Physical Support,Community Support - Physical Support,Community Support,BWA HEALTH AND CARE SERVICE LTD,1089474,03/12/2019,3362081,"1,066.57",0.00,N/A,N/A
Physical Support,Community Support - Physical Support,Community Support,BWA HEALTH AND CARE SERVICE LTD,1089474,03/12/2019,3362288,"1,092.20",0.00,N/A,N/A
Physical Support,Community Support - Physical Support,Community Support,BWA HEALTH AND CARE SERVICE LTD,1089474,03/12/2019,3362289,"1,199.16",0.00,N/A,N/A
Physical Support,Community Support - Physical Support,Community Support,BWA HEALTH AND CARE SERVICE LTD,1089474,03/12/2019,3362127,"1,014.30",0.00,N/A,N/A
Support with Memory and Cognition,Community Support - Support with Memory and Cognition,Community Support,BWA HEALTH AND CARE SERVICE LTD,1089474,03/12/2019,3362085,527.84,0.00,N/A,N/A
Information Systems Support,Information Systems Support,Digital Services,BYTES SOFTWARE SERVICES LTD,144360,03/12/2019,3361119,"2,189.88",0.00,Organisation & Governance,Information Technology Broadcasting and
Integrated Services,Agency Placements,Non-Schools,CALDECOTT FOSTERING LTD,216392,03/12/2019,3362627,"4,428.66",0.00,People Services - Children & Young People,Politics and Civic Affairs Services
Integrated Services,Agency Placements,Non-Schools,CALDECOTT FOSTERING LTD,216392,03/12/2019,3362634,"5,314.33",0.00,People Services - Children & Young People,Politics and Civic Affairs Services
Integrated Services,Agency Placements,Non-Schools,CALDECOTT FOSTERING LTD,216392,03/12/2019,3362635,"4,871.43",0.00,People Services - Children & Young People,Politics and Civic Affairs Services
Integrated Services,Agency Placements,Non-Schools,CAPSTONE FOSTER CARE,125689,03/12/2019,3362632,"3,428.60",0.00,People Services - Children & Young People,Politics and Civic Affairs Services
Integrated Services,Agency Placements,Non-Schools,CAPSTONE FOSTER CARE,125689,03/12/2019,3362637,"3,337.17",0.00,People Services - Children & Young People,Politics and Civic Affairs Services
Integrated Services,Agency Placements,Non-Schools,CAPSTONE FOSTER CARE,125689,03/12/2019,3362639,"3,292.82",0.00,People Services - Children & Young People,Politics and Civic Affairs Services
Integrated Services,Agency Placements,Non-Schools,CAPSTONE FOSTER CARE,125689,03/12/2019,3362640,"3,535.68",0.00,People Services - Children & Young People,Politics and Civic Affairs Services
Integrated Commissioning,Integrated Commissioning,Commissioning,CARE ANALYTICS UK LTD,933497,03/12/2019,3358857,"3,750.00",0.00,N/A,N/A
Early Help & Children�s Safeguarding,Integrated and Safeguarding Services Locality 2,Non-Schools,CARTER BROWN THE EXPERT SERVICE LTD,1112487,03/12/2019,3361180,"1,684.80",0.00,N/A,N/A
"Information, Computing & Technology","Information, Computing & Technology",Digital Services,CDW LTD,465403,03/12/2019,3334495,"3,959.11",0.00,Organisation & Governance,Information Technology Broadcasting and
Chief Executives,Capital,Capital,CDW LTD,465403,03/12/2019,3334495,"13,886.75",0.00,ICT Stabilisation - Hardware Renewal,Information Technology Broadcasting and
Chief Executives,Capital,Capital,CDW LTD,465403,03/12/2019,3334495,"328,646.34",0.00,ICT Stabilisation - Hardware Renewal,Information Technology Broadcasting and
Chief Executives,Capital,Capital,CDW LTD,465403,03/12/2019,3360403,554.82,0.00,N/A,N/A
Integrated Services,Agency Placements,Non-Schools,COMPASS FOSTERING CENTRAL LTD,194367,03/12/2019,3362555,"3,162.00",0.00,People Services - Children & Young People,Politics and Civic Affairs Services
Integrated Services,Agency Placements,Non-Schools,COMPASS FOSTERING CENTRAL LTD,194367,03/12/2019,3362646,"1,521.22",0.00,People Services - Children & Young People,Politics and Civic Affairs Services
Integrated Services,Agency Placements,Non-Schools,COMPASS FOSTERING CENTRAL LTD,194367,03/12/2019,3362545,"4,755.00",0.00,People Services - Children & Young People,Politics and Civic Affairs Services
Integrated Services,Agency Placements,Non-Schools,COMPASS FOSTERING CENTRAL LTD,194367,03/12/2019,3362550,"3,162.00",0.00,People Services - Children & Young People,Politics and Civic Affairs Services
General,Stores Road Depot & Fleet Management,"Strategic Partnerships, Planning & Streetpride",COUNTY BATTERY SERVICES LTD,1250,03/12/2019,3361114,506.76,0.00,Communities & Place,Power Generation and Distribution Machin
Learning & Inclusion,Adult Learning - SFA,Non-Schools,CPCAB,201401,03/12/2019,3363283,"1,336.00",0.00,People Services - Children & Young People,Education and Training Services
Learning & Inclusion,Adult Learning - SFA,Non-Schools,CPCAB,201401,03/12/2019,3363284,"2,366.00",0.00,People Services - Children & Young People,Education and Training Services
Learning & Inclusion,Adult Learning - SFA,Non-Schools,CPCAB,201401,03/12/2019,3363285,"3,674.00",0.00,People Services - Children & Young People,Education and Training Services
Non Delegated Schools Budget,Non Delegated School Expenditure,Schools Block,CREATIVE EDUCATION TRUST,1177468,03/12/2019,3361224,630.00,0.00,N/A,N/A
Learning Disability Support,Transitions and Ordinary Lives - Learning Disability Support,Transitions and Ordinary Lives,CREATIVE SUPPORT LTD,1026475,03/12/2019,3362195,"6,708.52",0.00,N/A,N/A
Learning Disability Support,Transitions and Ordinary Lives - Learning Disability Support,Transitions and Ordinary Lives,CREATIVE SUPPORT LTD,1026475,03/12/2019,3362348,"6,525.80",0.00,N/A,N/A
Learning Disability Support,Transitions and Ordinary Lives - Learning Disability Support,Transitions and Ordinary Lives,CREATIVE SUPPORT LTD,1026475,03/12/2019,3362036,"3,262.90",0.00,N/A,N/A
Learning Disability Support,Transitions and Ordinary Lives - Learning Disability Support,Transitions and Ordinary Lives,CREATIVE SUPPORT LTD,1026475,03/12/2019,3362241,"1,677.13",0.00,N/A,N/A
Learning Disability Support,Transitions and Ordinary Lives - Learning Disability Support,Transitions and Ordinary Lives,CREATIVE SUPPORT LTD,1026475,03/12/2019,3362242,"6,525.80",0.00,N/A,N/A
Learning Disability Support,Transitions and Ordinary Lives - Learning Disability Support,Transitions and Ordinary Lives,CREATIVE SUPPORT LTD,1026475,03/12/2019,3362086,"6,708.52",0.00,N/A,N/A
Learning Disability Support,Transitions and Ordinary Lives - Learning Disability Support,Transitions and Ordinary Lives,CREATIVE SUPPORT LTD,1026475,03/12/2019,3362295,"6,525.80",0.00,N/A,N/A
Learning Disability Support,Transitions and Ordinary Lives - Learning Disability Support,Transitions and Ordinary Lives,CREATIVE SUPPORT LTD,1026475,03/12/2019,3362296,"6,708.52",0.00,N/A,N/A
Learning Disability Support,Transitions and Ordinary Lives - Learning Disability Support,Transitions and Ordinary Lives,CREATIVE SUPPORT LTD,1026475,03/12/2019,3362297,"6,708.52",0.00,N/A,N/A
Learning Disability Support,Transitions and Ordinary Lives - Learning Disability Support,Transitions and Ordinary Lives,CREATIVE SUPPORT LTD,1026475,03/12/2019,3362131,"3,262.90",0.00,N/A,N/A
Learning Disability Support,Transitions and Ordinary Lives - Learning Disability Support,Transitions and Ordinary Lives,CREATIVE SUPPORT LTD,1026475,03/12/2019,3362135,"6,708.52",0.00,N/A,N/A
Traffic & Transportation,Traffic & Transportation (inc Integrated Pass Transport),"Strategic Partnerships, Planning & Streetpride",CROWN CARS Derby LTD,112999,03/12/2019,3362022,"2,755.00",0.00,N/A,N/A
Benefits and Exchequer Services,TSC & Revenue Collection,Finance,DATATANK LTD,553448,03/12/2019,3363465,"7,500.00",0.00,N/A,N/A
Non Delegated Schools Budget,Non Delegated School Expenditure,Schools Block,DELTA ROW CUR,727452,03/12/2019,3361261,"1,207.00",0.00,N/A,N/A
Strategic Housing,Housing and Advice,"Regeneration, Property & Housing",DERBY GUESTHOUSE LTD,255426,03/12/2019,3363267,560.00,0.00,N/A,N/A
Strategic Housing,Housing and Advice,"Regeneration, Property & Housing",DERBY GUESTHOUSE LTD,255426,03/12/2019,3363100,560.00,0.00,N/A,N/A
Strategic Housing,Housing and Advice,"Regeneration, Property & Housing",DERBY GUESTHOUSE LTD,255426,03/12/2019,3363104,560.00,0.00,N/A,N/A
Strategic Housing,Housing and Advice,"Regeneration, Property & Housing",DERBY GUESTHOUSE LTD,255426,03/12/2019,3363106,"1,540.00",0.00,N/A,N/A
Strategic Housing,Housing and Advice,"Regeneration, Property & Housing",DERBY GUESTHOUSE LTD,255426,03/12/2019,3363107,"1,540.00",0.00,N/A,N/A
Strategic Housing,Housing and Advice,"Regeneration, Property & Housing",DERBY GUESTHOUSE LTD,255426,03/12/2019,3363108,560.00,0.00,N/A,N/A
Strategic Housing,Housing and Advice,"Regeneration, Property & Housing",DERBY GUESTHOUSE LTD,255426,03/12/2019,3363110,840.00,0.00,N/A,N/A
Strategic Housing,Housing and Advice,"Regeneration, Property & Housing",DERBY GUESTHOUSE LTD,255426,03/12/2019,3363111,560.00,0.00,N/A,N/A
Strategic Housing,Housing and Advice,"Regeneration, Property & Housing",DERBY GUESTHOUSE LTD,255426,03/12/2019,3363112,840.00,0.00,N/A,N/A
Strategic Housing,Housing and Advice,"Regeneration, Property & Housing",DERBY GUESTHOUSE LTD,255426,03/12/2019,3363113,560.00,0.00,N/A,N/A
Housing Revenue Account,Housing Revenue Account,"Regeneration, Property & Housing",DERBY HOMES LTD,1175,03/12/2019,3249562,"16,710,000.00",0.00,Communities & Place,Travel and Food and Lodging and Entertai
Housing Revenue Account,Housing Revenue Account,"Regeneration, Property & Housing",DERBY HOMES LTD,1175,03/12/2019,3249562,"10,312,000.00",0.00,Communities & Place,Travel and Food and Lodging and Entertai
Retained Housing Revenue Account,Retained Housing Revenue Account,"Regeneration, Property & Housing",DERBY HOMES LTD,1175,03/12/2019,3249562,"29,976.00",0.00,Communities & Place,Travel and Food and Lodging and Entertai
Retained Housing Revenue Account,Retained Housing Revenue Account,"Regeneration, Property & Housing",DERBY HOMES LTD,1175,03/12/2019,3249562,"52,885.00",0.00,Communities & Place,Travel and Food and Lodging and Entertai
Retained Housing Revenue Account,Retained Housing Revenue Account,"Regeneration, Property & Housing",DERBY HOMES LTD,1175,03/12/2019,3249562,"22,986.00",0.00,Communities & Place,Travel and Food and Lodging and Entertai
Retained Housing Revenue Account,Retained Housing Revenue Account,"Regeneration, Property & Housing",DERBY HOMES LTD,1175,03/12/2019,3249562,"190,153.00",0.00,Communities & Place,Travel and Food and Lodging and Entertai
Retained Housing Revenue Account,Retained Housing Revenue Account,"Regeneration, Property & Housing",DERBY HOMES LTD,1175,03/12/2019,3249562,"965,399.00",0.00,Communities & Place,Travel and Food and Lodging and Entertai
Retained Housing Revenue Account,Retained Housing Revenue Account,"Regeneration, Property & Housing",DERBY HOMES LTD,1175,03/12/2019,3249562,"309,601.00",0.00,Communities & Place,Travel and Food and Lodging and Entertai
Non Delegated Schools Budget,Non Delegated School Expenditure,Schools Block,DERBY PRIDE ACADEMY,144370,03/12/2019,3361238,763.00,0.00,N/A,N/A
Integrated Services,Integrated Disabled Children's Service,Non-Schools,DERBY TEACHING HOSPITALS NHS FOUNDATION TRUST,1177,03/12/2019,3351589,"1,200.00",0.00,People Services - Children & Young People,Education and Training Services
Physical Support,Community Support - Physical Support,Community Support,DERBYSHIRE CARE SERVICES,388459,03/12/2019,3362160,553.68,0.00,N/A,N/A
Physical Support,Community Support - Physical Support,Community Support,DERBYSHIRE CARE SERVICES,388459,03/12/2019,3362161,577.28,0.00,N/A,N/A
Physical Support,Community Support - Physical Support,Community Support,DERBYSHIRE CARE SERVICES,388459,03/12/2019,3362163,833.32,0.00,N/A,N/A
Physical Support,Community Support - Physical Support,Community Support,DERBYSHIRE CARE SERVICES,388459,03/12/2019,3362166,840.68,0.00,N/A,N/A
Physical Support,Community Support - Physical Support,Community Support,DERBYSHIRE CARE SERVICES,388459,03/12/2019,3362068,641.70,0.00,N/A,N/A
Physical Support,Community Support - Physical Support,Community Support,DERBYSHIRE CARE SERVICES,388459,03/12/2019,3362382,576.26,0.00,N/A,N/A
Physical Support,Community Support - Physical Support,Community Support,DERBYSHIRE CARE SERVICES,388459,03/12/2019,3362258,782.19,0.00,N/A,N/A
Physical Support,Community Support - Physical Support,Community Support,DERBYSHIRE CARE SERVICES,388459,03/12/2019,3362263,862.76,0.00,N/A,N/A
Physical Support,Community Support - Physical Support,Community Support,DERBYSHIRE CARE SERVICES,388459,03/12/2019,3362269,576.26,0.00,N/A,N/A
Physical Support,Community Support - Physical Support,Community Support,DERBYSHIRE CARE SERVICES,388459,03/12/2019,3362422,840.68,0.00,N/A,N/A
Physical Support,Community Support - Physical Support,Community Support,DERBYSHIRE CARE SERVICES,388459,03/12/2019,3362107,814.92,0.00,N/A,N/A
Physical Support,Community Support - Physical Support,Community Support,DERBYSHIRE CARE SERVICES,388459,03/12/2019,3362108,870.12,0.00,N/A,N/A
Physical Support,Community Support - Physical Support,Community Support,DERBYSHIRE CARE SERVICES,388459,03/12/2019,3362110,833.32,0.00,N/A,N/A
Physical Support,Community Support - Physical Support,Community Support,DERBYSHIRE CARE SERVICES,388459,03/12/2019,3362317,848.04,0.00,N/A,N/A
Physical Support,Community Support - Physical Support,Community Support,DERBYSHIRE CARE SERVICES,388459,03/12/2019,3362321,833.32,0.00,N/A,N/A
Building Consultancy and Emergency Planning,Emergency Planning,"Communities, Environment & Regulatory Services",DERBYSHIRE COUNTY COUNCIL,1042479,03/12/2019,3350868,"146,030.00",0.00,N/A,N/A
Integrated Services,Fostering,Non-Schools,DERBYSHIRE COUNTY COUNCIL,1042479,03/12/2019,3343568,"1,350.01",0.00,N/A,N/A
Non Delegated Schools Budget,Non Delegated School Expenditure,Schools Block,DERBYSHIRE COUNTY COUNCIL,9786,03/12/2019,3361236,"3,904.00",0.00,People Services - Children & Young People,Politics and Civic Affairs Services
Non Delegated Schools Budget,Non Delegated School Expenditure,Schools Block,DERBYSHIRE COUNTY COUNCIL,9786,03/12/2019,3361255,"1,177.00",0.00,People Services - Children & Young People,Politics and Civic Affairs Services
Democracy,Registration Services,Governance and Assurance,DERBYSHIRE COUNTY COUNCIL,1042479,03/12/2019,3338847,"629,455.00",0.00,N/A,N/A
General,Stores Road Depot & Fleet Management,"Strategic Partnerships, Planning & Streetpride",DERBYSHIRE COUNTY COUNCIL,1042479,03/12/2019,3351735,838.31,0.00,N/A,N/A
Refuse & Waste Management,Waste Disposal,"Strategic Partnerships, Planning & Streetpride",DERBYSHIRE COUNTY COUNCIL,1042479,03/12/2019,3362876,"819,020.00",0.00,N/A,N/A
Public Health,Drugs and Alcohol,Public Health,DERBYSHIRE HEALTHCARE NHS FOUNDATION TRUST,107468,03/12/2019,3362733,"1,667.00",0.00,People Services - Adults and Health,Healthcare Services
Public Health,Drugs and Alcohol,Public Health,DERBYSHIRE HEALTHCARE NHS FOUNDATION TRUST,107468,03/12/2019,3362734,"218,250.39",0.00,People Services - Adults and Health,Healthcare Services
Public Health,Drugs and Alcohol,Public Health,DERBYSHIRE HEALTHCARE NHS FOUNDATION TRUST,107468,03/12/2019,3362737,"13,401.63",0.00,People Services - Adults and Health,Healthcare Services
Culture & Business Development,Culture & Business Development,"Leisure, Culture and Tourism",DIGITAL 4 LIMITED,1200482,03/12/2019,3363453,607.50,0.00,N/A,N/A
HR Casework,Human Resources,Governance and Assurance,DISCLOSURE AND BARRING SERVICE,146440,03/12/2019,3362453,"7,162.00",0.00,N/A,N/A
HR Casework,Human Resources,Governance and Assurance,DISCLOSURE AND BARRING SERVICE,146440,03/12/2019,3362454,"12,168.00",0.00,N/A,N/A
Early Help & Children�s Safeguarding,Children In Care,Non-Schools,DMR SERVICES,235403,03/12/2019,3343298,536.80,0.00,People Services - Children & Young People,Healthcare Services
Early Help & Children�s Safeguarding,Integrated and Safeguarding Services Locality 2,Non-Schools,DODDS SOLICITORS LLP,952477,03/12/2019,3363095,700.16,0.00,N/A,N/A
Early Help & Children�s Safeguarding,Integrated and Safeguarding Services Locality 2,Non-Schools,DODDS SOLICITORS LLP,952477,03/12/2019,3363096,684.46,0.00,N/A,N/A
Early Help & Children�s Safeguarding,Integrated and Safeguarding Services Locality 2,Non-Schools,DODDS SOLICITORS LLP,952477,03/12/2019,3363099,"1,808.44",0.00,N/A,N/A
Early Help & Children�s Safeguarding,Integrated and Safeguarding Services Locality 2,Non-Schools,DODDS SOLICITORS LLP,952477,03/12/2019,3363099,"1,808.44",0.00,N/A,N/A
Early Help & Children�s Safeguarding,Integrated and Safeguarding Services Locality 2,Non-Schools,DODDS SOLICITORS LLP,952477,03/12/2019,3363099,"1,772.94",0.00,N/A,N/A
Early Help & Children�s Safeguarding,Integrated and Safeguarding Services Locality 2,Non-Schools,DODDS SOLICITORS LLP,952477,03/12/2019,3363117,850.00,0.00,N/A,N/A
Non Delegated Schools Budget,Non Delegated School Expenditure,Schools Block,DRONFIELD HENRY FANSHAWE SCHOOL,711451,03/12/2019,3361229,"1,060.00",0.00,N/A,N/A
Non Delegated Schools Budget,Non Delegated School Expenditure,Schools Block,DUDLEY METROPOLITAN BOROUGH COUNCIL,9069,03/12/2019,3361227,750.00,0.00,N/A,N/A
Community Safety and Integration,Partnerships,"Communities, Environment & Regulatory Services",ENGINEERED LEARNING,1039475,03/12/2019,3363663,"1,855.00",0.00,N/A,N/A
Community Safety and Integration,Partnerships,"Communities, Environment & Regulatory Services",ENGINEERED LEARNING,1039475,03/12/2019,3363665,870.00,0.00,N/A,N/A
Traffic & Transportation,Parking Services,"Strategic Partnerships, Planning & Streetpride",EQUITA LTD,11254,03/12/2019,3363266,"6,794.38",0.00,N/A,N/A
Customer Management,Derby Direct,Strategic Services and Organisational Development,ESCALLA,1121471,03/12/2019,3362447,925.00,0.00,N/A,N/A
Traffic & Transportation,Parking Services,"Strategic Partnerships, Planning & Streetpride",ESENDEX LTD,260437,03/12/2019,3360388,720.00,0.00,Communities & Place,Information Technology Broadcasting and
Integrated Services,Agency Placements,Non-Schools,ESLAND NORTH LTD,268397,03/12/2019,3362621,"3,105.00",0.00,People Services - Children & Young People,Structures and Building and Construction
Integrated Services,Agency Placements,Non-Schools,ESLAND NORTH LTD,268397,03/12/2019,3362496,"2,835.00",0.00,People Services - Children & Young People,Structures and Building and Construction
Integrated Services,Agency Placements,Non-Schools,ESLAND NORTH LTD,268397,03/12/2019,3362500,"19,707.14",0.00,People Services - Children & Young People,Structures and Building and Construction
Highways & Engineering,Engineering,"Strategic Partnerships, Planning & Streetpride",ESS SAFEFORCE,13444,03/12/2019,3359766,530.00,0.00,Communities & Place,Defense and Law Enforcement and Security
"Occupational Health, Safety, Markets & Bereavement Services",Bereavement Services,"Communities, Environment & Regulatory Services",FACULTATIEVE TECHNOLOGIES,1528,03/12/2019,3362669,"2,217.69",0.00,Communities & Place,Politics and Civic Affairs Services
Property Design & Maintenance,Building - Repairs & Maintenance,"Regeneration, Property & Housing",FAITHFUL AND GOULD LIMITED,945490,03/12/2019,3362921,"7,087.50",0.00,N/A,N/A
Property Design & Maintenance,Building - Repairs & Maintenance,"Regeneration, Property & Housing",FAITHFUL AND GOULD LIMITED,945490,03/12/2019,3362923,"2,866.97",0.00,N/A,N/A
Property Design & Maintenance,Building - Repairs & Maintenance,"Regeneration, Property & Housing",FAITHFUL AND GOULD LIMITED,945490,03/12/2019,3362938,"5,658.75",0.00,N/A,N/A
Property Design & Maintenance,Building - Repairs & Maintenance,"Regeneration, Property & Housing",FAITHFUL AND GOULD LIMITED,945490,03/12/2019,3362943,"1,752.02",0.00,N/A,N/A
Business Support,Business Support,Strategic Services and Organisational Development,FINANCIAL DATA MANAGEMENT LTD,1559,03/12/2019,3339518,"2,164.50",0.00,N/A,N/A
Integrated Services,Agency Placements,Non-Schools,FIVE RIVERS CHILDCARE LTD,125027,03/12/2019,3362620,"6,421.43",0.00,People Services - Children & Young People,Politics and Civic Affairs Services
Integrated Services,Agency Placements,Non-Schools,FIVE RIVERS CHILDCARE LTD,125027,03/12/2019,3362628,"6,421.43",0.00,People Services - Children & Young People,Politics and Civic Affairs Services
Integrated Services,Agency Placements,Non-Schools,FIVE RIVERS CHILDCARE LTD,125027,03/12/2019,3362631,"6,864.29",0.00,People Services - Children & Young People,Politics and Civic Affairs Services
Integrated Services,Agency Placements,Non-Schools,FIVE RIVERS CHILDCARE LTD,125027,03/12/2019,3362616,"3,671.29",0.00,People Services - Children & Young People,Politics and Civic Affairs Services
Integrated Services,Agency Placements,Non-Schools,FIVE RIVERS CHILDCARE LTD,125027,03/12/2019,3362618,"3,670.18",0.00,People Services - Children & Young People,Politics and Civic Affairs Services
Integrated Services,Agency Placements,Non-Schools,FIVE RIVERS CHILDCARE LTD,125027,03/12/2019,3363544,"3,295.71",0.00,People Services - Children & Young People,Politics and Civic Affairs Services
Integrated Services,Agency Placements,Non-Schools,FIVE RIVERS CHILDCARE LTD,125027,03/12/2019,3363549,"6,214.29",0.00,People Services - Children & Young People,Politics and Civic Affairs Services
Physical Support,Community Support - Physical Support,Community Support,FOSSE HEALTHCARE LTD,448402,03/12/2019,3362142,856.64,0.00,N/A,N/A
Physical Support,Community Support - Physical Support,Community Support,FOSSE HEALTHCARE LTD,448402,03/12/2019,3362145,"1,196.80",0.00,N/A,N/A
Physical Support,Community Support - Physical Support,Community Support,FOSSE HEALTHCARE LTD,448402,03/12/2019,3362146,"1,199.16",0.00,N/A,N/A
Physical Support,Community Support - Physical Support,Community Support,FOSSE HEALTHCARE LTD,448402,03/12/2019,3362202,"1,100.88",0.00,N/A,N/A
Physical Support,Community Support - Physical Support,Community Support,FOSSE HEALTHCARE LTD,448402,03/12/2019,3362042,"1,045.18",0.00,N/A,N/A
Physical Support,Community Support - Physical Support,Community Support,FOSSE HEALTHCARE LTD,448402,03/12/2019,3362407,"1,086.43",0.00,N/A,N/A
Integrated Services,Agency Placements,Non-Schools,FOSTER CARE ASSOCIATES LTD fca,885474,03/12/2019,3362597,"3,397.60",0.00,N/A,N/A
Integrated Services,Agency Placements,Non-Schools,FOSTER CARE ASSOCIATES LTD fca,885474,03/12/2019,3362598,"3,568.10",0.00,N/A,N/A
Integrated Services,Agency Placements,Non-Schools,FOSTER CARE ASSOCIATES LTD fca,885474,03/12/2019,3362600,"4,285.75",0.00,N/A,N/A
Integrated Services,Agency Placements,Non-Schools,FOSTER CARE ASSOCIATES LTD fca,885474,03/12/2019,3362603,"5,890.00",0.00,N/A,N/A
Integrated Services,Agency Placements,Non-Schools,FOSTER CARE ASSOCIATES LTD fca,885474,03/12/2019,3362604,"3,332.93",0.00,N/A,N/A
Integrated Services,Agency Placements,Non-Schools,FOSTER CARE ASSOCIATES LTD fca,885474,03/12/2019,3362605,"5,543.44",0.00,N/A,N/A
Integrated Services,Agency Placements,Non-Schools,FOSTER CARE ASSOCIATES LTD fca,885474,03/12/2019,3362609,"4,151.52",0.00,N/A,N/A
Integrated Services,Agency Placements,Non-Schools,FOSTER CARE ASSOCIATES LTD fca,885474,03/12/2019,3362515,"3,174.40",0.00,N/A,N/A
Integrated Services,Agency Placements,Non-Schools,FOSTER CARE ASSOCIATES LTD fca,885474,03/12/2019,3362516,"3,568.10",0.00,N/A,N/A
Integrated Services,Agency Placements,Non-Schools,FOSTER CARE ASSOCIATES LTD fca,885474,03/12/2019,3362517,"6,308.50",0.00,N/A,N/A
Integrated Services,Agency Placements,Non-Schools,FOSTER CARE ASSOCIATES LTD fca,885474,03/12/2019,3362518,"2,192.00",0.00,N/A,N/A
Integrated Services,Agency Placements,Non-Schools,FOSTER CARE ASSOCIATES LTD fca,885474,03/12/2019,3362522,"3,174.40",0.00,N/A,N/A
Integrated Services,Agency Placements,Non-Schools,FOSTER CARE ASSOCIATES LTD fca,885474,03/12/2019,3362523,"1,205.60",0.00,N/A,N/A
Integrated Services,Agency Placements,Non-Schools,FOSTERING PEOPLE LTD,8384,03/12/2019,3362619,"3,932.35",0.00,People Services - Children & Young People,Politics and Civic Affairs Services
Integrated Services,Agency Placements,Non-Schools,FOSTERING PEOPLE LTD,8384,03/12/2019,3362622,"3,410.00",0.00,People Services - Children & Young People,Politics and Civic Affairs Services
Integrated Services,Agency Placements,Non-Schools,FOSTERING PEOPLE LTD,8384,03/12/2019,3362623,"3,410.00",0.00,People Services - Children & Young People,Politics and Civic Affairs Services
Integrated Services,Agency Placements,Non-Schools,FOSTERING PEOPLE LTD,8384,03/12/2019,3362624,"3,892.29",0.00,People Services - Children & Young People,Politics and Civic Affairs Services
Integrated Services,Agency Placements,Non-Schools,FOSTERING PEOPLE LTD,8384,03/12/2019,3362625,"6,200.00",0.00,People Services - Children & Young People,Politics and Civic Affairs Services
Integrated Services,Agency Placements,Non-Schools,FOSTERING PEOPLE LTD,8384,03/12/2019,3362629,"3,410.00",0.00,People Services - Children & Young People,Politics and Civic Affairs Services
Integrated Services,Agency Placements,Non-Schools,FOSTERING PEOPLE LTD,8384,03/12/2019,3362630,"4,117.42",0.00,People Services - Children & Young People,Politics and Civic Affairs Services
Integrated Services,Agency Placements,Non-Schools,FOSTERING PEOPLE LTD,8384,03/12/2019,3362584,"3,034.96",0.00,People Services - Children & Young People,Politics and Civic Affairs Services
Integrated Services,Agency Placements,Non-Schools,FOSTERING PEOPLE LTD,8384,03/12/2019,3362585,"3,034.96",0.00,People Services - Children & Young People,Politics and Civic Affairs Services
Integrated Services,Agency Placements,Non-Schools,FOSTERING PEOPLE LTD,8384,03/12/2019,3362589,"2,684.60",0.00,People Services - Children & Young People,Politics and Civic Affairs Services
Integrated Services,Agency Placements,Non-Schools,FOSTERING PEOPLE LTD,8384,03/12/2019,3362590,"3,444.10",0.00,People Services - Children & Young People,Politics and Civic Affairs Services
Integrated Services,Agency Placements,Non-Schools,FOSTERING PEOPLE LTD,8384,03/12/2019,3362586,"2,684.60",0.00,People Services - Children & Young People,Politics and Civic Affairs Services
Integrated Services,Agency Placements,Non-Schools,FOSTERING PEOPLE LTD,8384,03/12/2019,3362587,"3,034.96",0.00,People Services - Children & Young People,Politics and Civic Affairs Services
Integrated Services,Agency Placements,Non-Schools,FOSTERING PEOPLE LTD,8384,03/12/2019,3362591,"3,356.68",0.00,People Services - Children & Young People,Politics and Civic Affairs Services
Integrated Services,Agency Placements,Non-Schools,FOSTERING PEOPLE LTD,8384,03/12/2019,3362593,"3,096.90",0.00,People Services - Children & Young People,Politics and Civic Affairs Services
Integrated Services,Agency Placements,Non-Schools,FOSTERING PEOPLE LTD,8384,03/12/2019,3362594,"4,089.52",0.00,People Services - Children & Young People,Politics and Civic Affairs Services
Integrated Services,Agency Placements,Non-Schools,FOSTERING PEOPLE LTD,8384,03/12/2019,3362596,"3,444.10",0.00,People Services - Children & Young People,Politics and Civic Affairs Services
Integrated Services,Agency Placements,Non-Schools,FOSTERING PEOPLE LTD,8384,03/12/2019,3362647,"3,444.10",0.00,People Services - Children & Young People,Politics and Civic Affairs Services
Integrated Services,Agency Placements,Non-Schools,FOSTERING PEOPLE LTD,8384,03/12/2019,3362648,"3,034.96",0.00,People Services - Children & Young People,Politics and Civic Affairs Services
Integrated Services,Agency Placements,Non-Schools,FOSTERING PEOPLE LTD,8384,03/12/2019,3362599,"3,205.09",0.00,People Services - Children & Young People,Politics and Civic Affairs Services
Integrated Services,Agency Placements,Non-Schools,FOSTERING PEOPLE LTD,8384,03/12/2019,3362489,"3,106.97",0.00,People Services - Children & Young People,Politics and Civic Affairs Services
Integrated Services,Agency Placements,Non-Schools,FOSTERING PEOPLE LTD,8384,03/12/2019,3362493,"3,270.50",0.00,People Services - Children & Young People,Politics and Civic Affairs Services
Integrated Services,Agency Placements,Non-Schools,FOSTERING PEOPLE LTD,8384,03/12/2019,3362503,"3,270.50",0.00,People Services - Children & Young People,Politics and Civic Affairs Services
Integrated Services,Agency Placements,Non-Schools,FOSTERING PEOPLE LTD,8384,03/12/2019,3362504,"3,205.09",0.00,People Services - Children & Young People,Politics and Civic Affairs Services
Integrated Services,Agency Placements,Non-Schools,FOSTERING PEOPLE LTD,8384,03/12/2019,3362505,"3,205.09",0.00,People Services - Children & Young People,Politics and Civic Affairs Services
Integrated Services,Agency Placements,Non-Schools,FOSTERING PEOPLE LTD,8384,03/12/2019,3362612,"1,498.50",0.00,People Services - Children & Young People,Politics and Civic Affairs Services
Integrated Services,Agency Placements,Non-Schools,FOSTERING PEOPLE LTD,8384,03/12/2019,3362528,"3,034.96",0.00,People Services - Children & Young People,Politics and Civic Affairs Services
Integrated Services,Agency Placements,Non-Schools,FOSTERING PEOPLE LTD,8384,03/12/2019,3362534,"3,034.96",0.00,People Services - Children & Young People,Politics and Civic Affairs Services
Integrated Services,Agency Placements,Non-Schools,FOSTERING PEOPLE LTD,8384,03/12/2019,3362547,"3,205.09",0.00,People Services - Children & Young People,Politics and Civic Affairs Services
Integrated Services,Agency Placements,Non-Schools,FOSTERING PEOPLE LTD,8384,03/12/2019,3362549,"3,375.22",0.00,People Services - Children & Young People,Politics and Civic Affairs Services
Integrated Services,Agency Placements,Non-Schools,FOSTERING PEOPLE LTD,8384,03/12/2019,3362551,"3,375.22",0.00,People Services - Children & Young People,Politics and Civic Affairs Services
Integrated Services,Agency Placements,Non-Schools,FOSTERING PEOPLE LTD,8384,03/12/2019,3362552,"3,266.34",0.00,People Services - Children & Young People,Politics and Civic Affairs Services
Integrated Services,Agency Placements,Non-Schools,FOSTERING PEOPLE LTD,8384,03/12/2019,3362553,"3,205.09",0.00,People Services - Children & Young People,Politics and Civic Affairs Services
Integrated Services,Agency Placements,Non-Schools,FOSTERING PEOPLE LTD,8384,03/12/2019,3362554,"3,034.96",0.00,People Services - Children & Young People,Politics and Civic Affairs Services
Integrated Services,Agency Placements,Non-Schools,FOSTERING PEOPLE LTD,8384,03/12/2019,3363561,"3,205.09",0.00,People Services - Children & Young People,Politics and Civic Affairs Services
Integrated Services,Agency Placements,Non-Schools,FOSTERING PEOPLE LTD,8384,03/12/2019,3363543,"3,971.72",0.00,People Services - Children & Young People,Politics and Civic Affairs Services
Integrated Services,Agency Placements,Non-Schools,FOSTERING PEOPLE LTD,8384,03/12/2019,3363545,"3,270.50",0.00,People Services - Children & Young People,Politics and Civic Affairs Services
Integrated Services,Agency Placements,Non-Schools,FOSTERING PEOPLE LTD,8384,03/12/2019,3363546,"3,205.09",0.00,People Services - Children & Young People,Politics and Civic Affairs Services
Integrated Services,Agency Placements,Non-Schools,FOSTERING PEOPLE LTD,8384,03/12/2019,3363592,"3,205.09",0.00,People Services - Children & Young People,Politics and Civic Affairs Services
Integrated Services,Agency Placements,Non-Schools,FOSTERING SOLUTIONS LTD,123940,03/12/2019,3362556,"2,965.91",0.00,People Services - Children & Young People,Politics and Civic Affairs Services
Integrated Services,Agency Placements,Non-Schools,FOSTERING SOLUTIONS LTD,123940,03/12/2019,3362559,"2,776.84",0.00,People Services - Children & Young People,Politics and Civic Affairs Services
Integrated Services,Agency Placements,Non-Schools,FOSTERING SOLUTIONS LTD,123940,03/12/2019,3362560,"3,627.00",0.00,People Services - Children & Young People,Politics and Civic Affairs Services
Integrated Services,Agency Placements,Non-Schools,FOSTERING SOLUTIONS LTD,123940,03/12/2019,3362583,"2,776.84",0.00,People Services - Children & Young People,Politics and Civic Affairs Services
Integrated Services,Agency Placements,Non-Schools,FOSTERING SOLUTIONS LTD,123940,03/12/2019,3362658,"2,809.81",0.00,People Services - Children & Young People,Politics and Civic Affairs Services
Integrated Services,Agency Placements,Non-Schools,FOSTERING SOLUTIONS LTD,123940,03/12/2019,3362655,"3,134.36",0.00,People Services - Children & Young People,Politics and Civic Affairs Services
Integrated Services,Agency Placements,Non-Schools,FOSTERING SOLUTIONS LTD,123940,03/12/2019,3362661,"3,627.00",0.00,People Services - Children & Young People,Politics and Civic Affairs Services
Integrated Services,Agency Placements,Non-Schools,FOSTERING SOLUTIONS LTD,123940,03/12/2019,3363577,"3,445.65",0.00,People Services - Children & Young People,Politics and Civic Affairs Services
Integrated Services,Agency Placements,Non-Schools,FOSTERING SOLUTIONS LTD,123940,03/12/2019,3363573,"4,393.01",0.00,People Services - Children & Young People,Politics and Civic Affairs Services
Integrated Services,Agency Placements,Non-Schools,FOSTERING SOLUTIONS LTD,123940,03/12/2019,3363576,"3,323.73",0.00,People Services - Children & Young People,Politics and Civic Affairs Services
Integrated Services,Agency Placements,Non-Schools,FOSTERPLUS LTD,912479,03/12/2019,3362626,"3,277.01",0.00,N/A,N/A
Integrated Services,Agency Placements,Non-Schools,FOSTERPLUS LTD,912479,03/12/2019,3363559,"3,188.66",0.00,N/A,N/A
Neighbourhoods,Capital,Capital,FREETHS LLP,821453,03/12/2019,3363451,"1,354.00",0.00,N/A,N/A
Neighbourhoods,Capital,Capital,FREETHS LLP,821453,03/12/2019,3363639,"5,168.00",0.00,N/A,N/A
Learning Disability Support,Community Support - Learning Disability Support,Community Support,GELDARD AND SON LIMITED,1144470,03/12/2019,3362723,"2,243.72",0.00,N/A,N/A
Neighbourhoods,Capital,Capital,GELDARDS LLP,905483,03/12/2019,3363262,737.00,0.00,N/A,N/A
General,Stores Road Depot & Fleet Management,"Strategic Partnerships, Planning & Streetpride",GO PLANT FLEET SERVICES LTD,746443,03/12/2019,3363243,"4,101.05",0.00,N/A,N/A
Community Safety and Integration,Partnerships,"Communities, Environment & Regulatory Services",GORDON ELLIS AND CO,1175489,03/12/2019,3351379,"1,497.15",0.00,N/A,N/A
Strategic Housing,Housing and Advice,"Regeneration, Property & Housing",GREEN GABLES,476406,03/12/2019,3362457,545.00,0.00,N/A,N/A
Strategic Housing,Housing and Advice,"Regeneration, Property & Housing",GREEN GABLES,476406,03/12/2019,3362458,525.00,0.00,N/A,N/A
Strategic Housing,Housing and Advice,"Regeneration, Property & Housing",GREEN GABLES,476406,03/12/2019,3362459,525.00,0.00,N/A,N/A
Learning Disability Support,Community Support - Learning Disability Support,Community Support,GREENWICH GARDENS EXTRA CAS DCS,537476,03/12/2019,3362198,805.85,0.00,N/A,N/A
Learning Disability Support,Community Support - Learning Disability Support,Community Support,GREENWICH GARDENS EXTRA CAS DCS,537476,03/12/2019,3362239,"1,023.19",0.00,N/A,N/A
Learning Disability Support,Community Support - Learning Disability Support,Community Support,GREENWICH GARDENS EXTRA CAS DCS,537476,03/12/2019,3362400,994.55,0.00,N/A,N/A
Learning Disability Support,Community Support - Learning Disability Support,Community Support,GREENWICH GARDENS EXTRA CAS DCS,537476,03/12/2019,3362087,742.68,0.00,N/A,N/A
Learning Disability Support,Community Support - Learning Disability Support,Community Support,GREENWICH GARDENS EXTRA CAS DCS,537476,03/12/2019,3362404,"1,093.56",0.00,N/A,N/A
Learning Disability Support,Community Support - Learning Disability Support,Community Support,GREENWICH GARDENS EXTRA CAS DCS,537476,03/12/2019,3362293,"1,064.92",0.00,N/A,N/A
Physical Support,Community Support - Physical Support,Community Support,GREENWICH GARDENS EXTRA CAS DCS,537476,03/12/2019,3362352,633.36,0.00,N/A,N/A
Physical Support,Community Support - Physical Support,Community Support,GREENWICH GARDENS EXTRA CAS DCS,537476,03/12/2019,3362203,633.36,0.00,N/A,N/A
Physical Support,Community Support - Physical Support,Community Support,GREENWICH GARDENS EXTRA CAS DCS,537476,03/12/2019,3362355,"1,266.72",0.00,N/A,N/A
Physical Support,Community Support - Physical Support,Community Support,GREENWICH GARDENS EXTRA CAS DCS,537476,03/12/2019,3362299,950.04,0.00,N/A,N/A
Physical Support,Community Support - Physical Support,Community Support,GREENWICH GARDENS EXTRA CAS DCS,537476,03/12/2019,3362302,"1,266.72",0.00,N/A,N/A
Support with Memory and Cognition,Community Support - Support with Memory and Cognition,Community Support,GREENWICH GARDENS EXTRA CAS DCS,537476,03/12/2019,3362356,721.85,0.00,N/A,N/A
Support with Memory and Cognition,Community Support - Support with Memory and Cognition,Community Support,GREENWICH GARDENS EXTRA CAS DCS,537476,03/12/2019,3362043,721.85,0.00,N/A,N/A
Mental Health Support,Mental Health - Mental Health Support,Mental Health,GREENWICH GARDENS EXTRA CAS DCS,537476,03/12/2019,3362251,775.76,0.00,N/A,N/A
Mental Health Support,Mental Health - Mental Health Support,Mental Health,GREENWICH GARDENS EXTRA CAS DCS,537476,03/12/2019,3362091,775.76,0.00,N/A,N/A
Mental Health Support,Mental Health - Mental Health Support,Mental Health,GREENWICH GARDENS EXTRA CAS DCS,537476,03/12/2019,3362204,"1,067.80",0.00,N/A,N/A
Public Health,Sexual Health,Public Health,GUYS AND ST THOMAS NHS FOUNDATION TRUST,186821,03/12/2019,3362732,513.00,0.00,N/A,N/A
Early Help & Children�s Safeguarding,Integrated and Safeguarding Services Locality 1/5,Non-Schools,HANDS FREE COMPUTING LTD,220401,03/12/2019,3363315,"1,760.00",0.00,People Services - Children & Young People,Information Technology Broadcasting and
Facilities Management,Accommodation Buildings,Strategic Services and Organisational Development,HATHERLEY COMMERCIAL SERVICES LTD,1008470,03/12/2019,3352377,815.15,0.00,N/A,N/A
Sector Development,Business Efficiency,Commissioning,HEALTHWATCH DERBY,153494,03/12/2019,3363439,"107,000.00",0.00,People Services - Adults and Health,Politics and Civic Affairs Services
Property Design & Maintenance,Building - Repairs & Maintenance,"Regeneration, Property & Housing",HIGHFIELD JOINERY AND BUILD SERVS LTD,215391,03/12/2019,3362922,"1,141.00",0.00,N/A,N/A
Non Delegated Schools Budget,Non Delegated School Expenditure,Schools Block,HIGHLANDS SCHOOL,1167488,03/12/2019,3361223,549.00,0.00,N/A,N/A
Physical Support,Community Support - Physical Support,Community Support,HOME FROM HOME CARE SERVICES,388466,03/12/2019,3362390,539.96,0.00,N/A,N/A
Physical Support,Community Support - Physical Support,Community Support,HOME FROM HOME CARE SERVICES,388466,03/12/2019,3362430,539.96,0.00,N/A,N/A
Integrated Services,Agency Placements,Non-Schools,HOPE FOSTERING SERVICE,124244,03/12/2019,3362651,"2,953.00",0.00,People Services - Children & Young People,Politics and Civic Affairs Services
Integrated Services,Agency Placements,Non-Schools,HOPE FOSTERING SERVICE,124244,03/12/2019,3362652,"3,109.00",0.00,People Services - Children & Young People,Politics and Civic Affairs Services
Integrated Services,Agency Placements,Non-Schools,HOPE FOSTERING SERVICE,124244,03/12/2019,3362654,"2,953.00",0.00,People Services - Children & Young People,Politics and Civic Affairs Services
Integrated Services,Agency Placements,Non-Schools,HOPE FOSTERING SERVICE,124244,03/12/2019,3362656,"2,953.00",0.00,People Services - Children & Young People,Politics and Civic Affairs Services
Integrated Services,Agency Placements,Non-Schools,HORIZON CARE AND EDUCATION LTD,221385,03/12/2019,3362575,"12,400.00",0.00,People Services - Children & Young People,Politics and Civic Affairs Services
Integrated Services,Agency Placements,Non-Schools,HORIZON CARE AND EDUCATION LTD,221385,03/12/2019,3362611,"12,400.00",0.00,People Services - Children & Young People,Politics and Civic Affairs Services
Integrated Services,Agency Placements,Non-Schools,HORIZON CARE AND EDUCATION LTD,221385,03/12/2019,3362615,"12,400.00",0.00,People Services - Children & Young People,Politics and Civic Affairs Services
Learning Disability Support,Community Support - Learning Disability Support,Community Support,HOUSING 21,1116470,03/12/2019,3362232,742.11,0.00,N/A,N/A
Physical Support,Community Support - Physical Support,Community Support,HOUSING 21,1116470,03/12/2019,3362189,"1,124.51",0.00,N/A,N/A
Physical Support,Community Support - Physical Support,Community Support,HOUSING 21,1116470,03/12/2019,3362191,864.33,0.00,N/A,N/A
Physical Support,Community Support - Physical Support,Community Support,HOUSING 21,1116470,03/12/2019,3362341,952.56,0.00,N/A,N/A
Physical Support,Community Support - Physical Support,Community Support,HOUSING 21,1116470,03/12/2019,3362391,642.45,0.00,N/A,N/A
Physical Support,Community Support - Physical Support,Community Support,HOUSING 21,1116470,03/12/2019,3362392,764.46,0.00,N/A,N/A
Physical Support,Community Support - Physical Support,Community Support,HOUSING 21,1116470,03/12/2019,3362393,764.46,0.00,N/A,N/A
Physical Support,Community Support - Physical Support,Community Support,HOUSING 21,1116470,03/12/2019,3362394,592.48,0.00,N/A,N/A
Physical Support,Community Support - Physical Support,Community Support,HOUSING 21,1116470,03/12/2019,3362433,635.64,0.00,N/A,N/A
Physical Support,Community Support - Physical Support,Community Support,HOUSING 21,1116470,03/12/2019,3362434,"1,155.52",0.00,N/A,N/A
Physical Support,Community Support - Physical Support,Community Support,HOUSING 21,1116470,03/12/2019,3362285,864.33,0.00,N/A,N/A
Physical Support,Community Support - Physical Support,Community Support,HOUSING 21,1116470,03/12/2019,3362122,891.74,0.00,N/A,N/A
Physical Support,Community Support - Physical Support,Community Support,HOUSING 21,1116470,03/12/2019,3362123,963.26,0.00,N/A,N/A
Physical Support,Community Support - Physical Support,Community Support,HOUSING 21,1116470,03/12/2019,3362125,715.11,0.00,N/A,N/A
Culture & Business Development,Culture & Business Development,"Leisure, Culture and Tourism",HUBBUB THEATRE COMPANY,1198473,03/12/2019,3357626,"1,000.00",0.00,N/A,N/A
Leisure,Leisure,"Leisure, Culture and Tourism",HUCK NETS (UK) LTD,36890,03/12/2019,3362695,761.25,0.00,Communities & Place,Sports and Recreational Equipment and Su
"Information, Computing & Technology","Information, Computing & Technology",Digital Services,INTERTEK NTA,982470,03/12/2019,3363263,"7,600.00",0.00,N/A,N/A
Community Safety,Partnerships,Public Protection and Streetride,ISLINGTON COUNCIL,493404,03/12/2019,3357719,"3,500.00",0.00,N/A,N/A
Integrated Services,Agency Placements,Non-Schools,ISP CENTRAL OFFICE,502422,03/12/2019,3362497,"5,752.67",0.00,N/A,N/A
Integrated Services,Agency Placements,Non-Schools,ISP CENTRAL OFFICE,502422,03/12/2019,3362539,"5,752.67",0.00,N/A,N/A
Integrated Services,Agency Placements,Non-Schools,ISP CENTRAL OFFICE,502422,03/12/2019,3362541,"5,752.67",0.00,N/A,N/A
Integrated Services,Agency Placements,Non-Schools,ISP CENTRAL OFFICE,502422,03/12/2019,3362542,"5,752.67",0.00,N/A,N/A
Integrated Services,Agency Placements,Non-Schools,ISP CENTRAL OFFICE,502422,03/12/2019,3363563,"5,752.67",0.00,N/A,N/A
Integrated Services,Agency Placements,Non-Schools,ISP CENTRAL OFFICE,502422,03/12/2019,3363564,"5,752.67",0.00,N/A,N/A
Integrated Services,Agency Placements,Non-Schools,ISP CENTRAL OFFICE,502422,03/12/2019,3363565,"5,752.67",0.00,N/A,N/A
Integrated Services,Agency Placements,Non-Schools,JAY FOSTERING,2148,03/12/2019,3362507,"3,272.67",0.00,People Services - Children & Young People,Politics and Civic Affairs Services
Integrated Services,Agency Placements,Non-Schools,JAY FOSTERING,2148,03/12/2019,3362511,"3,174.49",0.00,People Services - Children & Young People,Politics and Civic Affairs Services
Integrated Services,Agency Placements,Non-Schools,JAY FOSTERING,2148,03/12/2019,3362512,"3,449.99",0.00,People Services - Children & Young People,Politics and Civic Affairs Services
Integrated Services,Agency Placements,Non-Schools,JAY FOSTERING,2148,03/12/2019,3362513,"3,449.99",0.00,People Services - Children & Young People,Politics and Civic Affairs Services
Integrated Services,Agency Placements,Non-Schools,JAY FOSTERING,2148,03/12/2019,3362514,"3,277.49",0.00,People Services - Children & Young People,Politics and Civic Affairs Services
Integrated Services,Agency Placements,Non-Schools,JAY FOSTERING,2148,03/12/2019,3362521,"3,449.99",0.00,People Services - Children & Young People,Politics and Civic Affairs Services
Integrated Services,Agency Placements,Non-Schools,JAY FOSTERING,2148,03/12/2019,3362524,"3,346.49",0.00,People Services - Children & Young People,Politics and Civic Affairs Services
Integrated Services,Agency Placements,Non-Schools,JAY FOSTERING,2148,03/12/2019,3362525,"3,449.99",0.00,People Services - Children & Young People,Politics and Civic Affairs Services
Integrated Services,Agency Placements,Non-Schools,JAY FOSTERING,2148,03/12/2019,3362527,"3,193.26",0.00,People Services - Children & Young People,Politics and Civic Affairs Services
Integrated Services,Agency Placements,Non-Schools,JAY FOSTERING,2148,03/12/2019,3362529,"3,272.67",0.00,People Services - Children & Young People,Politics and Civic Affairs Services
Integrated Services,Agency Placements,Non-Schools,JAY FOSTERING,2148,03/12/2019,3362530,"3,346.49",0.00,People Services - Children & Young People,Politics and Civic Affairs Services
Integrated Services,Agency Placements,Non-Schools,JAY FOSTERING,2148,03/12/2019,3362532,"3,272.67",0.00,People Services - Children & Young People,Politics and Civic Affairs Services
Culture & Business Development,Culture & Business Development,"Leisure, Culture and Tourism",JC DECAUX UK LTD,11496,03/12/2019,3359763,525.00,0.00,Communities & Place,Industrial Manufacturing and Processing
Culture & Business Development,Culture & Business Development,"Leisure, Culture and Tourism",JOHN E WRIGHT & CO LTD,2190,03/12/2019,3360736,513.00,0.00,Communities & Place,Printing and Photographic and Audio and
Neighbourhoods,Capital,Capital,JOHN E WRIGHT & CO LTD,2190,03/12/2019,3363456,794.40,0.00,N/A,N/A
Commissioning - Schools Block,Recoupment - Independent Special School Fees,Schools Block,KISIMUL GROUP LTD,831442,03/12/2019,3363165,"62,415.00",0.00,N/A,N/A
Commissioning - Schools Block,Recoupment - Independent Special School Fees,Schools Block,KISIMUL GROUP LTD,831442,03/12/2019,3363171,"62,873.50",0.00,N/A,N/A
Property Design & Maintenance,Building - Repairs & Maintenance,"Regeneration, Property & Housing",KONE PLC,188097,03/12/2019,3362947,"1,179.37",0.00,N/A,N/A
Non Delegated Schools Budget,Non Delegated School Expenditure,Schools Block,LANDAU FORTE COLLEGE,11492,03/12/2019,3361277,"1,150.00",0.00,People Services - Children & Young People,Travel and Food and Lodging and Entertai
Non Delegated Schools Budget,Non Delegated School Expenditure,Schools Block,LCC BEAUMONT LEYS SCHOOL,509418,03/12/2019,3361248,595.00,0.00,N/A,N/A
Leisure,Leisure,"Leisure, Culture and Tourism",LEGEND CLUB MANAGEMENT SYSTEMS UK LIMITED,1001482,03/12/2019,3363131,"25,653.89",0.00,N/A,N/A
Culture & Business Development,Culture & Business Development,"Leisure, Culture and Tourism",LEICESTERSHIRE COUNTY COUNCIL,2371,03/12/2019,3345283,"3,338.39",0.00,Communities & Place,Education and Training Services
Benefits and Exchequer Services,Housing and Council Tax Benefit,Finance,LIBERATA UK LTD,109209,03/12/2019,3362719,"34,370.05",0.00,Organisation & Governance,Management and Business Professionals an
Learning Disability Support,Community Support - Learning Disability Support,Community Support,LIFEWAYS COMMUNITY CARE LTD,1069476,03/12/2019,3362138,"3,042.32",0.00,N/A,N/A
Learning Disability Support,Community Support - Learning Disability Support,Community Support,LIFEWAYS COMMUNITY CARE LTD,1069476,03/12/2019,3362139,"3,042.32",0.00,N/A,N/A
Learning Disability Support,Community Support - Learning Disability Support,Community Support,LIFEWAYS COMMUNITY CARE LTD,1069476,03/12/2019,3362196,795.92,0.00,N/A,N/A
Learning Disability Support,Community Support - Learning Disability Support,Community Support,LIFEWAYS COMMUNITY CARE LTD,1069476,03/12/2019,3362039,"3,042.32",0.00,N/A,N/A
Learning Disability Support,Community Support - Learning Disability Support,Community Support,LIFEWAYS COMMUNITY CARE LTD,1069476,03/12/2019,3362353,"3,042.32",0.00,N/A,N/A
Learning Disability Support,Community Support - Learning Disability Support,Community Support,LIFEWAYS COMMUNITY CARE LTD,1069476,03/12/2019,3362246,"3,042.32",0.00,N/A,N/A
Learning Disability Support,Community Support - Learning Disability Support,Community Support,LIFEWAYS COMMUNITY CARE LTD,1069476,03/12/2019,3362300,"1,079.20",0.00,N/A,N/A
Mental Health Support,Mental Health - Mental Health Support,Mental Health,LIFEWAYS COMMUNITY CARE LTD,1069476,03/12/2019,3362140,809.64,0.00,N/A,N/A
Mental Health Support,Mental Health - Mental Health Support,Mental Health,LIFEWAYS COMMUNITY CARE LTD,1069476,03/12/2019,3362200,755.68,0.00,N/A,N/A
Integrated Commissioning,Integrated Commissioning,Commissioning,MAKING SPACE,123309,03/12/2019,3334680,"43,738.00",0.00,People Services - Adults and Health,Healthcare Services
Property Design & Maintenance,Building - Repairs & Maintenance,"Regeneration, Property & Housing",MANOR ELECTRICAL SERVICES,1125481,03/12/2019,3362920,"5,051.60",0.00,N/A,N/A
Commissioning - Schools Block,Recoupment - Independent Special School Fees,Schools Block,MAPLE HAYES SCHOOL,2581,03/12/2019,3363259,"5,210.20",0.00,N/A,N/A
Non Delegated Schools Budget,Non Delegated School Expenditure,Schools Block,MARY SWANWICK PRIMARY SCHOOL,740444,03/12/2019,3361237,"1,460.00",0.00,N/A,N/A
"Occupational Health, Safety, Markets & Bereavement Services",Markets,"Communities, Environment & Regulatory Services",MASON ELECTRONICS LTD,2440,03/12/2019,3361177,"1,400.00",0.00,Communities & Place,Electronic Components and Supplies
Physical Support,Community Support - Physical Support,Community Support,MEARS CARE LIMITED,1052472,03/12/2019,3362144,587.93,0.00,N/A,N/A
Physical Support,Community Support - Physical Support,Community Support,MEARS CARE LIMITED,1052472,03/12/2019,3362074,789.49,0.00,N/A,N/A
Physical Support,Community Support - Physical Support,Community Support,MEARS CARE LIMITED,1052472,03/12/2019,3362276,761.68,0.00,N/A,N/A
Physical Support,Community Support - Physical Support,Community Support,MEARS CARE LIMITED,1052472,03/12/2019,3362094,771.14,0.00,N/A,N/A
Physical Support,Community Support - Physical Support,Community Support,MEARS CARE LIMITED,1052472,03/12/2019,3362303,774.82,0.00,N/A,N/A
Neighbourhoods,Capital,Capital,MIDLAND ROOFING SERVICES DERBY D2450,188124,03/12/2019,3362933,"8,423.36",0.00,N/A,N/A
Neighbourhoods,Capital,Capital,MIDLAND ROOFING SERVICES DERBY D2450,188124,03/12/2019,3362948,"2,978.15",0.00,N/A,N/A
Public Health,Sexual Health,Public Health,MIDLANDS PARTNERSHIP NHS FOUNDATION TRUST,833447,03/12/2019,3360357,917.50,0.00,N/A,N/A
Public Health,Sexual Health,Public Health,MIDLANDS PARTNERSHIP NHS FOUNDATION TRUST,833447,03/12/2019,3362702,"2,453.20",0.00,N/A,N/A
Community Safety,Partnerships,Public Protection and Streetride,MULTI FAITH CENTRE,9439,03/12/2019,3360757,"7,710.00",0.00,N/A,N/A
Integrated Services,Agency Placements,Non-Schools,NATIONAL FOSTERING AGENCY,3496,03/12/2019,3362561,"3,432.32",0.00,People Services - Children & Young People,Organizations and Clubs
Integrated Services,Agency Placements,Non-Schools,NATIONAL FOSTERING AGENCY,3496,03/12/2019,3362633,"3,373.11",0.00,People Services - Children & Young People,Organizations and Clubs
Integrated Services,Agency Placements,Non-Schools,NATIONAL FOSTERING AGENCY,3496,03/12/2019,3362636,"3,432.32",0.00,People Services - Children & Young People,Organizations and Clubs
Integrated Services,Agency Placements,Non-Schools,NATIONAL FOSTERING AGENCY,3496,03/12/2019,3362638,"3,286.31",0.00,People Services - Children & Young People,Organizations and Clubs
Integrated Services,Agency Placements,Non-Schools,NATIONAL FOSTERING AGENCY,3496,03/12/2019,3362641,"4,424.01",0.00,People Services - Children & Young People,Organizations and Clubs
Integrated Services,Agency Placements,Non-Schools,NATIONAL FOSTERING AGENCY,3496,03/12/2019,3362643,"3,518.19",0.00,People Services - Children & Young People,Organizations and Clubs
Integrated Services,Agency Placements,Non-Schools,NATIONAL FOSTERING AGENCY,3496,03/12/2019,3362644,"4,424.01",0.00,People Services - Children & Young People,Organizations and Clubs
Learning Disability Support,Community Support - Learning Disability Support,Community Support,NATIONWIDE CARE SERVICES,471122,03/12/2019,3362229,731.36,0.00,N/A,N/A
Learning Disability Support,Community Support - Learning Disability Support,Community Support,NATIONWIDE CARE SERVICES,471122,03/12/2019,3362292,702.24,0.00,N/A,N/A
Learning Disability Support,Community Support - Learning Disability Support,Community Support,NATIONWIDE CARE SERVICES,471122,03/12/2019,3362332,731.36,0.00,N/A,N/A
Mental Health Support,Community Support - Mental Health Support,Community Support,NATIONWIDE CARE SERVICES,471122,03/12/2019,3362347,703.76,0.00,N/A,N/A
Physical Support,Community Support - Physical Support,Community Support,NATIONWIDE CARE SERVICES,471122,03/12/2019,3362151,882.48,0.00,N/A,N/A
Physical Support,Community Support - Physical Support,Community Support,NATIONWIDE CARE SERVICES,471122,03/12/2019,3362152,967.86,0.00,N/A,N/A
Physical Support,Community Support - Physical Support,Community Support,NATIONWIDE CARE SERVICES,471122,03/12/2019,3362155,545.97,0.00,N/A,N/A
Physical Support,Community Support - Physical Support,Community Support,NATIONWIDE CARE SERVICES,471122,03/12/2019,3362156,896.01,0.00,N/A,N/A
Physical Support,Community Support - Physical Support,Community Support,NATIONWIDE CARE SERVICES,471122,03/12/2019,3362162,"1,350.76",0.00,N/A,N/A
Physical Support,Community Support - Physical Support,Community Support,NATIONWIDE CARE SERVICES,471122,03/12/2019,3362170,820.51,0.00,N/A,N/A
Physical Support,Community Support - Physical Support,Community Support,NATIONWIDE CARE SERVICES,471122,03/12/2019,3362174,"1,149.34",0.00,N/A,N/A
Physical Support,Community Support - Physical Support,Community Support,NATIONWIDE CARE SERVICES,471122,03/12/2019,3362175,"1,149.34",0.00,N/A,N/A
Physical Support,Community Support - Physical Support,Community Support,NATIONWIDE CARE SERVICES,471122,03/12/2019,3362176,"1,291.88",0.00,N/A,N/A
Physical Support,Community Support - Physical Support,Community Support,NATIONWIDE CARE SERVICES,471122,03/12/2019,3362344,647.28,0.00,N/A,N/A
Physical Support,Community Support - Physical Support,Community Support,NATIONWIDE CARE SERVICES,471122,03/12/2019,3362207,687.67,0.00,N/A,N/A
Physical Support,Community Support - Physical Support,Community Support,NATIONWIDE CARE SERVICES,471122,03/12/2019,3362211,896.01,0.00,N/A,N/A
Physical Support,Community Support - Physical Support,Community Support,NATIONWIDE CARE SERVICES,471122,03/12/2019,3362358,539.18,0.00,N/A,N/A
Physical Support,Community Support - Physical Support,Community Support,NATIONWIDE CARE SERVICES,471122,03/12/2019,3362359,967.86,0.00,N/A,N/A
Physical Support,Community Support - Physical Support,Community Support,NATIONWIDE CARE SERVICES,471122,03/12/2019,3362362,"1,008.92",0.00,N/A,N/A
Physical Support,Community Support - Physical Support,Community Support,NATIONWIDE CARE SERVICES,471122,03/12/2019,3362049,967.86,0.00,N/A,N/A
Physical Support,Community Support - Physical Support,Community Support,NATIONWIDE CARE SERVICES,471122,03/12/2019,3362053,"1,133.69",0.00,N/A,N/A
Physical Support,Community Support - Physical Support,Community Support,NATIONWIDE CARE SERVICES,471122,03/12/2019,3362215,"1,291.88",0.00,N/A,N/A
Physical Support,Community Support - Physical Support,Community Support,NATIONWIDE CARE SERVICES,471122,03/12/2019,3362222,774.44,0.00,N/A,N/A
Physical Support,Community Support - Physical Support,Community Support,NATIONWIDE CARE SERVICES,471122,03/12/2019,3362223,797.76,0.00,N/A,N/A
Physical Support,Community Support - Physical Support,Community Support,NATIONWIDE CARE SERVICES,471122,03/12/2019,3362224,837.16,0.00,N/A,N/A
Physical Support,Community Support - Physical Support,Community Support,NATIONWIDE CARE SERVICES,471122,03/12/2019,3362228,"1,084.23",0.00,N/A,N/A
Physical Support,Community Support - Physical Support,Community Support,NATIONWIDE CARE SERVICES,471122,03/12/2019,3362371,576.03,0.00,N/A,N/A
Physical Support,Community Support - Physical Support,Community Support,NATIONWIDE CARE SERVICES,471122,03/12/2019,3362055,576.03,0.00,N/A,N/A
Physical Support,Community Support - Physical Support,Community Support,NATIONWIDE CARE SERVICES,471122,03/12/2019,3362238,"1,076.99",0.00,N/A,N/A
Physical Support,Community Support - Physical Support,Community Support,NATIONWIDE CARE SERVICES,471122,03/12/2019,3362379,"1,005.46",0.00,N/A,N/A
Physical Support,Community Support - Physical Support,Community Support,NATIONWIDE CARE SERVICES,471122,03/12/2019,3362083,953.48,0.00,N/A,N/A
Physical Support,Community Support - Physical Support,Community Support,NATIONWIDE CARE SERVICES,471122,03/12/2019,3362254,967.86,0.00,N/A,N/A
Physical Support,Community Support - Physical Support,Community Support,NATIONWIDE CARE SERVICES,471122,03/12/2019,3362259,"1,008.92",0.00,N/A,N/A
Physical Support,Community Support - Physical Support,Community Support,NATIONWIDE CARE SERVICES,471122,03/12/2019,3362260,"1,133.69",0.00,N/A,N/A
Physical Support,Community Support - Physical Support,Community Support,NATIONWIDE CARE SERVICES,471122,03/12/2019,3362261,526.36,0.00,N/A,N/A
Physical Support,Community Support - Physical Support,Community Support,NATIONWIDE CARE SERVICES,471122,03/12/2019,3362266,517.13,0.00,N/A,N/A
Physical Support,Community Support - Physical Support,Community Support,NATIONWIDE CARE SERVICES,471122,03/12/2019,3362267,541.23,0.00,N/A,N/A
Physical Support,Community Support - Physical Support,Community Support,NATIONWIDE CARE SERVICES,471122,03/12/2019,3362268,980.11,0.00,N/A,N/A
Physical Support,Community Support - Physical Support,Community Support,NATIONWIDE CARE SERVICES,471122,03/12/2019,3362411,602.57,0.00,N/A,N/A
Physical Support,Community Support - Physical Support,Community Support,NATIONWIDE CARE SERVICES,471122,03/12/2019,3362412,"1,282.20",0.00,N/A,N/A
Physical Support,Community Support - Physical Support,Community Support,NATIONWIDE CARE SERVICES,471122,03/12/2019,3362425,"1,019.95",0.00,N/A,N/A
Physical Support,Community Support - Physical Support,Community Support,NATIONWIDE CARE SERVICES,471122,03/12/2019,3362290,970.55,0.00,N/A,N/A
Physical Support,Community Support - Physical Support,Community Support,NATIONWIDE CARE SERVICES,471122,03/12/2019,3362291,528.89,0.00,N/A,N/A
Physical Support,Community Support - Physical Support,Community Support,NATIONWIDE CARE SERVICES,471122,03/12/2019,3362103,"1,008.92",0.00,N/A,N/A
Physical Support,Community Support - Physical Support,Community Support,NATIONWIDE CARE SERVICES,471122,03/12/2019,3362104,827.43,0.00,N/A,N/A
Physical Support,Community Support - Physical Support,Community Support,NATIONWIDE CARE SERVICES,471122,03/12/2019,3362111,937.92,0.00,N/A,N/A
Physical Support,Community Support - Physical Support,Community Support,NATIONWIDE CARE SERVICES,471122,03/12/2019,3362305,"1,029.12",0.00,N/A,N/A
Physical Support,Community Support - Physical Support,Community Support,NATIONWIDE CARE SERVICES,471122,03/12/2019,3362306,"1,029.12",0.00,N/A,N/A
Physical Support,Community Support - Physical Support,Community Support,NATIONWIDE CARE SERVICES,471122,03/12/2019,3362307,991.32,0.00,N/A,N/A
Physical Support,Community Support - Physical Support,Community Support,NATIONWIDE CARE SERVICES,471122,03/12/2019,3362308,"1,223.32",0.00,N/A,N/A
Physical Support,Community Support - Physical Support,Community Support,NATIONWIDE CARE SERVICES,471122,03/12/2019,3362311,722.88,0.00,N/A,N/A
Physical Support,Community Support - Physical Support,Community Support,NATIONWIDE CARE SERVICES,471122,03/12/2019,3362314,"1,103.24",0.00,N/A,N/A
Physical Support,Community Support - Physical Support,Community Support,NATIONWIDE CARE SERVICES,471122,03/12/2019,3362323,537.40,0.00,N/A,N/A
Physical Support,Community Support - Physical Support,Community Support,NATIONWIDE CARE SERVICES,471122,03/12/2019,3362324,632.82,0.00,N/A,N/A
Physical Support,Community Support - Physical Support,Community Support,NATIONWIDE CARE SERVICES,471122,03/12/2019,3362325,657.28,0.00,N/A,N/A
Physical Support,Community Support - Physical Support,Community Support,NATIONWIDE CARE SERVICES,471122,03/12/2019,3362130,844.68,0.00,N/A,N/A
Physical Support,Community Support - Physical Support,Community Support,NATIONWIDE CARE SERVICES,471122,03/12/2019,3362326,730.20,0.00,N/A,N/A
Physical Support,Community Support - Physical Support,Community Support,NATIONWIDE CARE SERVICES,471122,03/12/2019,3362327,820.51,0.00,N/A,N/A
Physical Support,Community Support - Physical Support,Community Support,NATIONWIDE CARE SERVICES,471122,03/12/2019,3362328,937.92,0.00,N/A,N/A
Physical Support,Community Support - Physical Support,Community Support,NATIONWIDE CARE SERVICES,471122,03/12/2019,3362331,"1,350.76",0.00,N/A,N/A
Mental Health Support,Mental Health - Mental Health Support,Mental Health,NATIONWIDE CARE SERVICES,471122,03/12/2019,3362177,600.80,0.00,N/A,N/A
Mental Health Support,Mental Health - Mental Health Support,Mental Health,NATIONWIDE CARE SERVICES,471122,03/12/2019,3362209,695.49,0.00,N/A,N/A
Mental Health Support,Mental Health - Mental Health Support,Mental Health,NATIONWIDE CARE SERVICES,471122,03/12/2019,3362398,802.48,0.00,N/A,N/A
Mental Health Support,Mental Health - Mental Health Support,Mental Health,NATIONWIDE CARE SERVICES,471122,03/12/2019,3362274,802.48,0.00,N/A,N/A
Mental Health Support,Mental Health - Mental Health Support,Mental Health,NATIONWIDE CARE SERVICES,471122,03/12/2019,3362333,632.93,0.00,N/A,N/A
Mental Health Support,Mental Health - Mental Health Support,Mental Health,NATIONWIDE CARE SERVICES,471122,03/12/2019,3362275,849.24,0.00,N/A,N/A
Non Delegated Schools Budget,Non Delegated School Expenditure,Schools Block,NCC RE ALL SAINTS COFE INFANTS,696444,03/12/2019,3361240,"1,177.00",0.00,N/A,N/A
Non Delegated Schools Budget,Non Delegated School Expenditure,Schools Block,NCC ROWAN GATE PRIMARY SCHOOL,722449,03/12/2019,3361273,790.00,0.00,N/A,N/A
General,Stores Road Depot & Fleet Management,"Strategic Partnerships, Planning & Streetpride",ND BROWN LTD,93859,03/12/2019,3362688,"1,700.00",0.00,Communities & Place,Commercial and Military and Private Vehi
Integrated Services,Agency Placements,Non-Schools,NEXUS FOSTERING LTD,189362,03/12/2019,3362572,"3,627.00",0.00,People Services - Children & Young People,Politics and Civic Affairs Services
Integrated Services,Agency Placements,Non-Schools,NEXUS FOSTERING LTD,189362,03/12/2019,3362574,"3,627.00",0.00,People Services - Children & Young People,Politics and Civic Affairs Services
Integrated Services,Agency Placements,Non-Schools,NEXUS FOSTERING LTD,189362,03/12/2019,3362578,"3,472.00",0.00,People Services - Children & Young People,Politics and Civic Affairs Services
Integrated Services,Agency Placements,Non-Schools,NEXUS FOSTERING LTD,189362,03/12/2019,3362582,"3,844.00",0.00,People Services - Children & Young People,Politics and Civic Affairs Services
Integrated Services,Agency Placements,Non-Schools,NEXUS FOSTERING LTD,189362,03/12/2019,3362501,"3,844.00",0.00,People Services - Children & Young People,Politics and Civic Affairs Services
Non Delegated Schools Budget,Non Delegated School Expenditure,Schools Block,NOTTINGHAM ACADEMY,452426,03/12/2019,3361264,"1,400.00",0.00,N/A,N/A
Economic Regeneration,Economic Regeneration,"Regeneration, Property & Housing",NOTTINGHAM CITY COUNCIL,3638,03/12/2019,3352575,"20,000.00",0.00,Communities & Place,Organizations and Clubs
Commissioning - Schools Block,Recoupment - Independent Special School Fees,Schools Block,NOTTINGHAMSHIRE COUNTY COUNCIL,34269,03/12/2019,3352599,590.40,0.00,People Services - Children & Young People,Education and Training Services
Non Delegated Schools Budget,Non Delegated School Expenditure,Schools Block,NOTTS CNTY CNCL DERRYMOUNT SCHOOL,124779,03/12/2019,3361272,850.00,0.00,N/A,N/A
Non Delegated Schools Budget,Non Delegated School Expenditure,Schools Block,OLDFIELDS HALL MIDDLE SCHOOL,815446,03/12/2019,3361259,504.00,0.00,N/A,N/A
Non Delegated Schools Budget,Non Delegated School Expenditure,Schools Block,OLDFIELDS HALL MIDDLE SCHOOL,815446,03/12/2019,3361260,504.00,0.00,N/A,N/A
Integrated Services,Agency Placements,Non-Schools,ORANGE GROVE FOSTERCARE,254396,03/12/2019,3362614,"3,341.18",0.00,People Services - Children & Young People,Healthcare Services
Integrated Services,Agency Placements,Non-Schools,ORANGE GROVE FOSTERCARE,254396,03/12/2019,3362617,"3,341.18",0.00,People Services - Children & Young People,Healthcare Services
Non Delegated Schools Budget,Non Delegated School Expenditure,Schools Block,ORMISTON ACADEMY TRUST,727458,03/12/2019,3361257,580.00,0.00,N/A,N/A
Non Delegated Schools Budget,Non Delegated School Expenditure,Schools Block,OUTWOOD ACADEMY CITY,470895,03/12/2019,3361225,960.00,0.00,N/A,N/A
Property Design & Maintenance,Building - Repairs & Maintenance,"Regeneration, Property & Housing",OVE ARUP AND PARTNERS,703470,03/12/2019,3362931,581.07,0.00,N/A,N/A
General,Stores Road Depot & Fleet Management,"Strategic Partnerships, Planning & Streetpride",PACE FUELCARE,474148,03/12/2019,3362588,"35,497.00",0.00,N/A,N/A
Learning Disability Support,Community Support - Learning Disability Support,Community Support,PATHWAY TO CARE LIMITED,1163472,03/12/2019,3362118,693.81,0.00,N/A,N/A
Mental Health Support,Community Support - Mental Health Support,Community Support,PATHWAY TO CARE LIMITED,1163472,03/12/2019,3362182,576.96,0.00,N/A,N/A
Physical Support,Community Support - Physical Support,Community Support,PATHWAY TO CARE LIMITED,1163472,03/12/2019,3362428,921.68,0.00,N/A,N/A
Physical Support,Community Support - Physical Support,Community Support,PATHWAY TO CARE LIMITED,1163472,03/12/2019,3362117,868.76,0.00,N/A,N/A
Customer Management,Welfare,Strategic Services and Organisational Development,PAYPOINT PAYMENT SERVICES LTD,1128473,03/12/2019,3363383,"1,676.89",0.00,N/A,N/A
Property Design & Maintenance,Building - Repairs & Maintenance,"Regeneration, Property & Housing",PENTAGON SPORT LIMITED,984482,03/12/2019,3361079,975.00,0.00,N/A,N/A
Culture & Business Development,Culture & Business Development,"Leisure, Culture and Tourism",PRESENTATION DESIGN SERVICES LTD,50431,03/12/2019,3363452,"1,475.00",0.00,Communities & Place,Editorial and Design and Graphic and Fin
Leisure,Leisure,"Leisure, Culture and Tourism",PRINTHOUSE DERBY LTD,52169,03/12/2019,3361175,610.00,0.00,Communities & Place,Printing and Photographic and Audio and
Adults Health and Housing,Capital,Capital,PRISM MEDICAL UK WESTHOLME DIVISION,126874,03/12/2019,3363449,"6,643.00",0.00,Disability Adaptions,Medical Equipment and Accessories and Su
Learning Disability Support,Community Support - Learning Disability Support,Community Support,RADIS COMMUNITY CARE,1709,03/12/2019,3362697,"1,791.76",0.00,N/A,N/A
Non Delegated Schools Budget,Non Delegated School Expenditure,Schools Block,RAWLINS ACADEMY,748466,03/12/2019,3361253,"1,171.00",0.00,N/A,N/A
Grounds Maintenance & Cleansing,Grounds Maintenance,"Strategic Partnerships, Planning & Streetpride",RCS PLANTS LTD,827444,03/12/2019,3363463,"4,460.69",0.00,N/A,N/A
Community Safety,Partnerships,Public Protection and Streetride,REBUILD EAST MIDLANDS,1194474,03/12/2019,3357398,"13,000.00",0.00,N/A,N/A
Early Help & Children�s Safeguarding,Children In Care,Non-Schools,REDACTED - PERSONAL DATA,425400,03/12/2019,3361876,614.05,0.00,N/A,N/A
Early Help & Children�s Safeguarding,Children In Care,Non-Schools,REDACTED - PERSONAL DATA,401397,03/12/2019,3361420,655.50,0.00,N/A,N/A
Early Help & Children�s Safeguarding,Children In Care,Non-Schools,REDACTED - PERSONAL DATA,1189472,03/12/2019,3361454,942.67,0.00,N/A,N/A
Early Help & Children�s Safeguarding,Children In Care,Non-Schools,REDACTED - PERSONAL DATA,1189472,03/12/2019,3361454,942.67,0.00,N/A,N/A
Commissioning,Commissioned Providers,Non-Schools,REDACTED - PERSONAL DATA,451401,03/12/2019,3362969,560.00,0.00,N/A,N/A
Learning Disability Support,Community Support - Learning Disability Support,Community Support,REDACTED - PERSONAL DATA,1196477,03/12/2019,3363356,"2,890.00",0.00,N/A,N/A
Learning Disability Support,Community Support - Learning Disability Support,Community Support,REDACTED - PERSONAL DATA,1196477,03/12/2019,3363357,"2,890.00",0.00,N/A,N/A
Learning Disability Support,Community Support - Learning Disability Support,Community Support,REDACTED - PERSONAL DATA,1196477,03/12/2019,3363377,"2,167.50",0.00,N/A,N/A
Learning Disability Support,Community Support - Learning Disability Support,Community Support,REDACTED - PERSONAL DATA,1196477,03/12/2019,3363378,"2,890.00",0.00,N/A,N/A
Learning Disability Support,Community Support - Learning Disability Support,Community Support,REDACTED - PERSONAL DATA,1196477,03/12/2019,3363339,"2,890.00",0.00,N/A,N/A
Learning Disability Support,Community Support - Learning Disability Support,Community Support,REDACTED - PERSONAL DATA,1196477,03/12/2019,3363355,"2,890.00",0.00,N/A,N/A
Physical Support,Community Support - Physical Support,Community Support,REDACTED - PERSONAL DATA,1151471,03/12/2019,3363365,873.72,0.00,N/A,N/A
Physical Support,Community Support - Physical Support,Community Support,REDACTED - PERSONAL DATA,1151471,03/12/2019,3363343,873.72,0.00,N/A,N/A
Physical Support,Community Support - Physical Support,Community Support,REDACTED - PERSONAL DATA,550450,03/12/2019,3361194,900.00,0.00,N/A,N/A
Shared Lives,Community Support - Shared Lives,Community Support,REDACTED - PERSONAL DATA,785446,03/12/2019,3362775,"1,460.44",0.00,N/A,N/A
Social Care Activities,Community Support - Social Care Activities,Community Support,REDACTED - PERSONAL DATA,12,03/12/2019,3359809,591.39,0.00,N/A,N/A
Social Care Activities,Community Support - Social Care Activities,Community Support,REDACTED - PERSONAL DATA,12,03/12/2019,3360794,"1,024.32",0.00,N/A,N/A
Culture & Business Development,Culture & Business Development,"Leisure, Culture and Tourism",REDACTED - PERSONAL DATA,1155471,03/12/2019,3363119,800.00,0.00,N/A,N/A
Culture & Business Development,Culture & Business Development,"Leisure, Culture and Tourism",REDACTED - PERSONAL DATA,12,03/12/2019,3360789,569.50,0.00,N/A,N/A
Learning & Inclusion,Inclusion & Intervention,Non-Schools,REDACTED - PERSONAL DATA,487399,03/12/2019,3361149,750.00,0.00,N/A,N/A
Early Help & Children�s Safeguarding,Integrated and Safeguarding Services Locality 2,Non-Schools,REDACTED - PERSONAL DATA,982475,03/12/2019,3363097,508.68,0.00,N/A,N/A
Early Help & Children�s Safeguarding,Integrated Services Locality 2,Non-Schools,REDACTED - PERSONAL DATA,1785,03/12/2019,3362721,595.00,0.00,People Services - Children & Young People,Farming Fishing Forestry and Wildlife Co
"Environmental Protection, Licensing, Housing",Licensing,"Communities, Environment & Regulatory Services",REDACTED - PERSONAL DATA,686448,03/12/2019,3361131,700.00,0.00,N/A,N/A
Mental Health Support,Mental Health - Mental Health Support,Mental Health,REDACTED - PERSONAL DATA,126345,03/12/2019,3363372,"1,681.64",0.00,N/A,N/A
Mental Health Support,Mental Health - Mental Health Support,Mental Health,REDACTED - PERSONAL DATA,126345,03/12/2019,3363332,"1,681.64",0.00,N/A,N/A
Mental Health Support,Mental Health - Mental Health Support,Mental Health,REDACTED - PERSONAL DATA,126345,03/12/2019,3363333,"1,681.64",0.00,N/A,N/A
Mental Health Support,Mental Health - Mental Health Support,Mental Health,REDACTED - PERSONAL DATA,126345,03/12/2019,3363340,"1,621.58",0.00,N/A,N/A
Mental Health Support,Mental Health - Mental Health Support,Mental Health,REDACTED - PERSONAL DATA,126345,03/12/2019,3363344,"1,681.64",0.00,N/A,N/A
Non Delegated Schools Budget,Non Delegated School Expenditure,Schools Block,REDACTED - PERSONAL DATA,1075469,03/12/2019,3363277,900.00,0.00,N/A,N/A
Commissioning - Schools Block,Recoupment - Independent Special School Fees,Schools Block,REDACTED - PERSONAL DATA,70458,03/12/2019,3363304,"1,863.40",0.00,N/A,N/A
Traffic & Transportation,Traffic & Transportation (inc Integrated Pass Transport),"Strategic Partnerships, Planning & Streetpride",REDACTED - PERSONAL DATA,1135473,03/12/2019,3362018,588.00,0.00,N/A,N/A
Traffic & Transportation,Traffic & Transportation (inc Integrated Pass Transport),"Strategic Partnerships, Planning & Streetpride",REDACTED - PERSONAL DATA,1135473,03/12/2019,3362023,786.00,0.00,N/A,N/A
Traffic & Transportation,Traffic & Transportation (inc Integrated Pass Transport),"Strategic Partnerships, Planning & Streetpride",REDACTED - PERSONAL DATA,113027,03/12/2019,3362020,"1,361.70",0.00,N/A,N/A
Support to Carers,Community Support - Support to Carers,Community Support,REDACTED - PERSONAL DATA,1192477,03/12/2019,3363368,"1,044.00",0.00,N/A,N/A
Support to Carers,Community Support - Support to Carers,Community Support,REDACTED - PERSONAL DATA,1192471,03/12/2019,3363350,560.00,0.00,N/A,N/A
Community Safety,Neighbourhood Boards,Public Protection and Streetride,REDACTED - PERSONAL DATA,12,03/12/2019,3362764,566.73,0.00,N/A,N/A
Community Safety,Neighbourhood Boards,Public Protection and Streetride,REDACTED - PERSONAL DATA,12,03/12/2019,3360419,700.00,0.00,N/A,N/A
Non Delegated Schools Budget,Non Delegated School Expenditure,Schools Block,RIDGEWAY INFANT SCHOOL,170354,03/12/2019,3363312,"10,371.78",0.00,N/A,N/A
Business Support,Business Support,Strategic Services and Organisational Development,ROYAL MAIL GROUP PLC,4194,03/12/2019,3362706,"6,203.78",0.00,Organisation & Governance,Transportation and Storage and Mail Serv
Democracy,Democracy,Governance and Assurance,ROYAL MAIL GROUP PLC,4194,03/12/2019,3351272,822.53,0.00,Organisation & Governance,Transportation and Storage and Mail Serv
Non Delegated Schools Budget,Non Delegated School Expenditure,Schools Block,ROYAL SCHOOL FOR THE DEAF,4196,03/12/2019,3361230,660.00,0.00,People Services - Children & Young People,Management and Business Professionals an
"Occupational Health, Safety, Markets & Bereavement Services",Markets,"Communities, Environment & Regulatory Services",RYBURN MEDIA LIMITED,1182479,03/12/2019,3362767,"2,700.00",0.00,N/A,N/A
Property Design & Maintenance,Building - Repairs & Maintenance,"Regeneration, Property & Housing",S S SYSTEMS LTD,188339,03/12/2019,3362939,"1,196.83",0.00,N/A,N/A
Non Delegated Schools Budget,Non Delegated School Expenditure,Schools Block,SAT RICHMOND PRIMARY SCHOOL,748490,03/12/2019,3361267,840.00,0.00,N/A,N/A
Non Delegated Schools Budget,Non Delegated School Expenditure,Schools Block,SCC MOAT HALL PRIMARY SCHOOL,520449,03/12/2019,3361235,"1,051.00",0.00,N/A,N/A
Learning Disability Support,Transitions and Ordinary Lives - Learning Disability Support,Transitions and Ordinary Lives,SENAD COMMUNITY LTD,388453,03/12/2019,3362354,"1,206.00",0.00,N/A,N/A
Learning Disability Support,Transitions and Ordinary Lives - Learning Disability Support,Transitions and Ordinary Lives,SENAD COMMUNITY LTD,388453,03/12/2019,3362248,"1,206.00",0.00,N/A,N/A
Libraries,Libraries,"Leisure, Culture and Tourism",SENATOR INTERNATIONAL LTD,101641,03/12/2019,3361165,"2,148.50",0.00,Communities & Place,Furniture and Furnishings
Non Delegated Schools Budget,Non Delegated School Expenditure,Schools Block,SHENSTONE LODGE SCHOOL,1033469,03/12/2019,3361226,506.00,0.00,N/A,N/A
Leisure,Leisure,"Leisure, Culture and Tourism",SHINING STARS NURSERY,471097,03/12/2019,3360749,"1,972.50",0.00,N/A,N/A
Non Delegated Schools Budget,Non Delegated School Expenditure,Schools Block,SIR CHRISTOPHER HATTON ACADEMY,815449,03/12/2019,3361274,860.00,0.00,N/A,N/A
Non Delegated Schools Budget,Non Delegated School Expenditure,Schools Block,SIR JONATHAN NORTH COLLEGE,1175469,03/12/2019,3361244,"2,115.00",0.00,N/A,N/A
Information Systems Support,Information Systems Support,Digital Services,SITEIMPROVE LTD,957491,03/12/2019,3361117,"4,272.47",0.00,N/A,N/A
Culture & Business Development,Culture & Business Development,"Leisure, Culture and Tourism",SOMMER EVENT FLOORING LTD,1141492,03/12/2019,3359792,936.00,0.00,N/A,N/A
Integrated Services,Integrated Disabled Children's Service,Non-Schools,SOUTHERN DERBYSHIRE LIFT PROJECT COMPANY (NO 1) LTD,1049485,03/12/2019,3362451,"36,608.78",0.00,N/A,N/A
Integrated Services,Integrated Disabled Children's Service,Non-Schools,SOUTHERN DERBYSHIRE LIFT PROJECT COMPANY (NO 1) LTD,1049485,03/12/2019,3362451,"2,898.00",0.00,N/A,N/A
Non Delegated Schools Budget,Non Delegated School Expenditure,Schools Block,ST BOTOLPHS CE PRIMARY SCHOOL,960475,03/12/2019,3361241,690.00,0.00,N/A,N/A
Non Delegated Schools Budget,Non Delegated School Expenditure,Schools Block,ST GEORGES ACADEMY TRUST,1083484,03/12/2019,3361233,880.00,0.00,N/A,N/A
Libraries,Libraries,"Leisure, Culture and Tourism",STAR BOOKS,1065475,03/12/2019,3362446,571.17,0.00,N/A,N/A
Highways & Engineering,Highways Maintenance & Street Lighting,"Strategic Partnerships, Planning & Streetpride",TARBY CONSTRUCTION LTD,194477,03/12/2019,3362710,"5,822.00",0.00,Communities & Place,Structures and Building and Construction
Highways & Engineering,Highways Maintenance & Street Lighting,"Strategic Partnerships, Planning & Streetpride",TARBY CONSTRUCTION LTD,194477,03/12/2019,3362712,"6,178.00",0.00,Communities & Place,Structures and Building and Construction
Highways & Engineering,Highways Maintenance & Street Lighting,"Strategic Partnerships, Planning & Streetpride",TARBY CONSTRUCTION LTD,194477,03/12/2019,3363462,"2,395.60",0.00,Communities & Place,Structures and Building and Construction
Highways & Engineering,Highways Maintenance & Street Lighting,"Strategic Partnerships, Planning & Streetpride",TARBY CONSTRUCTION LTD,194477,03/12/2019,3363462,"3,277.40",0.00,Communities & Place,Structures and Building and Construction
Non Delegated Schools Budget,Non Delegated School Expenditure,Schools Block,TEACHING PERSONNEL LTD,5067,03/12/2019,3363458,"2,541.00",0.00,N/A,N/A
Non Delegated Schools Budget,Non Delegated School Expenditure,Schools Block,TEACHING PERSONNEL LTD,5067,03/12/2019,3363459,"3,340.00",0.00,N/A,N/A
Non Delegated Schools Budget,Non Delegated School Expenditure,Schools Block,THE BARNBY ROAD TRUST,474059,03/12/2019,3361242,700.00,0.00,N/A,N/A
Culture & Business Development,Culture & Business Development,"Leisure, Culture and Tourism",THE KNIFE FORK AND SPOON CATERING CO LIMITED,1120479,03/12/2019,3363256,957.00,0.00,N/A,N/A
Culture & Business Development,Culture & Business Development,"Leisure, Culture and Tourism",THE KNIFE FORK AND SPOON CATERING CO LIMITED,1120479,03/12/2019,3363257,"1,044.00",0.00,N/A,N/A
Learning & Inclusion,Inclusion & Intervention,Non-Schools,THE OT PRACTICE LTD,872457,03/12/2019,3361115,795.00,0.00,N/A,N/A
Public Health,Drugs and Alcohol,Public Health,THE RIVERSIDE GROUP LTD,90997,03/12/2019,3361121,"26,287.58",0.00,People Services - Adults and Health,Healthcare Services
Strategic Housing,Housing and Advice,"Regeneration, Property & Housing",THE RIVERSIDE GROUP LTD,90997,03/12/2019,3337346,"101,346.19",0.00,Communities & Place,Healthcare Services
Strategic Housing,Housing and Advice,"Regeneration, Property & Housing",THE RIVERSIDE GROUP LTD,90997,03/12/2019,3338695,"102,938.34",0.00,Communities & Place,Healthcare Services
Early Help & Children�s Safeguarding,Integrated and Safeguarding Services Locality 3/4,Non-Schools,THE RIVERSIDE GROUP LTD,90997,03/12/2019,3362478,943.32,0.00,People Services - Children & Young People,Healthcare Services
Early Help & Children�s Safeguarding,Integrated and Safeguarding Services Locality 3/4,Non-Schools,THE RIVERSIDE GROUP LTD,90997,03/12/2019,3362479,875.94,0.00,People Services - Children & Young People,Healthcare Services
Early Help & Children�s Safeguarding,Integrated and Safeguarding Services Locality 3/4,Non-Schools,THE RIVERSIDE GROUP LTD,90997,03/12/2019,3362483,943.32,0.00,People Services - Children & Young People,Healthcare Services
Early Help & Children�s Safeguarding,Integrated and Safeguarding Services Locality 3/4,Non-Schools,THE RIVERSIDE GROUP LTD,90997,03/12/2019,3362484,943.32,0.00,People Services - Children & Young People,Healthcare Services
Early Help & Children�s Safeguarding,Integrated and Safeguarding Services Locality 3/4,Non-Schools,THE RIVERSIDE GROUP LTD,90997,03/12/2019,3362486,943.32,0.00,People Services - Children & Young People,Healthcare Services
Early Help & Children�s Safeguarding,Integrated and Safeguarding Services Locality 3/4,Non-Schools,THE RIVERSIDE GROUP LTD,90997,03/12/2019,3362487,943.32,0.00,People Services - Children & Young People,Healthcare Services
Early Help & Children�s Safeguarding,Integrated and Safeguarding Services Locality 3/4,Non-Schools,THE RIVERSIDE GROUP LTD,90997,03/12/2019,3362533,943.32,0.00,People Services - Children & Young People,Healthcare Services
Early Help & Children�s Safeguarding,Integrated and Safeguarding Services Locality 3/4,Non-Schools,THE RIVERSIDE GROUP LTD,90997,03/12/2019,3362536,943.32,0.00,People Services - Children & Young People,Healthcare Services
Early Help & Children�s Safeguarding,Integrated and Safeguarding Services Locality 3/4,Non-Schools,THE RIVERSIDE GROUP LTD,90997,03/12/2019,3362537,943.32,0.00,People Services - Children & Young People,Healthcare Services
Early Help & Children�s Safeguarding,Integrated and Safeguarding Services Locality 3/4,Non-Schools,THE RIVERSIDE GROUP LTD,90997,03/12/2019,3362538,664.80,0.00,People Services - Children & Young People,Healthcare Services
Early Help & Children�s Safeguarding,Integrated and Safeguarding Services Locality 3/4,Non-Schools,THE RIVERSIDE GROUP LTD,90997,03/12/2019,3362544,943.32,0.00,People Services - Children & Young People,Healthcare Services
Early Help & Children�s Safeguarding,Integrated and Safeguarding Services Locality 3/4,Non-Schools,THE RIVERSIDE GROUP LTD,90997,03/12/2019,3363516,943.32,0.00,People Services - Children & Young People,Healthcare Services
Early Help & Children�s Safeguarding,Integrated and Safeguarding Services Locality 3/4,Non-Schools,THE RIVERSIDE GROUP LTD,90997,03/12/2019,3363518,943.32,0.00,People Services - Children & Young People,Healthcare Services
Early Help & Children�s Safeguarding,Integrated and Safeguarding Services Locality 3/4,Non-Schools,THE RIVERSIDE GROUP LTD,90997,03/12/2019,3363520,943.32,0.00,People Services - Children & Young People,Healthcare Services
Early Help & Children�s Safeguarding,Integrated and Safeguarding Services Locality 3/4,Non-Schools,THE RIVERSIDE GROUP LTD,90997,03/12/2019,3363522,943.32,0.00,People Services - Children & Young People,Healthcare Services
Early Help & Children�s Safeguarding,Integrated and Safeguarding Services Locality 3/4,Non-Schools,THE RIVERSIDE GROUP LTD,90997,03/12/2019,3363523,943.32,0.00,People Services - Children & Young People,Healthcare Services
Early Help & Children�s Safeguarding,Integrated and Safeguarding Services Locality 3/4,Non-Schools,THE RIVERSIDE GROUP LTD,90997,03/12/2019,3363526,"1,141.00",0.00,People Services - Children & Young People,Healthcare Services
Early Help & Children�s Safeguarding,Integrated and Safeguarding Services Locality 3/4,Non-Schools,THE RIVERSIDE GROUP LTD,90997,03/12/2019,3363527,"1,031.80",0.00,People Services - Children & Young People,Healthcare Services
Early Help & Children�s Safeguarding,Integrated and Safeguarding Services Locality 3/4,Non-Schools,THE RIVERSIDE GROUP LTD,90997,03/12/2019,3363528,943.32,0.00,People Services - Children & Young People,Healthcare Services
Early Help & Children�s Safeguarding,Integrated and Safeguarding Services Locality 3/4,Non-Schools,THE RIVERSIDE GROUP LTD,90997,03/12/2019,3363530,808.56,0.00,People Services - Children & Young People,Healthcare Services
Early Help & Children�s Safeguarding,Integrated and Safeguarding Services Locality 3/4,Non-Schools,THE RIVERSIDE GROUP LTD,90997,03/12/2019,3363531,921.25,0.00,People Services - Children & Young People,Healthcare Services
Early Help & Children�s Safeguarding,Integrated and Safeguarding Services Locality 3/4,Non-Schools,THE RIVERSIDE GROUP LTD,90997,03/12/2019,3363533,522.34,0.00,People Services - Children & Young People,Healthcare Services
Early Help & Children�s Safeguarding,Integrated and Safeguarding Services Locality 3/4,Non-Schools,THE RIVERSIDE GROUP LTD,90997,03/12/2019,3363536,641.05,0.00,People Services - Children & Young People,Healthcare Services
Early Help & Children�s Safeguarding,Integrated and Safeguarding Services Locality 3/4,Non-Schools,THE RIVERSIDE GROUP LTD,90997,03/12/2019,3363537,997.20,0.00,People Services - Children & Young People,Healthcare Services
Early Help & Children�s Safeguarding,Integrated and Safeguarding Services Locality 3/4,Non-Schools,THE RIVERSIDE GROUP LTD,90997,03/12/2019,3363539,943.32,0.00,People Services - Children & Young People,Healthcare Services
Early Help & Children�s Safeguarding,Integrated and Safeguarding Services Locality 3/4,Non-Schools,THE RIVERSIDE GROUP LTD,90997,03/12/2019,3363540,664.80,0.00,People Services - Children & Young People,Healthcare Services
Early Help & Children�s Safeguarding,Integrated and Safeguarding Services Locality 3/4,Non-Schools,THE RIVERSIDE GROUP LTD,90997,03/12/2019,3363541,961.58,0.00,People Services - Children & Young People,Healthcare Services
Early Help & Children�s Safeguarding,Integrated and Safeguarding Services Locality 3/4,Non-Schools,THE RIVERSIDE GROUP LTD,90997,03/12/2019,3363542,909.63,0.00,People Services - Children & Young People,Healthcare Services
Non Delegated Schools Budget,Non Delegated School Expenditure,Schools Block,THE SPENCER ACADEMIES TRUST,942472,03/12/2019,3361231,"3,067.00",0.00,N/A,N/A
"Occupational Health, Safety, Markets & Bereavement Services",Bereavement Services,"Communities, Environment & Regulatory Services",THE YABOO CO LTD,4884,03/12/2019,3363514,847.74,0.00,Communities & Place,Musical Instruments and Games and Toys a
Learning Disability Support,Transitions and Ordinary Lives - Learning Disability Support,Transitions and Ordinary Lives,THERA EAST MIDLANDS,388484,03/12/2019,3362424,"10,610.88",0.00,N/A,N/A
Learning Disability Support,Transitions and Ordinary Lives - Learning Disability Support,Transitions and Ordinary Lives,THERA EAST MIDLANDS,388484,03/12/2019,3362113,"10,610.88",0.00,N/A,N/A
Property Design & Maintenance,Building - Repairs & Maintenance,"Regeneration, Property & Housing",TOM OLEARY BUILDING SERVICES LTD,602492,03/12/2019,3362958,785.80,0.00,N/A,N/A
Highways & Engineering,Highways Maintenance & Street Lighting,"Strategic Partnerships, Planning & Streetpride",TONY STACEY SERVICES LIMITED,667476,03/12/2019,3360363,600.00,0.00,N/A,N/A
Traffic & Transportation,Parking Services,"Strategic Partnerships, Planning & Streetpride",TRAFFIC ENFORCEMENT CENTRE,11586,03/12/2019,3362769,"8,000.00",0.00,N/A,N/A
Integrated Services,Agency Placements,Non-Schools,TREEHOUSE CARE FOSTERING SOLUTIONS LTD,88329,03/12/2019,3362495,"7,000.42",0.00,People Services - Children & Young People,Politics and Civic Affairs Services
Integrated Services,Agency Placements,Non-Schools,UK FOSTERING LTD,941505,03/12/2019,3362557,"3,255.00",0.00,N/A,N/A
Integrated Services,Agency Placements,Non-Schools,UK FOSTERING LTD,941505,03/12/2019,3362531,"3,255.00",0.00,N/A,N/A
Integrated Services,Agency Placements,Non-Schools,UK FOSTERING LTD,941505,03/12/2019,3362548,"4,207.01",0.00,N/A,N/A
Culture & Business Development,Culture & Business Development,"Leisure, Culture and Tourism",UK RIGGING,473823,03/12/2019,3363135,560.00,0.00,N/A,N/A
Mental Health Support,Community Support - Mental Health Support,Community Support,UP24 SEVEN SERVICES LTD,1166483,03/12/2019,3362183,"1,103.24",0.00,N/A,N/A
Mental Health Support,Community Support - Mental Health Support,Community Support,UP24 SEVEN SERVICES LTD,1166483,03/12/2019,3362386,"1,103.24",0.00,N/A,N/A
Adults Health and Housing,Capital,Capital,VINSHIRE PLUMBING and HEATING,5339,03/12/2019,3363310,"1,911.00",0.00,Healthy Housing Assistance,Structures and Building and Construction
Adults Health and Housing,Capital,Capital,VINSHIRE PLUMBING and HEATING,5339,03/12/2019,3363311,"3,750.60",0.00,Healthy Housing Assistance,Structures and Building and Construction
Refuse & Waste Management,Waste Disposal,"Strategic Partnerships, Planning & Streetpride",VITAL EARTH GB LTD,97458,03/12/2019,3363206,"54,298.00",0.00,Communities & Place,Industrial Cleaning Services
Learning Disability Support,Transitions and Ordinary Lives - Learning Disability Support,Transitions and Ordinary Lives,VOYAGE LTD,388487,03/12/2019,3362186,"1,296.00",0.00,N/A,N/A
Non Delegated Schools Budget,Non Delegated School Expenditure,Schools Block,WALES HIGH SCHOOL,1065479,03/12/2019,3361270,580.00,0.00,N/A,N/A
Non Delegated Schools Budget,Non Delegated School Expenditure,Schools Block,WEST PARK SCHOOL,8455,03/12/2019,3361232,517.00,0.00,N/A,N/A
Non Delegated Schools Budget,Non Delegated School Expenditure,Schools Block,WEST PARK SCHOOL,8455,03/12/2019,3361246,650.00,0.00,N/A,N/A
Traffic & Transportation,Traffic & Transportation (inc Integrated Pass Transport),"Strategic Partnerships, Planning & Streetpride",WESTERN CARS CO,1062473,03/12/2019,3362021,"1,351.50",0.00,N/A,N/A
Traffic & Transportation,Traffic & Transportation (inc Integrated Pass Transport),"Strategic Partnerships, Planning & Streetpride",WESTERN CARS CO,1062473,03/12/2019,3362029,"1,463.00",0.00,N/A,N/A
Non Delegated Schools Budget,Non Delegated School Expenditure,Schools Block,WESTWOOD INFANT AND NURSERY SCHOOL,1033468,03/12/2019,3361251,"2,205.00",0.00,N/A,N/A
Learning Disability Support,Community Support - Learning Disability Support,Community Support,WISE HOME CARE LIMITED,1152471,03/12/2019,3362185,912.64,0.00,N/A,N/A
Mental Health Support,Community Support - Mental Health Support,Community Support,WISE HOME CARE LIMITED,1152471,03/12/2019,3362388,"4,754.08",0.00,N/A,N/A
Mental Health Support,Community Support - Mental Health Support,Community Support,WISE HOME CARE LIMITED,1152471,03/12/2019,3362429,649.00,0.00,N/A,N/A
Mental Health Support,Community Support - Mental Health Support,Community Support,WISE HOME CARE LIMITED,1152471,03/12/2019,3362119,703.20,0.00,N/A,N/A
Mental Health Support,Community Support - Mental Health Support,Community Support,WISE HOME CARE LIMITED,1152471,03/12/2019,3362120,"2,719.08",0.00,N/A,N/A
Physical Support,Community Support - Physical Support,Community Support,WISE HOME CARE LIMITED,1152471,03/12/2019,3362337,680.08,0.00,N/A,N/A
Non Delegated Schools Budget,Non Delegated School Expenditure,Schools Block,WOODLAND VIEW PRIMARY SCHOOL,960478,03/12/2019,3361265,"1,090.00",0.00,N/A,N/A
Governance and Assurance,Governance and Assurance,Governance and Assurance,ZURICH INSURANCE,1183483,03/12/2019,3345336,"1,068.50",0.00,N/A,N/A
Regeneration Projects,Regeneration Projects,"Regeneration, Property & Housing",AECOM INFRASTRUCTURE AND ENVIRONMENT UK LTD,244421,05/12/2019,3323462,"6,618.75",0.00,Communities & Place,Engineering and Research and Technology
Non Delegated Schools Budget,Non Delegated School Expenditure,Schools Block,ALLESTREE WOODLANDS SCHOOL,125376,05/12/2019,3364043,"27,989.40",0.00,N/A,N/A
Integrated Services,Agency Placements,Non-Schools,ALLIANCE FOSTER CARE,265,05/12/2019,3363566,702.00,0.00,People Services - Children & Young People,Politics and Civic Affairs Services
Integrated Services,Agency Placements,Non-Schools,ALLIANCE FOSTER CARE,265,05/12/2019,3363568,"3,509.96",0.00,People Services - Children & Young People,Politics and Civic Affairs Services
Integrated Services,Agency Placements,Non-Schools,ALLIANCE FOSTER CARE,265,05/12/2019,3363571,"1,052.99",0.00,People Services - Children & Young People,Politics and Civic Affairs Services
General,Stores Road Depot & Fleet Management,"Strategic Partnerships, Planning & Streetpride",ALLSTAR BUSINESS SOLUTIONS LTD,135370,05/12/2019,3364489,"14,203.93",0.00,Communities & Place,Fuels and Fuel Additives and Lubricants
Grounds Maintenance & Cleansing,Cleansing (inc public conveniences & gullies),"Strategic Partnerships, Planning & Streetpride",AMA SUPPLIES LTD,285,05/12/2019,3363650,892.24,0.00,Communities & Place,Apparel and Luggage and Personal Care Pr
Business Support,Business Support,Strategic Services and Organisational Development,ANTALIS LIMITED,1059478,05/12/2019,3363993,"1,302.00",0.00,N/A,N/A
Traffic & Transportation,Traffic & Transportation (inc Integrated Pass Transport),"Strategic Partnerships, Planning & Streetpride",ARRIVA MIDLANDS LTD,864451,05/12/2019,3340596,"3,488.40",0.00,N/A,N/A
Public Health,Drugs and Alcohol,Public Health,ASDA STORES LTD,187667,05/12/2019,3363923,690.00,0.00,N/A,N/A
Public Health,Drugs and Alcohol,Public Health,ASDA STORES LTD,187667,05/12/2019,3363923,618.00,0.00,N/A,N/A
Community Safety and Integration,Partnerships,"Communities, Environment & Regulatory Services",ATLAS ENFORCEMENT LTD,904472,05/12/2019,3364506,"2,272.00",0.00,N/A,N/A
Community Safety and Integration,Partnerships,"Communities, Environment & Regulatory Services",ATLAS ENFORCEMENT LTD,904472,05/12/2019,3364507,"1,728.00",0.00,N/A,N/A
Community Safety and Integration,Partnerships,"Communities, Environment & Regulatory Services",ATLAS ENFORCEMENT LTD,904472,05/12/2019,3364508,"2,640.00",0.00,N/A,N/A
Community Safety and Integration,Partnerships,"Communities, Environment & Regulatory Services",ATLAS ENFORCEMENT LTD,904472,05/12/2019,3364510,"2,304.00",0.00,N/A,N/A
Neighbourhoods,Capital,Capital,ATLOW CONTRACTING LTD,423402,05/12/2019,3363477,"2,361.00",0.00,Our City Our River - Package 1,Environmental Services
Highways & Engineering,Highways Maintenance & Street Lighting,"Strategic Partnerships, Planning & Streetpride",AVERY WEIGH TRONIX,7488,05/12/2019,3364482,565.95,0.00,Communities & Place,Material Handling and Conditioning and S
Early Help & Children�s Safeguarding,Integrated and Safeguarding Services Locality 3/4,Non-Schools,BAGSHAWS RESIDENTIAL,108227,05/12/2019,3364149,"4,113.00",0.00,N/A,N/A
Highways & Engineering,Engineering,"Strategic Partnerships, Planning & Streetpride",BARLEYMANS LTD,125136,05/12/2019,3364030,640.00,0.00,Communities & Place,Building and Construction and Maintenanc
Learning & Inclusion,Adult Learning - SFA,Non-Schools,BCS LEARNING AND DEVELOPMENT LTD,127003,05/12/2019,3364589,637.50,0.00,People Services - Children & Young People,Education and Training Services
Early Help & Children�s Safeguarding,Integrated and Safeguarding Services Locality 3/4,Non-Schools,BLUEFRONT CARE,1113491,05/12/2019,3362650,"3,728.70",0.00,N/A,N/A
Early Help & Children�s Safeguarding,Integrated and Safeguarding Services Locality 3/4,Non-Schools,BLUEFRONT CARE,1113491,05/12/2019,3362510,"3,852.99",0.00,N/A,N/A
"Information, Computing & Technology","Information, Computing & Technology",Digital Services,BT PLC,1025473,05/12/2019,3362703,"3,534.33",0.00,N/A,N/A
Highways & Engineering,Highways Maintenance & Street Lighting,"Strategic Partnerships, Planning & Streetpride",BUILDBASE LTD,424,05/12/2019,3364350,"5,760.00",0.00,Communities & Place,Structures and Building and Construction
Integrated Services,Agency Placements,Non-Schools,CAPSTONE FOSTER CARE,125689,05/12/2019,3362653,"3,428.60",0.00,People Services - Children & Young People,Politics and Civic Affairs Services
Highways & Engineering,Highways Maintenance & Street Lighting,"Strategic Partnerships, Planning & Streetpride",CEMEX UK OPERATIONS LTD,1083469,05/12/2019,3364034,647.26,0.00,N/A,N/A
Highways & Engineering,Highways Maintenance & Street Lighting,"Strategic Partnerships, Planning & Streetpride",CEMEX UK OPERATIONS LTD,1083469,05/12/2019,3364037,690.42,0.00,N/A,N/A
Integrated Services,Agency Placements,Non-Schools,CORA FOUNDATION,469424,05/12/2019,3362506,"83,010.68",0.00,People Services - Children & Young People,Healthcare Services
"Environmental Protection, Licensing, Housing",Environmental Protection,"Communities, Environment & Regulatory Services",CROWFOOT KENNELS LTD,134352,05/12/2019,3363475,"4,120.00",0.00,Communities & Place,Farming Fishing Forestry and Wildlife Co
Public Health,Drugs and Alcohol,Public Health,DAY NIGHT LTD,187651,05/12/2019,3363925,800.00,0.00,N/A,N/A
Public Health,Drugs and Alcohol,Public Health,DAY NIGHT LTD,187651,05/12/2019,3363925,"1,250.00",0.00,N/A,N/A
Public Health,Drugs and Alcohol,Public Health,DAY NIGHT LTD,187651,05/12/2019,3363934,"1,208.00",0.00,N/A,N/A
Public Health,Drugs and Alcohol,Public Health,DAY NIGHT LTD,187651,05/12/2019,3363934,"1,866.00",0.00,N/A,N/A
Public Health,Drugs and Alcohol,Public Health,DAY NIGHT LTD,187651,05/12/2019,3363946,"1,806.00",0.00,N/A,N/A
Public Health,Drugs and Alcohol,Public Health,DAY NIGHT LTD,187651,05/12/2019,3363946,"1,892.00",0.00,N/A,N/A
Public Health,Adults,Public Health,DCBKR LTD,407398,05/12/2019,3364439,560.00,0.00,N/A,N/A
Public Health,Adults,Public Health,DCBKR LTD,407398,05/12/2019,3364439,560.00,0.00,N/A,N/A
Early Help & Children�s Safeguarding,Integrated and Safeguarding Services Locality 1/5,Non-Schools,DERBY CITY CARS LTD,573447,05/12/2019,3358839,"2,328.00",0.00,N/A,N/A
Strategic Housing,Housing and Advice,"Regeneration, Property & Housing",DERBY HOMES LTD,1078471,05/12/2019,3364781,"17,517.29",0.00,N/A,N/A
Strategic Housing,Housing and Advice,"Regeneration, Property & Housing",DERBY HOMES LTD,1078471,05/12/2019,3364781,"6,573.35",0.00,N/A,N/A
Strategic Housing,Housing and Advice,"Regeneration, Property & Housing",DERBY HOMES LTD,1078471,05/12/2019,3364781,"10,000.00",0.00,N/A,N/A
Strategic Housing,Housing and Advice,"Regeneration, Property & Housing",DERBY HOMES LTD,1078471,05/12/2019,3364781,"1,651.30",0.00,N/A,N/A
Strategic Housing,Housing and Advice,"Regeneration, Property & Housing",DERBY HOMES LTD,1078471,05/12/2019,3364781,"6,230.00",0.00,N/A,N/A
Strategic Housing,Housing and Advice,"Regeneration, Property & Housing",DERBY HOMES LTD,1078471,05/12/2019,3364781,"1,000.00",0.00,N/A,N/A
Strategic Housing,Housing and Advice,"Regeneration, Property & Housing",DERBY HOMES LTD,1078471,05/12/2019,3364781,880.03,0.00,N/A,N/A
Adults Health and Housing,Capital,Capital,DERBY HOMES LTD,1078471,05/12/2019,3364688,"576,653.26",0.00,N/A,N/A
Culture & Business Development,Culture & Business Development,"Leisure, Culture and Tourism",DERBY QUAD LTD,7833,05/12/2019,3364797,"18,750.00",0.00,Communities & Place,Travel and Food and Lodging and Entertai
Retained Housing Revenue Account,Retained Housing Revenue Account,"Regeneration, Property & Housing",DERBYSHIRE CARE SERVICES,1207,05/12/2019,3363228,"2,056.61",0.00,N/A,N/A
Public Health,Drugs and Alcohol,Public Health,DERBYSHIRE HEALTHCARE NHS FOUNDATION TRUST,107468,05/12/2019,3362736,"14,285.25",0.00,People Services - Adults and Health,Healthcare Services
Public Health,Drugs and Alcohol,Public Health,DERBYSHIRE HEALTHCARE NHS FOUNDATION TRUST,107468,05/12/2019,3362731,"15,625.00",0.00,People Services - Adults and Health,Healthcare Services
Public Health,Adults,Public Health,DERWENT VALLEY MEDICAL PRACTICE,408402,05/12/2019,3364429,740.00,0.00,N/A,N/A
Public Health,Adults,Public Health,DERWENT VALLEY MEDICAL PRACTICE,408402,05/12/2019,3364429,760.00,0.00,N/A,N/A
Facilities Management,Accommodation Buildings,Strategic Services and Organisational Development,EMS SECURITY SERVICES LTD,471442,05/12/2019,3364702,"14,371.81",0.00,Organisation & Governance,Defense and Law Enforcement and Security
Facilities Management,Accommodation Buildings,Strategic Services and Organisational Development,EMS SECURITY SERVICES LTD,471442,05/12/2019,3364703,"5,438.48",0.00,Organisation & Governance,Defense and Law Enforcement and Security
Leisure,Leisure,"Leisure, Culture and Tourism",EMS SECURITY SERVICES LTD,471442,05/12/2019,3346198,523.40,0.00,Communities & Place,Defense and Law Enforcement and Security
Retained Housing Revenue Account,Retained Housing Revenue Account,"Regeneration, Property & Housing",EMS SECURITY SERVICES LTD,471442,05/12/2019,3364528,"6,353.52",0.00,Communities & Place,Defense and Law Enforcement and Security
Traffic & Transportation,Parking Services,"Strategic Partnerships, Planning & Streetpride",EXCEL PARKING SERVICES LTD,124214,05/12/2019,3363239,666.02,0.00,Communities & Place,Defense and Law Enforcement and Security
Business Support,Business Support,Strategic Services and Organisational Development,FINANCIAL DATA MANAGEMENT LTD,1559,05/12/2019,3360695,"1,681.28",0.00,N/A,N/A
Business Support,Business Support,Strategic Services and Organisational Development,FINANCIAL DATA MANAGEMENT LTD,1559,05/12/2019,3360697,"1,971.84",0.00,N/A,N/A
Business Support,Business Support,Strategic Services and Organisational Development,FINANCIAL DATA MANAGEMENT LTD,1559,05/12/2019,3360700,"1,246.31",0.00,N/A,N/A
Procurement and Contracting,Accounts Payable (TSC),Finance,FISCAL TECHNOLOGIES LTD,1188470,05/12/2019,3364505,"73,855.00",0.00,N/A,N/A
Procurement and Contracting,Accounts Payable (TSC),Finance,FISCAL TECHNOLOGIES LTD,1188470,05/12/2019,3364505,"4,500.00",0.00,N/A,N/A
Integrated Services,Agency Placements,Non-Schools,FOOTSTEPS TO FUTURES,1117478,05/12/2019,3363748,"24,188.99",0.00,N/A,N/A
Integrated Services,Agency Placements,Non-Schools,FOSTERING PEOPLE LTD,8384,05/12/2019,3363548,"3,205.09",0.00,People Services - Children & Young People,Politics and Civic Affairs Services
Property Design & Maintenance,Building - Repairs & Maintenance,"Regeneration, Property & Housing",G2V RECRUITMENT GROUP LIMITED,886475,05/12/2019,3364320,"1,000.00",0.00,N/A,N/A
"Occupational Health, Safety, Markets & Bereavement Services",Bereavement Services,"Communities, Environment & Regulatory Services",GRANART LTD,1720,05/12/2019,3364001,630.00,0.00,Communities & Place,Politics and Civic Affairs Services
Commissioning - Schools Block,Recoupment - Independent Special School Fees,Schools Block,HARDWICK HOUSE SCHOOL LIMITED,894478,05/12/2019,3363185,"18,333.33",0.00,N/A,N/A
Social Care Activities,Direct Services - Social Care Activities,Direct Services,HATHERLEY COMMERCIAL SERVICES LTD,1008470,05/12/2019,3360778,612.12,0.00,N/A,N/A
Public Health,Adults,Public Health,HAVEN MEDICAL CENTRE,408400,05/12/2019,3364446,660.00,0.00,N/A,N/A
Grounds Maintenance & Cleansing,Grounds Maintenance,"Strategic Partnerships, Planning & Streetpride",HEALTHMATIC LTD,1863,05/12/2019,3363146,"1,150.42",0.00,Communities & Place,Structures and Building and Construction
Commissioning - Schools Block,Recoupment - Independent Special School Fees,Schools Block,HIGH GRANGE SPECIALIST SCHOOL,898469,05/12/2019,3357307,"33,185.00",0.00,N/A,N/A
Integrated Services,Agency Placements,Non-Schools,HILLCREST CHILDRENS 2 LTD,822475,05/12/2019,3287860,"17,116.96",0.00,N/A,N/A
Social Care Activities,Home First - Social Care Activities,Home First,HOLDSWORTH FOODS,1111476,05/12/2019,3363656,593.11,0.00,N/A,N/A
Physical Support,Direct Services - Physical Support,Direct Services,IMPERIAL,2285,05/12/2019,3363473,527.11,0.00,People Services - Adults and Health,Industrial Cleaning Services
Social Care Activities,Direct Services - Social Care Activities,Direct Services,IMPERIAL,2285,05/12/2019,3363469,773.67,0.00,People Services - Adults and Health,Industrial Cleaning Services
Social Care Activities,Direct Services - Social Care Activities,Direct Services,IMPERIAL,2285,05/12/2019,3363470,670.23,0.00,People Services - Adults and Health,Industrial Cleaning Services
Social Care Activities,Direct Services - Social Care Activities,Direct Services,IMPERIAL,2285,05/12/2019,3363472,975.05,0.00,People Services - Adults and Health,Industrial Cleaning Services
Democracy,Democracy,Governance and Assurance,JOHN E WRIGHT & CO LTD,2190,05/12/2019,3363457,624.50,0.00,Organisation & Governance,Printing and Photographic and Audio and
Leisure,Leisure,"Leisure, Culture and Tourism",KINGS ARMOURED SECURITY SERVICES,2618,05/12/2019,3363682,671.45,0.00,Communities & Place,National Defense and Public Order and Se
Learning & Inclusion,Adult Learning - SFA,Non-Schools,KONICA MINOLTA BUSINESS SOLUTIONS (UK) LIMITED,902473,05/12/2019,3337242,587.79,0.00,N/A,N/A
Non Delegated Schools Budget,Non Delegated School Expenditure,Schools Block,LEES BROOK COMMUNITY SCHOOL,117869,05/12/2019,3364051,"12,532.84",0.00,N/A,N/A
Learning & Inclusion,Adult Learning - SFA,Non-Schools,LINK ICT SERVICES LTD,154331,05/12/2019,3363521,"3,200.00",0.00,N/A,N/A
Culture & Business Development,Culture & Business Development,"Leisure, Culture and Tourism",LITTLE WOLF ENTERTAINMENT LTD,571456,05/12/2019,3363685,"50,000.00",0.00,N/A,N/A
Adults Health and Housing,Capital,Capital,MEDEQUIP ASSISTIVE TECH LTD,117887,05/12/2019,3364033,"1,164.00",0.00,Disabled Facilities Grant 96 Act,Medical Equipment and Accessories and Su
Adults Health and Housing,Capital,Capital,MEDEQUIP ASSISTIVE TECH LTD,117887,05/12/2019,3364036,"1,257.00",0.00,Disabled Facilities Grant 96 Act,Medical Equipment and Accessories and Su
Business Support,Business Support,Strategic Services and Organisational Development,MERCIA IMAGE LTD,2944,05/12/2019,3363673,"3,695.00",0.00,Organisation & Governance,Printing and Photographic and Audio and
Property Design & Maintenance,Building - Repairs & Maintenance,"Regeneration, Property & Housing",MIDLAND COUNTIES HEATING SERVICES,188123,05/12/2019,3364321,547.13,0.00,N/A,N/A
Public Health,Drugs and Alcohol,Public Health,N LAD LTD,189363,05/12/2019,3363950,606.00,0.00,N/A,N/A
Adults Health and Housing,Capital,Capital,NEWDEC INTERIORS LTD,1148479,05/12/2019,3362759,"3,540.00",0.00,N/A,N/A
"Environmental Protection, Housing Standards, Licensing, Emergency Planning",Environmental Protection,Public Protection and Streetride,NITON EQUIPMENT LIMITED,1163492,05/12/2019,3360368,"5,069.51",0.00,N/A,N/A
Integrated Services,Agency Placements,Non-Schools,NOTTINGHAMSHIRE COUNTY COUNCIL,186647,05/12/2019,3207889,"6,650.00",0.00,N/A,N/A
Learning Disability Support,Transitions and Ordinary Lives - Learning Disability Support,Transitions and Ordinary Lives,OAKLANDS SUPPORT LIMITED,1056472,05/12/2019,3363671,"2,701.76",0.00,N/A,N/A
"Environmental Protection, Housing Standards, Licensing, Emergency Planning",Environmental Protection,Public Protection and Streetride,OCTAVIAN,1123489,05/12/2019,3364583,"5,626.40",0.00,N/A,N/A
General,Stores Road Depot & Fleet Management,"Strategic Partnerships, Planning & Streetpride",PACE FUELCARE,997487,05/12/2019,3363557,558.10,0.00,N/A,N/A
Children and Young People,Capital,Capital,PEAK MULTI ACADEMY TRUST,1135469,05/12/2019,3351421,"1,632.00",0.00,N/A,N/A
Grounds Maintenance & Cleansing,Grounds Maintenance,"Strategic Partnerships, Planning & Streetpride",PITNEY BOWES SOFTWARE EUROPE LIMITED,580445,05/12/2019,3364490,"2,400.00",0.00,N/A,N/A
Highways & Engineering,Highways Maintenance & Street Lighting,"Strategic Partnerships, Planning & Streetpride",PITNEY BOWES SOFTWARE EUROPE LIMITED,580445,05/12/2019,3364490,"8,520.00",0.00,N/A,N/A
Information Systems Support,Information Systems Support,Digital Services,PITNEY BOWES SOFTWARE EUROPE LIMITED,580445,05/12/2019,3364490,"61,920.00",0.00,N/A,N/A
Traffic & Transportation,Network Mgmnt & Highway Dev Control,"Strategic Partnerships, Planning & Streetpride",PITNEY BOWES SOFTWARE EUROPE LIMITED,580445,05/12/2019,3364490,"6,120.00",0.00,N/A,N/A
Regeneration Projects,Regeneration Projects,"Regeneration, Property & Housing",POWERGEN A COMPANY OF E.ON,1044474,05/12/2019,3347944,960.75,0.00,N/A,N/A
Regeneration Projects,Regeneration Projects,"Regeneration, Property & Housing",POWERGEN A COMPANY OF E.ON,4011,05/12/2019,3345284,"1,512.28",0.00,N/A,N/A
Culture & Business Development,Culture & Business Development,"Leisure, Culture and Tourism",PPL PRS LTD,771442,05/12/2019,3362444,635.42,0.00,N/A,N/A
Social Care Activities,Home First - Social Care Activities,Home First,PRISM MEDICAL UK,899482,05/12/2019,3362448,"1,054.00",0.00,N/A,N/A
Social Care Activities,Home First - Social Care Activities,Home First,PRISM MEDICAL UK,899482,05/12/2019,3362449,930.00,0.00,N/A,N/A
Social Care Activities,Home First - Social Care Activities,Home First,PRISM MEDICAL UK,899482,05/12/2019,3363669,"1,162.00",0.00,N/A,N/A
Physical Support,Community Support - Physical Support,Community Support,REDACTED - PERSONAL DATA,1204474,05/12/2019,3364206,704.87,0.00,N/A,N/A
Physical Support,Community Support - Physical Support,Community Support,REDACTED - PERSONAL DATA,1204474,05/12/2019,3364219,"1,160.96",0.00,N/A,N/A
Physical Support,Community Support - Physical Support,Community Support,REDACTED - PERSONAL DATA,1204474,05/12/2019,3364159,"1,160.96",0.00,N/A,N/A
Physical Support,Community Support - Physical Support,Community Support,REDACTED - PERSONAL DATA,1204474,05/12/2019,3364190,"1,160.96",0.00,N/A,N/A
Support with Memory and Cognition,Community Support - Support with Memory and Cognition,Community Support,REDACTED - PERSONAL DATA,1151469,05/12/2019,3364186,591.84,0.00,N/A,N/A
Support with Memory and Cognition,Community Support - Support with Memory and Cognition,Community Support,REDACTED - PERSONAL DATA,1151469,05/12/2019,3364196,591.84,0.00,N/A,N/A
Highways & Engineering,Engineering,"Strategic Partnerships, Planning & Streetpride",REDACTED - PERSONAL DATA,1785,05/12/2019,3364021,720.00,0.00,Communities & Place,Farming Fishing Forestry and Wildlife Co
Early Help & Children�s Safeguarding,Integrated and Safeguarding Services Locality 2,Non-Schools,REDACTED - PERSONAL DATA,273400,05/12/2019,3361128,630.00,0.00,N/A,N/A
Early Help & Children�s Safeguarding,Integrated and Safeguarding Services Locality 2,Non-Schools,REDACTED - PERSONAL DATA,262408,05/12/2019,3361130,700.00,0.00,N/A,N/A
Early Help & Children�s Safeguarding,Integrated and Safeguarding Services Locality 2,Non-Schools,REDACTED - PERSONAL DATA,1198472,05/12/2019,3346338,810.00,0.00,N/A,N/A
Early Help & Children�s Safeguarding,Integrated and Safeguarding Services Locality 2,Non-Schools,REDACTED - PERSONAL DATA,642470,05/12/2019,3363123,850.00,0.00,N/A,N/A
Libraries,Libraries,"Leisure, Culture and Tourism",REDACTED - PERSONAL DATA,922474,05/12/2019,3363501,720.00,0.00,N/A,N/A
Traffic & Transportation,Traffic & Transportation (inc Integrated Pass Transport),"Strategic Partnerships, Planning & Streetpride",REDACTED - PERSONAL DATA,1138473,05/12/2019,3363608,600.00,0.00,N/A,N/A
Learning Disability Support,Transitions and Ordinary Lives - Learning Disability Support,Transitions and Ordinary Lives,REDACTED - PERSONAL DATA,941502,05/12/2019,3364185,636.72,0.00,N/A,N/A
Learning Disability Support,Transitions and Ordinary Lives - Learning Disability Support,Transitions and Ordinary Lives,REDACTED - PERSONAL DATA,941502,05/12/2019,3364201,636.72,0.00,N/A,N/A
Learning Disability Support,Transitions and Ordinary Lives - Learning Disability Support,Transitions and Ordinary Lives,REDACTED - PERSONAL DATA,179363,05/12/2019,3364151,887.24,0.00,N/A,N/A
Learning Disability Support,Transitions and Ordinary Lives - Learning Disability Support,Transitions and Ordinary Lives,REDACTED - PERSONAL DATA,179363,05/12/2019,3364152,887.24,0.00,N/A,N/A
Learning Disability Support,Transitions and Ordinary Lives - Learning Disability Support,Transitions and Ordinary Lives,REDACTED - PERSONAL DATA,179363,05/12/2019,3364164,887.24,0.00,N/A,N/A
Learning Disability Support,Transitions and Ordinary Lives - Learning Disability Support,Transitions and Ordinary Lives,REDACTED - PERSONAL DATA,179363,05/12/2019,3364181,887.24,0.00,N/A,N/A
Learning Disability Support,Transitions and Ordinary Lives - Learning Disability Support,Transitions and Ordinary Lives,REDACTED - PERSONAL DATA,179363,05/12/2019,3364191,887.24,0.00,N/A,N/A
Learning Disability Support,Transitions and Ordinary Lives - Learning Disability Support,Transitions and Ordinary Lives,REDACTED - PERSONAL DATA,179363,05/12/2019,3364192,887.24,0.00,N/A,N/A
Mental Health Support,Mental Health - Mental Health Support,Mental Health,REDACTED - PERSONAL DATA,1202470,05/12/2019,3364217,"1,179.32",0.00,N/A,N/A
Mental Health Support,Mental Health - Mental Health Support,Mental Health,REDACTED - PERSONAL DATA,1202470,05/12/2019,3364158,758.13,0.00,N/A,N/A
Mental Health Support,Mental Health - Mental Health Support,Mental Health,REDACTED - PERSONAL DATA,1202470,05/12/2019,3364189,"1,179.32",0.00,N/A,N/A
Mental Health Support,Mental Health - Mental Health Support,Mental Health,REDACTED - PERSONAL DATA,1202470,05/12/2019,3364197,"1,179.32",0.00,N/A,N/A
Mental Health Support,Mental Health - Mental Health Support,Mental Health,REDACTED - PERSONAL DATA,1202470,05/12/2019,3364205,"1,179.32",0.00,N/A,N/A
Support to Carers,Community Support - Support to Carers,Community Support,REDACTED - PERSONAL DATA,897474,05/12/2019,3364184,"3,016.00",0.00,N/A,N/A
Early Help & Children�s Safeguarding,Integrated and Safeguarding Services Locality 3/4,Non-Schools,RITE DIRECTIONS LTD,824442,05/12/2019,3362711,"3,141.00",0.00,N/A,N/A
Public Health,Drugs and Alcohol,Public Health,ROSEHILL PHARMACY LTD,187661,05/12/2019,3363937,"2,712.00",0.00,N/A,N/A
Public Health,Drugs and Alcohol,Public Health,ROSEHILL PHARMACY LTD,187661,05/12/2019,3363937,"3,742.00",0.00,N/A,N/A
Public Health,Drugs and Alcohol,Public Health,ROSEHILL PHARMACY LTD,187661,05/12/2019,3363847,"2,042.15",0.00,N/A,N/A
General,Stores Road Depot & Fleet Management,"Strategic Partnerships, Planning & Streetpride",S G TRANSPORT TRAINING AND LOGISTICS LTD,872459,05/12/2019,3364472,"2,837.93",0.00,N/A,N/A
General,Stores Road Depot & Fleet Management,"Strategic Partnerships, Planning & Streetpride",S G TRANSPORT TRAINING AND LOGISTICS LTD,872459,05/12/2019,3364472,"1,982.08",0.00,N/A,N/A
General,Stores Road Depot & Fleet Management,"Strategic Partnerships, Planning & Streetpride",S G TRANSPORT TRAINING AND LOGISTICS LTD,872459,05/12/2019,3364472,"2,837.93",0.00,N/A,N/A
General,Stores Road Depot & Fleet Management,"Strategic Partnerships, Planning & Streetpride",S G TRANSPORT TRAINING AND LOGISTICS LTD,872459,05/12/2019,3364472,812.08,0.00,N/A,N/A
General,Stores Road Depot & Fleet Management,"Strategic Partnerships, Planning & Streetpride",S G TRANSPORT TRAINING AND LOGISTICS LTD,872459,05/12/2019,3364472,"1,170.00",0.00,N/A,N/A
Neighbourhoods,Capital,Capital,SANTIA ASBESTOS MANAGEMENT LTD,1175486,05/12/2019,3364315,"7,300.00",0.00,N/A,N/A
Non Delegated Schools Budget,Non Delegated School Expenditure,Schools Block,SHAW EDUCATION TRUST,1200473,05/12/2019,3364045,"418,589.32",0.00,N/A,N/A
Integrated Services,Integrated Disabled Children's Service,Non-Schools,SOUTHERN DERBYSHIRE LIFT PROJECT COMPANY (NO 1) LTD,1049485,05/12/2019,3360609,"1,171.42",0.00,N/A,N/A
Integrated Services,Integrated Disabled Children's Service,Non-Schools,SOUTHERN DERBYSHIRE LIFT PROJECT COMPANY (NO 1) LTD,1049485,05/12/2019,3360609,843.68,0.00,N/A,N/A
Early Help & Children�s Safeguarding,Integrated and Safeguarding Services Locality 3/4,Non-Schools,STEP AHEAD SERVICES LTD,895474,05/12/2019,3363556,"2,282.14",0.00,N/A,N/A
Early Help & Children�s Safeguarding,Integrated and Safeguarding Services Locality 2,Non-Schools,STRAW AND PEARCE,1010477,05/12/2019,3363093,"1,154.80",0.00,N/A,N/A
Early Help & Children�s Safeguarding,Integrated and Safeguarding Services Locality 3/4,Non-Schools,TEEN SUPPORT SERVICES LIMITED,1145478,05/12/2019,3363560,"2,878.66",0.00,N/A,N/A
Strategic Housing,Housing and Advice,"Regeneration, Property & Housing",THE ASCOT HOTEL,5105,05/12/2019,3363652,630.00,0.00,Communities & Place,Travel and Food and Lodging and Entertai
Non Delegated Schools Budget,Non Delegated School Expenditure,Schools Block,THE HARMONY TRUST LTD,874450,05/12/2019,3364044,"7,032.86",0.00,N/A,N/A
Non Delegated Schools Budget,Non Delegated School Expenditure,Schools Block,THE HARMONY TRUST LTD,874452,05/12/2019,3363694,"20,939.90",0.00,N/A,N/A
Public Health,Adults,Public Health,THE PARK MEDICAL PRACTICE,406406,05/12/2019,3364440,820.00,0.00,N/A,N/A
Public Health,Sexual Health,Public Health,THE PARK MEDICAL PRACTICE,406406,05/12/2019,3364366,511.60,0.00,N/A,N/A
Early Help & Children�s Safeguarding,Integrated and Safeguarding Services Locality 3/4,Non-Schools,THE RIVERSIDE GROUP LTD,90997,05/12/2019,3362470,943.32,0.00,People Services - Children & Young People,Healthcare Services
Early Help & Children�s Safeguarding,Integrated and Safeguarding Services Locality 3/4,Non-Schools,THE RIVERSIDE GROUP LTD,90997,05/12/2019,3362471,943.32,0.00,People Services - Children & Young People,Healthcare Services
Early Help & Children�s Safeguarding,Integrated and Safeguarding Services Locality 3/4,Non-Schools,THE RIVERSIDE GROUP LTD,90997,05/12/2019,3362645,997.20,0.00,People Services - Children & Young People,Healthcare Services
Early Help & Children�s Safeguarding,Integrated and Safeguarding Services Locality 3/4,Non-Schools,THE RIVERSIDE GROUP LTD,90997,05/12/2019,3362474,"1,111.77",0.00,People Services - Children & Young People,Healthcare Services
Early Help & Children�s Safeguarding,Integrated and Safeguarding Services Locality 3/4,Non-Schools,THE RIVERSIDE GROUP LTD,90997,05/12/2019,3362476,997.20,0.00,People Services - Children & Young People,Healthcare Services
Early Help & Children�s Safeguarding,Integrated and Safeguarding Services Locality 3/4,Non-Schools,THE RIVERSIDE GROUP LTD,90997,05/12/2019,3362482,943.32,0.00,People Services - Children & Young People,Healthcare Services
Early Help & Children�s Safeguarding,Integrated and Safeguarding Services Locality 3/4,Non-Schools,THE RIVERSIDE GROUP LTD,90997,05/12/2019,3362540,943.32,0.00,People Services - Children & Young People,Healthcare Services
Early Help & Children�s Safeguarding,Integrated and Safeguarding Services Locality 3/4,Non-Schools,THE RIVERSIDE GROUP LTD,90997,05/12/2019,3362543,997.20,0.00,People Services - Children & Young People,Healthcare Services
Early Help & Children�s Safeguarding,Integrated and Safeguarding Services Locality 3/4,Non-Schools,THE RIVERSIDE GROUP LTD,90997,05/12/2019,3363550,943.32,0.00,People Services - Children & Young People,Healthcare Services
Early Help & Children�s Safeguarding,Integrated and Safeguarding Services Locality 3/4,Non-Schools,THE RIVERSIDE GROUP LTD,90997,05/12/2019,3363551,943.32,0.00,People Services - Children & Young People,Healthcare Services
Early Help & Children�s Safeguarding,Integrated and Safeguarding Services Locality 3/4,Non-Schools,THE RIVERSIDE GROUP LTD,90997,05/12/2019,3363552,943.32,0.00,People Services - Children & Young People,Healthcare Services
Early Help & Children�s Safeguarding,Integrated and Safeguarding Services Locality 3/4,Non-Schools,THE RIVERSIDE GROUP LTD,90997,05/12/2019,3363553,943.32,0.00,People Services - Children & Young People,Healthcare Services
Early Help & Children�s Safeguarding,Integrated and Safeguarding Services Locality 3/4,Non-Schools,THE RIVERSIDE GROUP LTD,90997,05/12/2019,3363554,943.32,0.00,People Services - Children & Young People,Healthcare Services
Early Help & Children�s Safeguarding,Integrated and Safeguarding Services Locality 3/4,Non-Schools,THE RIVERSIDE GROUP LTD,90997,05/12/2019,3363555,943.32,0.00,People Services - Children & Young People,Healthcare Services
Non Delegated Schools Budget,Non Delegated School Expenditure,Schools Block,THE SPENCER ACADEMIES TRUST,1202480,05/12/2019,3364047,"315,803.45",0.00,N/A,N/A
Neighbourhoods,Capital,Capital,THOMAS BOW LTD,40570,05/12/2019,3364024,"9,951.07",0.00,N/A,N/A
Property Design & Maintenance,Building - Repairs & Maintenance,"Regeneration, Property & Housing",THOMAS TELFORD LTD,951478,05/12/2019,3362748,"2,250.00",0.00,N/A,N/A
Social Care Activities,Home First - Social Care Activities,Home First,VALTECH LIMITED,1006474,05/12/2019,3362754,836.16,0.00,N/A,N/A
Public Health,Drugs and Alcohol,Public Health,WELFARE PHARMACY,194498,05/12/2019,3363939,"1,636.00",0.00,N/A,N/A
Public Health,Drugs and Alcohol,Public Health,WELFARE PHARMACY,194498,05/12/2019,3363939,"2,094.00",0.00,N/A,N/A
Public Health,Drugs and Alcohol,Public Health,WELFARE PHARMACY,194498,05/12/2019,3363840,"1,008.04",0.00,N/A,N/A
Adults Health and Housing,Capital,Capital,A M PROPERTY SERVICES LTD,121,10/12/2019,3367501,"11,120.00",0.00,Disabled Facilities Grant 96 Act,Building and Construction and Maintenanc
Adults Health and Housing,Capital,Capital,A M PROPERTY SERVICES LTD,121,10/12/2019,3367518,"1,590.00",0.00,Healthy Housing Assistance,Building and Construction and Maintenanc
"Occupational Health, Safety, Markets & Bereavement Services",Markets,"Communities, Environment & Regulatory Services",A R TENNANT LTD,905493,10/12/2019,3364745,700.00,0.00,N/A,N/A
Strategic Housing,Housing and Advice,"Regeneration, Property & Housing",A38 WOODLANDS,140,10/12/2019,3364594,546.00,0.00,N/A,N/A
Strategic Housing,Housing and Advice,"Regeneration, Property & Housing",A38 WOODLANDS,140,10/12/2019,3364599,546.00,0.00,N/A,N/A
Culture & Business Development,Culture & Business Development,"Leisure, Culture and Tourism",AC EVENTS CREWING LTD,1181468,10/12/2019,3365673,"4,449.60",0.00,N/A,N/A
Traffic & Transportation,Traffic & Transportation (inc Integrated Pass Transport),"Strategic Partnerships, Planning & Streetpride",ACE CARS,125638,10/12/2019,3365982,"3,672.00",0.00,N/A,N/A
Traffic & Transportation,Traffic & Transportation (inc Integrated Pass Transport),"Strategic Partnerships, Planning & Streetpride",ACE CARS,125638,10/12/2019,3366020,"4,819.50",0.00,N/A,N/A
Traffic & Transportation,Traffic & Transportation (inc Integrated Pass Transport),"Strategic Partnerships, Planning & Streetpride",ACE CARS,125638,10/12/2019,3365999,"4,090.00",0.00,N/A,N/A
Traffic & Transportation,Traffic & Transportation (inc Integrated Pass Transport),"Strategic Partnerships, Planning & Streetpride",ACE CARS,125638,10/12/2019,3366051,"4,190.00",0.00,N/A,N/A
Traffic & Transportation,Traffic & Transportation (inc Integrated Pass Transport),"Strategic Partnerships, Planning & Streetpride",ACE CARS,125638,10/12/2019,3365964,"3,790.00",0.00,N/A,N/A
Physical Support,Community Support - Physical Support,Community Support,ACTS HEALTH CARE LTD,1153477,10/12/2019,3367007,827.43,0.00,N/A,N/A
Physical Support,Community Support - Physical Support,Community Support,ACTS HEALTH CARE LTD,1153477,10/12/2019,3366666,634.28,0.00,N/A,N/A
Physical Support,Community Support - Physical Support,Community Support,ACTS HEALTH CARE LTD,1153477,10/12/2019,3366667,827.43,0.00,N/A,N/A
Highways & Engineering,Highways Maintenance & Street Lighting,"Strategic Partnerships, Planning & Streetpride",AGGREGATE INDUSTRIES UK LTD,117850,10/12/2019,3365648,575.12,0.00,Communities & Place,Building and Construction Machinery and
Highways & Engineering,Highways Maintenance & Street Lighting,"Strategic Partnerships, Planning & Streetpride",AGGREGATE INDUSTRIES UK LTD,117850,10/12/2019,3365651,691.32,0.00,Communities & Place,Building and Construction Machinery and
Highways & Engineering,Highways Maintenance & Street Lighting,"Strategic Partnerships, Planning & Streetpride",AGGREGATE INDUSTRIES UK LTD,117850,10/12/2019,3365652,896.82,0.00,Communities & Place,Building and Construction Machinery and
Highways & Engineering,Highways Maintenance & Street Lighting,"Strategic Partnerships, Planning & Streetpride",AGGREGATE INDUSTRIES UK LTD,117850,10/12/2019,3365654,"1,379.70",0.00,Communities & Place,Building and Construction Machinery and
Highways & Engineering,Highways Maintenance & Street Lighting,"Strategic Partnerships, Planning & Streetpride",AGGREGATE INDUSTRIES UK LTD,117850,10/12/2019,3365655,"1,734.14",0.00,Communities & Place,Building and Construction Machinery and
Highways & Engineering,Highways Maintenance & Street Lighting,"Strategic Partnerships, Planning & Streetpride",AGGREGATE INDUSTRIES UK LTD,117850,10/12/2019,3365657,669.28,0.00,Communities & Place,Building and Construction Machinery and
Highways & Engineering,Highways Maintenance & Street Lighting,"Strategic Partnerships, Planning & Streetpride",AGGREGATE INDUSTRIES UK LTD,117850,10/12/2019,3365659,922.55,0.00,Communities & Place,Building and Construction Machinery and
Grounds Maintenance & Cleansing,Grounds Maintenance,"Strategic Partnerships, Planning & Streetpride",AGROVISTA UK LTD,655459,10/12/2019,3365647,794.40,0.00,N/A,N/A
Early Help & Children�s Safeguarding,Early Help Services Locality 3/4,Non-Schools,ALDI STORES LIMITED,1029494,10/12/2019,3369616,"1,500.00",0.00,N/A,N/A
Early Help & Children�s Safeguarding,Early Help Services Locality 3/4,Non-Schools,ALDI STORES LIMITED,1029494,10/12/2019,3369617,"1,500.00",0.00,N/A,N/A
Grounds Maintenance & Cleansing,Cleansing (inc public conveniences & gullies),"Strategic Partnerships, Planning & Streetpride",ALL THINGS TRAINING APROPROS TRAINING LIMITED,186378,10/12/2019,3364470,697.50,0.00,Communities & Place,Education and Training Services
Non Delegated Schools Budget,Non Delegated School Expenditure,Schools Block,ALLESTREE WOODLANDS SCHOOL,125376,10/12/2019,3364043,"27,989.40",0.00,N/A,N/A
Grounds Maintenance & Cleansing,Grounds Maintenance,"Strategic Partnerships, Planning & Streetpride",AMA SUPPLIES LTD,285,10/12/2019,3365681,"1,788.90",0.00,Communities & Place,Apparel and Luggage and Personal Care Pr
Grounds Maintenance & Cleansing,Grounds Maintenance,"Strategic Partnerships, Planning & Streetpride",AMA SUPPLIES LTD,285,10/12/2019,3365681,"1,788.91",0.00,Communities & Place,Apparel and Luggage and Personal Care Pr
Social Care Activities,Mental Health - Social Care Activities,Mental Health,AMR SERVICES DERBY,520452,10/12/2019,3367483,520.00,0.00,N/A,N/A
Adults Health and Housing,Capital,Capital,AR CHOLERTON LTD,85,10/12/2019,3367519,"4,693.50",0.00,N/A,N/A
Neighbourhoods,Capital,Capital,ARCADIS UK LTD,1063470,10/12/2019,3364551,"9,538.50",0.00,N/A,N/A
Neighbourhoods,Capital,Capital,ARCADIS UK LTD,1063470,10/12/2019,3364563,"1,384.97",0.00,N/A,N/A
Early Help & Children�s Safeguarding,Integrated and Safeguarding Services Locality 2,Non-Schools,ARRIVA MIDLANDS LTD,87349,10/12/2019,3364794,513.00,0.00,People Services - Children & Young People,Transportation and Storage and Mail Serv
Highways & Engineering,Highways Maintenance & Street Lighting,"Strategic Partnerships, Planning & Streetpride",ARRIVING LTD,217400,10/12/2019,3365601,592.00,0.00,Communities & Place,Commercial and Military and Private Vehi
Culture & Business Development,Culture & Business Development,"Leisure, Culture and Tourism",ASHTEAD PLANT HIRE CO LTD,912476,10/12/2019,3365671,506.20,0.00,N/A,N/A
Libraries,Libraries,"Leisure, Culture and Tourism",ASKEWS AND HOLTS LIBRARY SERVICES LTD,876447,10/12/2019,3364786,574.41,0.00,N/A,N/A
Libraries,Libraries,"Leisure, Culture and Tourism",ASKEWS AND HOLTS LIBRARY SERVICES LTD,876447,10/12/2019,3364787,"1,108.55",0.00,N/A,N/A
Community Safety and Integration,Partnerships,"Communities, Environment & Regulatory Services",ASSN OF TOWN CENTRE MNGMNT,235408,10/12/2019,3364586,"1,150.00",0.00,Communities & Place,Travel and Food and Lodging and Entertai
Democracy,Democracy,Governance and Assurance,ASTECH CONSULTANTS LTD,93919,10/12/2019,3364612,"7,500.00",0.00,N/A,N/A
Information Systems Support,Information Systems Support,Digital Services,ASTECH CONSULTANTS LTD,93919,10/12/2019,3364560,"5,500.00",0.00,N/A,N/A
Leisure,Leisure,"Leisure, Culture and Tourism",ATLOW CONTRACTING LTD,423402,10/12/2019,3363115,"4,455.63",0.00,Communities & Place,Environmental Services
Leisure,Leisure,"Leisure, Culture and Tourism",ATLOW CONTRACTING LTD,423402,10/12/2019,3363115,"4,455.63",0.00,Communities & Place,Environmental Services
Leisure,Leisure,"Leisure, Culture and Tourism",ATLOW CONTRACTING LTD,423402,10/12/2019,3363115,"2,062.50",0.00,Communities & Place,Environmental Services
Leisure,Leisure,"Leisure, Culture and Tourism",ATLOW CONTRACTING LTD,423402,10/12/2019,3363115,"2,062.50",0.00,Communities & Place,Environmental Services
Leisure,Leisure,"Leisure, Culture and Tourism",ATLOW CONTRACTING LTD,423402,10/12/2019,3363115,"1,008.50",0.00,Communities & Place,Environmental Services
Leisure,Leisure,"Leisure, Culture and Tourism",ATLOW CONTRACTING LTD,423402,10/12/2019,3363115,"1,008.50",0.00,Communities & Place,Environmental Services
Neighbourhoods,Capital,Capital,ATLOW CONTRACTING LTD,423402,10/12/2019,3363115,588.00,0.00,N/A,N/A
Neighbourhoods,Capital,Capital,ATLOW CONTRACTING LTD,423402,10/12/2019,3363115,588.00,0.00,N/A,N/A
Property Design & Maintenance,Building - Repairs & Maintenance,"Regeneration, Property & Housing",B & K PROPERTY SERVICES LTD,187862,10/12/2019,3367171,535.00,0.00,N/A,N/A
Refuse & Waste Management,Waste Disposal,"Strategic Partnerships, Planning & Streetpride",BIFFA WASTE SERVICES LTD,485,10/12/2019,3363200,"3,795.92",0.00,Communities & Place,Environmental Services
Refuse & Waste Management,Waste Disposal,"Strategic Partnerships, Planning & Streetpride",BIFFA WASTE SERVICES LTD,485,10/12/2019,3363200,"28,165.21",0.00,Communities & Place,Environmental Services
"Occupational Health, Safety, Markets & Bereavement Services",Markets,"Communities, Environment & Regulatory Services",BLACK APRICOT CREATIVE,400444,10/12/2019,3364499,"9,775.95",0.00,Communities & Place,Management and Business Professionals an
Grounds Maintenance & Cleansing,Cleansing (inc public conveniences & gullies),"Strategic Partnerships, Planning & Streetpride",BUNZL CLEANING AND HYGIENE SUPPLIES,961498,10/12/2019,3367425,"1,172.63",0.00,N/A,N/A
Non Delegated Schools Budget,Non Delegated School Expenditure,Schools Block,BUSY BEES,1078486,10/12/2019,3369606,924.00,0.00,N/A,N/A
Physical Support,Community Support - Physical Support,Community Support,BWA HEALTH AND CARE SERVICE LTD,1089474,10/12/2019,3366343,"1,538.44",0.00,N/A,N/A
Physical Support,Community Support - Physical Support,Community Support,BWA HEALTH AND CARE SERVICE LTD,1089474,10/12/2019,3366347,762.28,0.00,N/A,N/A
Physical Support,Community Support - Physical Support,Community Support,BWA HEALTH AND CARE SERVICE LTD,1089474,10/12/2019,3366348,539.96,0.00,N/A,N/A
Physical Support,Community Support - Physical Support,Community Support,BWA HEALTH AND CARE SERVICE LTD,1089474,10/12/2019,3366204,"1,233.22",0.00,N/A,N/A
Physical Support,Community Support - Physical Support,Community Support,BWA HEALTH AND CARE SERVICE LTD,1089474,10/12/2019,3366210,"1,715.08",0.00,N/A,N/A
Physical Support,Community Support - Physical Support,Community Support,BWA HEALTH AND CARE SERVICE LTD,1089474,10/12/2019,3366452,621.33,0.00,N/A,N/A
Physical Support,Community Support - Physical Support,Community Support,BWA HEALTH AND CARE SERVICE LTD,1089474,10/12/2019,3366453,606.48,0.00,N/A,N/A
Physical Support,Community Support - Physical Support,Community Support,BWA HEALTH AND CARE SERVICE LTD,1089474,10/12/2019,3366576,779.32,0.00,N/A,N/A
Physical Support,Community Support - Physical Support,Community Support,BWA HEALTH AND CARE SERVICE LTD,1089474,10/12/2019,3366766,"1,100.74",0.00,N/A,N/A
Physical Support,Community Support - Physical Support,Community Support,BWA HEALTH AND CARE SERVICE LTD,1089474,10/12/2019,3366774,"1,715.08",0.00,N/A,N/A
Physical Support,Community Support - Physical Support,Community Support,BWA HEALTH AND CARE SERVICE LTD,1089474,10/12/2019,3367029,"1,538.44",0.00,N/A,N/A
Physical Support,Community Support - Physical Support,Community Support,BWA HEALTH AND CARE SERVICE LTD,1089474,10/12/2019,3367030,539.96,0.00,N/A,N/A
Integrated Services,Agency Placements,Non-Schools,BY THE BRIDGE LTD,577451,10/12/2019,3363558,"3,950.79",0.00,N/A,N/A
Mental Health Support,Community Support - Mental Health Support,Community Support,CEDAR HOUSE EXTRA CARE DCS,537474,10/12/2019,3367241,697.59,0.00,N/A,N/A
Physical Support,Community Support - Physical Support,Community Support,CEDAR HOUSE EXTRA CARE DCS,537474,10/12/2019,3366171,843.21,0.00,N/A,N/A
Physical Support,Community Support - Physical Support,Community Support,CEDAR HOUSE EXTRA CARE DCS,537474,10/12/2019,3366178,"1,124.28",0.00,N/A,N/A
Physical Support,Community Support - Physical Support,Community Support,CEDAR HOUSE EXTRA CARE DCS,537474,10/12/2019,3366087,"1,008.92",0.00,N/A,N/A
Physical Support,Community Support - Physical Support,Community Support,CEDAR HOUSE EXTRA CARE DCS,537474,10/12/2019,3366088,"1,211.72",0.00,N/A,N/A
Physical Support,Community Support - Physical Support,Community Support,CEDAR HOUSE EXTRA CARE DCS,537474,10/12/2019,3366547,776.12,0.00,N/A,N/A
Physical Support,Community Support - Physical Support,Community Support,CEDAR HOUSE EXTRA CARE DCS,537474,10/12/2019,3366315,"1,100.96",0.00,N/A,N/A
Physical Support,Community Support - Physical Support,Community Support,CEDAR HOUSE EXTRA CARE DCS,537474,10/12/2019,3366317,"1,199.16",0.00,N/A,N/A
Physical Support,Community Support - Physical Support,Community Support,CEDAR HOUSE EXTRA CARE DCS,537474,10/12/2019,3366548,900.92,0.00,N/A,N/A
Physical Support,Community Support - Physical Support,Community Support,CEDAR HOUSE EXTRA CARE DCS,537474,10/12/2019,3366551,970.11,0.00,N/A,N/A
Physical Support,Community Support - Physical Support,Community Support,CEDAR HOUSE EXTRA CARE DCS,537474,10/12/2019,3366404,627.29,0.00,N/A,N/A
Physical Support,Community Support - Physical Support,Community Support,CEDAR HOUSE EXTRA CARE DCS,537474,10/12/2019,3366414,"1,124.08",0.00,N/A,N/A
Physical Support,Community Support - Physical Support,Community Support,CEDAR HOUSE EXTRA CARE DCS,537474,10/12/2019,3366866,"1,823.12",0.00,N/A,N/A
Physical Support,Community Support - Physical Support,Community Support,CEDAR HOUSE EXTRA CARE DCS,537474,10/12/2019,3366873,"1,103.24",0.00,N/A,N/A
Physical Support,Community Support - Physical Support,Community Support,CEDAR HOUSE EXTRA CARE DCS,537474,10/12/2019,3366732,555.92,0.00,N/A,N/A
Physical Support,Community Support - Physical Support,Community Support,CEDAR HOUSE EXTRA CARE DCS,537474,10/12/2019,3366734,762.28,0.00,N/A,N/A
Sensory Support,Community Support - Sensory Support,Community Support,CEDAR HOUSE EXTRA CARE DCS,537474,10/12/2019,3366412,959.12,0.00,N/A,N/A
Sensory Support,Community Support - Sensory Support,Community Support,CEDAR HOUSE EXTRA CARE DCS,537474,10/12/2019,3366653,959.12,0.00,N/A,N/A
Mental Health Support,Mental Health - Mental Health Support,Mental Health,CEDAR HOUSE EXTRA CARE DCS,537474,10/12/2019,3366089,716.84,0.00,N/A,N/A
Commissioning,Commissioned Providers,Non-Schools,CHANGE GROW LIVE,1201476,10/12/2019,3364965,"3,512.00",0.00,N/A,N/A
Traffic & Transportation,Traffic & Transportation (inc Integrated Pass Transport),"Strategic Partnerships, Planning & Streetpride",CHELLASTON CARS UK LTD,1007486,10/12/2019,3365942,871.70,0.00,N/A,N/A
Traffic & Transportation,Traffic & Transportation (inc Integrated Pass Transport),"Strategic Partnerships, Planning & Streetpride",CHELLASTON CARS UK LTD,1007486,10/12/2019,3365942,528.30,0.00,N/A,N/A
Traffic & Transportation,Traffic & Transportation (inc Integrated Pass Transport),"Strategic Partnerships, Planning & Streetpride",CHELLASTON CARS UK LTD,1007486,10/12/2019,3365943,"1,665.00",0.00,N/A,N/A
Early Help & Children�s Safeguarding,Children In Care,Non-Schools,CHILDREN FIRST DERBY,794,10/12/2019,3365686,"11,390.00",0.00,People Services - Children & Young People,Healthcare Services
Traffic & Transportation,Parking Services,"Strategic Partnerships, Planning & Streetpride",CHIPSIDE LTD,926469,10/12/2019,3367408,760.00,0.00,N/A,N/A
Traffic & Transportation,Parking Services,"Strategic Partnerships, Planning & Streetpride",CHIPSIDE LTD,926469,10/12/2019,3367426,"11,970.00",0.00,N/A,N/A
Traffic & Transportation,Parking Services,"Strategic Partnerships, Planning & Streetpride",CHIPSIDE LTD,926469,10/12/2019,3367426,"11,970.00",0.00,N/A,N/A
Neighbourhoods,Capital,Capital,CHIPSIDE LTD,926469,10/12/2019,3367416,"3,600.00",0.00,N/A,N/A
Neighbourhoods,Capital,Capital,CHIPSIDE LTD,926469,10/12/2019,3367419,"3,906.00",0.00,N/A,N/A
Highways & Engineering,Highways Maintenance & Street Lighting,"Strategic Partnerships, Planning & Streetpride",CIPFA BUSINESS,124324,10/12/2019,3364026,"1,495.00",0.00,Communities & Place,Education and Training Services
Chief Executives,Capital,Capital,CIVICA UK LTD,44729,10/12/2019,3364791,"2,720.00",0.00,ICT Stabilisation - Hardware Renewal,Engineering and Research and Technology
Property Design & Maintenance,Building - Repairs & Maintenance,"Regeneration, Property & Housing",CLC CONTRACTORS LTD,1002482,10/12/2019,3367210,"1,099.50",0.00,N/A,N/A
Adults Health and Housing,Capital,Capital,CLOSOMAT LTD,921492,10/12/2019,3367398,"5,210.00",0.00,N/A,N/A
Non Delegated Schools Budget,Non Delegated School Expenditure,Schools Block,COTTAGE PRIVATE  DAY NURSERY,774,10/12/2019,3369611,"1,134.00",0.00,N/A,N/A
Learning Disability Support,Transitions and Ordinary Lives - Learning Disability Support,Transitions and Ordinary Lives,CREATIVE SUPPORT LTD,1026475,10/12/2019,3366100,"5,043.52",0.00,N/A,N/A
Learning Disability Support,Transitions and Ordinary Lives - Learning Disability Support,Transitions and Ordinary Lives,CREATIVE SUPPORT LTD,1026475,10/12/2019,3366101,"4,906.16",0.00,N/A,N/A
Learning Disability Support,Transitions and Ordinary Lives - Learning Disability Support,Transitions and Ordinary Lives,CREATIVE SUPPORT LTD,1026475,10/12/2019,3366103,"6,708.52",0.00,N/A,N/A
Learning Disability Support,Transitions and Ordinary Lives - Learning Disability Support,Transitions and Ordinary Lives,CREATIVE SUPPORT LTD,1026475,10/12/2019,3366104,"6,708.52",0.00,N/A,N/A
Learning Disability Support,Transitions and Ordinary Lives - Learning Disability Support,Transitions and Ordinary Lives,CREATIVE SUPPORT LTD,1026475,10/12/2019,3366105,"6,708.52",0.00,N/A,N/A
Learning Disability Support,Transitions and Ordinary Lives - Learning Disability Support,Transitions and Ordinary Lives,CREATIVE SUPPORT LTD,1026475,10/12/2019,3366107,"1,005.32",0.00,N/A,N/A
Learning Disability Support,Transitions and Ordinary Lives - Learning Disability Support,Transitions and Ordinary Lives,CREATIVE SUPPORT LTD,1026475,10/12/2019,3366349,"4,906.16",0.00,N/A,N/A
Learning Disability Support,Transitions and Ordinary Lives - Learning Disability Support,Transitions and Ordinary Lives,CREATIVE SUPPORT LTD,1026475,10/12/2019,3366350,"5,043.52",0.00,N/A,N/A
Learning Disability Support,Transitions and Ordinary Lives - Learning Disability Support,Transitions and Ordinary Lives,CREATIVE SUPPORT LTD,1026475,10/12/2019,3366360,"1,883.16",0.00,N/A,N/A
Learning Disability Support,Transitions and Ordinary Lives - Learning Disability Support,Transitions and Ordinary Lives,CREATIVE SUPPORT LTD,1026475,10/12/2019,3366219,"5,043.52",0.00,N/A,N/A
Learning Disability Support,Transitions and Ordinary Lives - Learning Disability Support,Transitions and Ordinary Lives,CREATIVE SUPPORT LTD,1026475,10/12/2019,3366454,"5,043.52",0.00,N/A,N/A
Learning Disability Support,Transitions and Ordinary Lives - Learning Disability Support,Transitions and Ordinary Lives,CREATIVE SUPPORT LTD,1026475,10/12/2019,3366455,"4,906.16",0.00,N/A,N/A
Learning Disability Support,Transitions and Ordinary Lives - Learning Disability Support,Transitions and Ordinary Lives,CREATIVE SUPPORT LTD,1026475,10/12/2019,3366465,"5,043.52",0.00,N/A,N/A
Learning Disability Support,Transitions and Ordinary Lives - Learning Disability Support,Transitions and Ordinary Lives,CREATIVE SUPPORT LTD,1026475,10/12/2019,3366468,919.12,0.00,N/A,N/A
Learning Disability Support,Transitions and Ordinary Lives - Learning Disability Support,Transitions and Ordinary Lives,CREATIVE SUPPORT LTD,1026475,10/12/2019,3367043,"4,906.16",0.00,N/A,N/A
Learning Disability Support,Transitions and Ordinary Lives - Learning Disability Support,Transitions and Ordinary Lives,CREATIVE SUPPORT LTD,1026475,10/12/2019,3366579,"4,906.16",0.00,N/A,N/A
Learning Disability Support,Transitions and Ordinary Lives - Learning Disability Support,Transitions and Ordinary Lives,CREATIVE SUPPORT LTD,1026475,10/12/2019,3366577,"4,906.16",0.00,N/A,N/A
Learning Disability Support,Transitions and Ordinary Lives - Learning Disability Support,Transitions and Ordinary Lives,CREATIVE SUPPORT LTD,1026475,10/12/2019,3366925,"4,906.16",0.00,N/A,N/A
Learning Disability Support,Transitions and Ordinary Lives - Learning Disability Support,Transitions and Ordinary Lives,CREATIVE SUPPORT LTD,1026475,10/12/2019,3366926,"5,043.52",0.00,N/A,N/A
Learning Disability Support,Transitions and Ordinary Lives - Learning Disability Support,Transitions and Ordinary Lives,CREATIVE SUPPORT LTD,1026475,10/12/2019,3366928,"4,906.16",0.00,N/A,N/A
Learning Disability Support,Transitions and Ordinary Lives - Learning Disability Support,Transitions and Ordinary Lives,CREATIVE SUPPORT LTD,1026475,10/12/2019,3366929,"5,043.52",0.00,N/A,N/A
Learning Disability Support,Transitions and Ordinary Lives - Learning Disability Support,Transitions and Ordinary Lives,CREATIVE SUPPORT LTD,1026475,10/12/2019,3366783,"4,906.16",0.00,N/A,N/A
Learning Disability Support,Transitions and Ordinary Lives - Learning Disability Support,Transitions and Ordinary Lives,CREATIVE SUPPORT LTD,1026475,10/12/2019,3366784,"5,043.52",0.00,N/A,N/A
Learning Disability Support,Transitions and Ordinary Lives - Learning Disability Support,Transitions and Ordinary Lives,CREATIVE SUPPORT LTD,1026475,10/12/2019,3367032,"4,700.16",0.00,N/A,N/A
Traffic & Transportation,Traffic & Transportation (inc Integrated Pass Transport),"Strategic Partnerships, Planning & Streetpride",CROWN CARS Derby LTD,112999,10/12/2019,3365953,"1,518.10",0.00,N/A,N/A
Traffic & Transportation,Traffic & Transportation (inc Integrated Pass Transport),"Strategic Partnerships, Planning & Streetpride",CROWN CARS Derby LTD,112999,10/12/2019,3365954,"1,056.85",0.00,N/A,N/A
Traffic & Transportation,Traffic & Transportation (inc Integrated Pass Transport),"Strategic Partnerships, Planning & Streetpride",CROWN CARS Derby LTD,112999,10/12/2019,3365954,"1,056.85",0.00,N/A,N/A
Traffic & Transportation,Traffic & Transportation (inc Integrated Pass Transport),"Strategic Partnerships, Planning & Streetpride",CROWN CARS Derby LTD,112999,10/12/2019,3365955,"1,280.00",0.00,N/A,N/A
Traffic & Transportation,Traffic & Transportation (inc Integrated Pass Transport),"Strategic Partnerships, Planning & Streetpride",CROWN CARS Derby LTD,112999,10/12/2019,3366019,"1,956.00",0.00,N/A,N/A
Traffic & Transportation,Traffic & Transportation (inc Integrated Pass Transport),"Strategic Partnerships, Planning & Streetpride",CROWN CARS Derby LTD,112999,10/12/2019,3365998,"1,763.20",0.00,N/A,N/A
Traffic & Transportation,Traffic & Transportation (inc Integrated Pass Transport),"Strategic Partnerships, Planning & Streetpride",CROWN CARS Derby LTD,112999,10/12/2019,3366003,896.00,0.00,N/A,N/A
"Information, Computing & Technology","Information, Computing & Technology",Digital Services,CROWN HOSTING DATA CENTRES LTD,470548,10/12/2019,3364570,"2,211.39",0.00,Organisation & Governance,Information Technology Broadcasting and
"Information, Computing & Technology","Information, Computing & Technology",Digital Services,CROWN HOSTING DATA CENTRES LTD,470548,10/12/2019,3367362,"1,314.21",0.00,Organisation & Governance,Information Technology Broadcasting and
Commissioning - Schools Block,Recoupment - Independent Special School Fees,Schools Block,CYGNET NW LTD,812451,10/12/2019,3327256,"2,072.00",0.00,N/A,N/A
Commissioning - Schools Block,Recoupment - Independent Special School Fees,Schools Block,CYGNET NW LTD,812451,10/12/2019,3327258,"1,057.00",0.00,N/A,N/A
Commissioning - Schools Block,Recoupment - Independent Special School Fees,Schools Block,CYGNET NW LTD,812451,10/12/2019,3327261,"2,265.00",0.00,N/A,N/A
"Information, Computing & Technology","Information, Computing & Technology",Digital Services,DAISY COMMUNICATIONS LTD,86429,10/12/2019,3367484,"10,050.53",0.00,Organisation & Governance,Information Technology Broadcasting and
Leisure,Leisure,"Leisure, Culture and Tourism",DARLEY PARK TEA ROOMS,170469,10/12/2019,3368570,"3,000.00",0.00,Communities & Place,Industrial Cleaning Services
Traffic & Transportation,Traffic & Transportation (inc Integrated Pass Transport),"Strategic Partnerships, Planning & Streetpride",DATABAC GROUP LTD,1027,10/12/2019,3369414,698.50,0.00,Communities & Place,Information Technology Broadcasting and
Learning & Inclusion,Inclusion & Intervention,Non-Schools,DEDA LTD,155430,10/12/2019,3367383,550.00,0.00,People Services - Children & Young People,Travel and Food and Lodging and Entertai
Commissioning,School Organisation & Provision,Non-Schools,DERBY CITY BSF LIMITED,127009,10/12/2019,3365695,"8,473.75",0.00,N/A,N/A
Commissioning,School Organisation & Provision,Non-Schools,DERBY CITY BSF LIMITED,127009,10/12/2019,3365695,919.58,0.00,N/A,N/A
Commissioning,School Organisation & Provision,Non-Schools,DERBY CITY BSF LIMITED,127009,10/12/2019,3365695,"7,367.33",0.00,N/A,N/A
Commissioning,School Organisation & Provision,Non-Schools,DERBY CITY BSF LIMITED,127009,10/12/2019,3365695,"1,655.00",0.00,N/A,N/A
Commissioning,School Organisation & Provision,Non-Schools,DERBY CITY BSF LIMITED,127009,10/12/2019,3365695,"444,200.02",0.00,N/A,N/A
Commissioning,School Organisation & Provision,Non-Schools,DERBY CITY BSF LIMITED,127009,10/12/2019,3365695,"4,919.39",0.00,N/A,N/A
Commissioning,School Organisation & Provision,Non-Schools,DERBY CITY BSF LIMITED,127009,10/12/2019,3365695,"21,457.68",0.00,N/A,N/A
Commissioning,School Organisation & Provision,Non-Schools,DERBY CITY BSF LIMITED,127009,10/12/2019,3365695,"1,345.74",0.00,N/A,N/A
Traffic & Transportation,Traffic & Transportation (inc Integrated Pass Transport),"Strategic Partnerships, Planning & Streetpride",DERBY CITY CARS LTD,583454,10/12/2019,3366035,"1,016.00",0.00,N/A,N/A
Community Safety and Integration,Partnerships,"Communities, Environment & Regulatory Services",DERBY CITY MISSION LIMITED,8372,10/12/2019,3365694,"19,000.00",0.00,Communities & Place,Organizations and Clubs
Traffic & Transportation,Traffic & Transportation (inc Integrated Pass Transport),"Strategic Partnerships, Planning & Streetpride",DERBY COMMUNITY TRANSPORT,113043,10/12/2019,3365956,"3,461.61",0.00,N/A,N/A
Traffic & Transportation,Traffic & Transportation (inc Integrated Pass Transport),"Strategic Partnerships, Planning & Streetpride",DERBY COMMUNITY TRANSPORT,113043,10/12/2019,3365957,"3,711.08",0.00,N/A,N/A
Traffic & Transportation,Traffic & Transportation (inc Integrated Pass Transport),"Strategic Partnerships, Planning & Streetpride",DERBY COMMUNITY TRANSPORT,113043,10/12/2019,3366005,"3,754.02",0.00,N/A,N/A
Traffic & Transportation,Traffic & Transportation (inc Integrated Pass Transport),"Strategic Partnerships, Planning & Streetpride",DERBY COMMUNITY TRANSPORT,113043,10/12/2019,3366006,"3,711.08",0.00,N/A,N/A
Community Safety and Integration,Partnerships,"Communities, Environment & Regulatory Services",DERBY HOMES LTD,55209,10/12/2019,3363666,"10,000.00",0.00,N/A,N/A
Culture & Business Development,Culture & Business Development,"Leisure, Culture and Tourism",DERBY POETRY FESTIVAL CIC,724450,10/12/2019,3364552,"1,000.00",0.00,N/A,N/A
"Occupational Health, Safety, Markets & Bereavement Services",Markets,"Communities, Environment & Regulatory Services",DERBY QUAD LTD,7833,10/12/2019,3364503,929.02,0.00,Communities & Place,Travel and Food and Lodging and Entertai
"Occupational Health, Safety, Markets & Bereavement Services",Markets,"Communities, Environment & Regulatory Services",DERBY QUAD LTD,7833,10/12/2019,3364503,"2,000.00",0.00,Communities & Place,Travel and Food and Lodging and Entertai
Integrated Services,Integrated Disabled Children's Service,Non-Schools,DERBY TEACHING HOSPITALS NHS FOUNDATION TRUST,1177,10/12/2019,3359417,"2,000.00",0.00,People Services - Children & Young People,Education and Training Services
Learning Disability Support,Community Support - Learning Disability Support,Community Support,DERBYSHIRE CARE SERVICES,388459,10/12/2019,3366098,"1,028.36",0.00,N/A,N/A
Learning Disability Support,Community Support - Learning Disability Support,Community Support,DERBYSHIRE CARE SERVICES,388459,10/12/2019,3366418,775.76,0.00,N/A,N/A
Learning Disability Support,Community Support - Learning Disability Support,Community Support,DERBYSHIRE CARE SERVICES,388459,10/12/2019,3366747,930.57,0.00,N/A,N/A
Mental Health Support,Community Support - Mental Health Support,Community Support,DERBYSHIRE CARE SERVICES,388459,10/12/2019,3367292,515.11,0.00,N/A,N/A
Mental Health Support,Community Support - Mental Health Support,Community Support,DERBYSHIRE CARE SERVICES,388459,10/12/2019,3366757,574.74,0.00,N/A,N/A
Mental Health Support,Community Support - Mental Health Support,Community Support,DERBYSHIRE CARE SERVICES,388459,10/12/2019,3366758,610.62,0.00,N/A,N/A
Mental Health Support,Community Support - Mental Health Support,Community Support,DERBYSHIRE CARE SERVICES,388459,10/12/2019,3366759,"1,031.67",0.00,N/A,N/A
Physical Support,Community Support - Physical Support,Community Support,DERBYSHIRE CARE SERVICES,388459,10/12/2019,3367228,"1,012.60",0.00,N/A,N/A
Physical Support,Community Support - Physical Support,Community Support,DERBYSHIRE CARE SERVICES,388459,10/12/2019,3367235,859.16,0.00,N/A,N/A
Physical Support,Community Support - Physical Support,Community Support,DERBYSHIRE CARE SERVICES,388459,10/12/2019,3367236,851.03,0.00,N/A,N/A
Physical Support,Community Support - Physical Support,Community Support,DERBYSHIRE CARE SERVICES,388459,10/12/2019,3367246,684.92,0.00,N/A,N/A
Physical Support,Community Support - Physical Support,Community Support,DERBYSHIRE CARE SERVICES,388459,10/12/2019,3367248,722.88,0.00,N/A,N/A
Physical Support,Community Support - Physical Support,Community Support,DERBYSHIRE CARE SERVICES,388459,10/12/2019,3367256,703.44,0.00,N/A,N/A
Physical Support,Community Support - Physical Support,Community Support,DERBYSHIRE CARE SERVICES,388459,10/12/2019,3367257,915.50,0.00,N/A,N/A
Physical Support,Community Support - Physical Support,Community Support,DERBYSHIRE CARE SERVICES,388459,10/12/2019,3367261,545.43,0.00,N/A,N/A
Physical Support,Community Support - Physical Support,Community Support,DERBYSHIRE CARE SERVICES,388459,10/12/2019,3367264,"1,042.29",0.00,N/A,N/A
Physical Support,Community Support - Physical Support,Community Support,DERBYSHIRE CARE SERVICES,388459,10/12/2019,3367271,833.32,0.00,N/A,N/A
Physical Support,Community Support - Physical Support,Community Support,DERBYSHIRE CARE SERVICES,388459,10/12/2019,3367272,974.38,0.00,N/A,N/A
Physical Support,Community Support - Physical Support,Community Support,DERBYSHIRE CARE SERVICES,388459,10/12/2019,3367274,817.79,0.00,N/A,N/A
Physical Support,Community Support - Physical Support,Community Support,DERBYSHIRE CARE SERVICES,388459,10/12/2019,3367282,607.60,0.00,N/A,N/A
Physical Support,Community Support - Physical Support,Community Support,DERBYSHIRE CARE SERVICES,388459,10/12/2019,3367288,"1,064.37",0.00,N/A,N/A
Physical Support,Community Support - Physical Support,Community Support,DERBYSHIRE CARE SERVICES,388459,10/12/2019,3367290,"1,012.60",0.00,N/A,N/A
Physical Support,Community Support - Physical Support,Community Support,DERBYSHIRE CARE SERVICES,388459,10/12/2019,3367297,854.16,0.00,N/A,N/A
Physical Support,Community Support - Physical Support,Community Support,DERBYSHIRE CARE SERVICES,388459,10/12/2019,3367298,749.92,0.00,N/A,N/A
Physical Support,Community Support - Physical Support,Community Support,DERBYSHIRE CARE SERVICES,388459,10/12/2019,3367299,856.60,0.00,N/A,N/A
Physical Support,Community Support - Physical Support,Community Support,DERBYSHIRE CARE SERVICES,388459,10/12/2019,3367300,856.60,0.00,N/A,N/A
Physical Support,Community Support - Physical Support,Community Support,DERBYSHIRE CARE SERVICES,388459,10/12/2019,3367301,868.76,0.00,N/A,N/A
Physical Support,Community Support - Physical Support,Community Support,DERBYSHIRE CARE SERVICES,388459,10/12/2019,3366110,539.96,0.00,N/A,N/A
Physical Support,Community Support - Physical Support,Community Support,DERBYSHIRE CARE SERVICES,388459,10/12/2019,3366115,"1,028.36",0.00,N/A,N/A
Physical Support,Community Support - Physical Support,Community Support,DERBYSHIRE CARE SERVICES,388459,10/12/2019,3366121,539.96,0.00,N/A,N/A
Physical Support,Community Support - Physical Support,Community Support,DERBYSHIRE CARE SERVICES,388459,10/12/2019,3366173,563.28,0.00,N/A,N/A
Physical Support,Community Support - Physical Support,Community Support,DERBYSHIRE CARE SERVICES,388459,10/12/2019,3366174,771.88,0.00,N/A,N/A
Physical Support,Community Support - Physical Support,Community Support,DERBYSHIRE CARE SERVICES,388459,10/12/2019,3366083,539.96,0.00,N/A,N/A
Physical Support,Community Support - Physical Support,Community Support,DERBYSHIRE CARE SERVICES,388459,10/12/2019,3366137,"1,008.92",0.00,N/A,N/A
Physical Support,Community Support - Physical Support,Community Support,DERBYSHIRE CARE SERVICES,388459,10/12/2019,3366138,"1,008.92",0.00,N/A,N/A
Physical Support,Community Support - Physical Support,Community Support,DERBYSHIRE CARE SERVICES,388459,10/12/2019,3366139,"1,032.24",0.00,N/A,N/A
Physical Support,Community Support - Physical Support,Community Support,DERBYSHIRE CARE SERVICES,388459,10/12/2019,3366140,"1,147.40",0.00,N/A,N/A
Physical Support,Community Support - Physical Support,Community Support,DERBYSHIRE CARE SERVICES,388459,10/12/2019,3366183,"1,103.24",0.00,N/A,N/A
Physical Support,Community Support - Physical Support,Community Support,DERBYSHIRE CARE SERVICES,388459,10/12/2019,3366184,"1,168.44",0.00,N/A,N/A
Physical Support,Community Support - Physical Support,Community Support,DERBYSHIRE CARE SERVICES,388459,10/12/2019,3366129,858.04,0.00,N/A,N/A
Physical Support,Community Support - Physical Support,Community Support,DERBYSHIRE CARE SERVICES,388459,10/12/2019,3366130,920.28,0.00,N/A,N/A
Physical Support,Community Support - Physical Support,Community Support,DERBYSHIRE CARE SERVICES,388459,10/12/2019,3366084,762.28,0.00,N/A,N/A
Physical Support,Community Support - Physical Support,Community Support,DERBYSHIRE CARE SERVICES,388459,10/12/2019,3366085,797.76,0.00,N/A,N/A
Physical Support,Community Support - Physical Support,Community Support,DERBYSHIRE CARE SERVICES,388459,10/12/2019,3366086,"1,021.33",0.00,N/A,N/A
Physical Support,Community Support - Physical Support,Community Support,DERBYSHIRE CARE SERVICES,388459,10/12/2019,3366094,"1,032.24",0.00,N/A,N/A
Physical Support,Community Support - Physical Support,Community Support,DERBYSHIRE CARE SERVICES,388459,10/12/2019,3366095,"1,726.06",0.00,N/A,N/A
Physical Support,Community Support - Physical Support,Community Support,DERBYSHIRE CARE SERVICES,388459,10/12/2019,3366096,"1,103.24",0.00,N/A,N/A
Physical Support,Community Support - Physical Support,Community Support,DERBYSHIRE CARE SERVICES,388459,10/12/2019,3366312,515.58,0.00,N/A,N/A
Physical Support,Community Support - Physical Support,Community Support,DERBYSHIRE CARE SERVICES,388459,10/12/2019,3366313,553.68,0.00,N/A,N/A
Physical Support,Community Support - Physical Support,Community Support,DERBYSHIRE CARE SERVICES,388459,10/12/2019,3366314,859.16,0.00,N/A,N/A
Physical Support,Community Support - Physical Support,Community Support,DERBYSHIRE CARE SERVICES,388459,10/12/2019,3366322,"1,726.06",0.00,N/A,N/A
Physical Support,Community Support - Physical Support,Community Support,DERBYSHIRE CARE SERVICES,388459,10/12/2019,3366549,532.60,0.00,N/A,N/A
Physical Support,Community Support - Physical Support,Community Support,DERBYSHIRE CARE SERVICES,388459,10/12/2019,3366550,757.28,0.00,N/A,N/A
Physical Support,Community Support - Physical Support,Community Support,DERBYSHIRE CARE SERVICES,388459,10/12/2019,3366366,868.76,0.00,N/A,N/A
Physical Support,Community Support - Physical Support,Community Support,DERBYSHIRE CARE SERVICES,388459,10/12/2019,3366367,870.40,0.00,N/A,N/A
Physical Support,Community Support - Physical Support,Community Support,DERBYSHIRE CARE SERVICES,388459,10/12/2019,3366215,"1,103.24",0.00,N/A,N/A
Physical Support,Community Support - Physical Support,Community Support,DERBYSHIRE CARE SERVICES,388459,10/12/2019,3366218,657.28,0.00,N/A,N/A
Physical Support,Community Support - Physical Support,Community Support,DERBYSHIRE CARE SERVICES,388459,10/12/2019,3366368,966.75,0.00,N/A,N/A
Physical Support,Community Support - Physical Support,Community Support,DERBYSHIRE CARE SERVICES,388459,10/12/2019,3366372,724.25,0.00,N/A,N/A
Physical Support,Community Support - Physical Support,Community Support,DERBYSHIRE CARE SERVICES,388459,10/12/2019,3366224,935.24,0.00,N/A,N/A
Physical Support,Community Support - Physical Support,Community Support,DERBYSHIRE CARE SERVICES,388459,10/12/2019,3366231,757.28,0.00,N/A,N/A
Physical Support,Community Support - Physical Support,Community Support,DERBYSHIRE CARE SERVICES,388459,10/12/2019,3366239,539.96,0.00,N/A,N/A
Physical Support,Community Support - Physical Support,Community Support,DERBYSHIRE CARE SERVICES,388459,10/12/2019,3366240,571.71,0.00,N/A,N/A
Physical Support,Community Support - Physical Support,Community Support,DERBYSHIRE CARE SERVICES,388459,10/12/2019,3366381,628.56,0.00,N/A,N/A
Physical Support,Community Support - Physical Support,Community Support,DERBYSHIRE CARE SERVICES,388459,10/12/2019,3366387,756.08,0.00,N/A,N/A
Physical Support,Community Support - Physical Support,Community Support,DERBYSHIRE CARE SERVICES,388459,10/12/2019,3366388,764.43,0.00,N/A,N/A
Physical Support,Community Support - Physical Support,Community Support,DERBYSHIRE CARE SERVICES,388459,10/12/2019,3366254,713.28,0.00,N/A,N/A
Physical Support,Community Support - Physical Support,Community Support,DERBYSHIRE CARE SERVICES,388459,10/12/2019,3366389,931.48,0.00,N/A,N/A
Physical Support,Community Support - Physical Support,Community Support,DERBYSHIRE CARE SERVICES,388459,10/12/2019,3366395,"1,008.92",0.00,N/A,N/A
Physical Support,Community Support - Physical Support,Community Support,DERBYSHIRE CARE SERVICES,388459,10/12/2019,3366396,"1,008.92",0.00,N/A,N/A
Physical Support,Community Support - Physical Support,Community Support,DERBYSHIRE CARE SERVICES,388459,10/12/2019,3366397,"1,175.76",0.00,N/A,N/A
Physical Support,Community Support - Physical Support,Community Support,DERBYSHIRE CARE SERVICES,388459,10/12/2019,3366264,"1,175.76",0.00,N/A,N/A
Physical Support,Community Support - Physical Support,Community Support,DERBYSHIRE CARE SERVICES,388459,10/12/2019,3366263,"1,147.40",0.00,N/A,N/A
Physical Support,Community Support - Physical Support,Community Support,DERBYSHIRE CARE SERVICES,388459,10/12/2019,3366409,687.16,0.00,N/A,N/A
Physical Support,Community Support - Physical Support,Community Support,DERBYSHIRE CARE SERVICES,388459,10/12/2019,3366410,897.20,0.00,N/A,N/A
Physical Support,Community Support - Physical Support,Community Support,DERBYSHIRE CARE SERVICES,388459,10/12/2019,3366411,"1,032.24",0.00,N/A,N/A
Physical Support,Community Support - Physical Support,Community Support,DERBYSHIRE CARE SERVICES,388459,10/12/2019,3366416,"1,080.21",0.00,N/A,N/A
Physical Support,Community Support - Physical Support,Community Support,DERBYSHIRE CARE SERVICES,388459,10/12/2019,3366417,"1,103.24",0.00,N/A,N/A
Physical Support,Community Support - Physical Support,Community Support,DERBYSHIRE CARE SERVICES,388459,10/12/2019,3366473,868.76,0.00,N/A,N/A
Physical Support,Community Support - Physical Support,Community Support,DERBYSHIRE CARE SERVICES,388459,10/12/2019,3366480,630.20,0.00,N/A,N/A
Physical Support,Community Support - Physical Support,Community Support,DERBYSHIRE CARE SERVICES,388459,10/12/2019,3366481,659.20,0.00,N/A,N/A
Physical Support,Community Support - Physical Support,Community Support,DERBYSHIRE CARE SERVICES,388459,10/12/2019,3366490,538.68,0.00,N/A,N/A
Physical Support,Community Support - Physical Support,Community Support,DERBYSHIRE CARE SERVICES,388459,10/12/2019,3366491,539.96,0.00,N/A,N/A
Physical Support,Community Support - Physical Support,Community Support,DERBYSHIRE CARE SERVICES,388459,10/12/2019,3366499,762.28,0.00,N/A,N/A
Physical Support,Community Support - Physical Support,Community Support,DERBYSHIRE CARE SERVICES,388459,10/12/2019,3366500,918.04,0.00,N/A,N/A
Physical Support,Community Support - Physical Support,Community Support,DERBYSHIRE CARE SERVICES,388459,10/12/2019,3366501,953.48,0.00,N/A,N/A
Physical Support,Community Support - Physical Support,Community Support,DERBYSHIRE CARE SERVICES,388459,10/12/2019,3366506,"1,008.92",0.00,N/A,N/A
Physical Support,Community Support - Physical Support,Community Support,DERBYSHIRE CARE SERVICES,388459,10/12/2019,3366507,"1,112.30",0.00,N/A,N/A
Physical Support,Community Support - Physical Support,Community Support,DERBYSHIRE CARE SERVICES,388459,10/12/2019,3366508,"1,258.04",0.00,N/A,N/A
Physical Support,Community Support - Physical Support,Community Support,DERBYSHIRE CARE SERVICES,388459,10/12/2019,3366461,651.84,0.00,N/A,N/A
Physical Support,Community Support - Physical Support,Community Support,DERBYSHIRE CARE SERVICES,388459,10/12/2019,3366464,532.60,0.00,N/A,N/A
Physical Support,Community Support - Physical Support,Community Support,DERBYSHIRE CARE SERVICES,388459,10/12/2019,3367042,714.04,0.00,N/A,N/A
Physical Support,Community Support - Physical Support,Community Support,DERBYSHIRE CARE SERVICES,388459,10/12/2019,3366698,659.20,0.00,N/A,N/A
Physical Support,Community Support - Physical Support,Community Support,DERBYSHIRE CARE SERVICES,388459,10/12/2019,3366869,534.52,0.00,N/A,N/A
Physical Support,Community Support - Physical Support,Community Support,DERBYSHIRE CARE SERVICES,388459,10/12/2019,3366870,713.28,0.00,N/A,N/A
Physical Support,Community Support - Physical Support,Community Support,DERBYSHIRE CARE SERVICES,388459,10/12/2019,3366871,718.08,0.00,N/A,N/A
Physical Support,Community Support - Physical Support,Community Support,DERBYSHIRE CARE SERVICES,388459,10/12/2019,3366880,"1,168.44",0.00,N/A,N/A
Physical Support,Community Support - Physical Support,Community Support,DERBYSHIRE CARE SERVICES,388459,10/12/2019,3366558,"1,032.24",0.00,N/A,N/A
Physical Support,Community Support - Physical Support,Community Support,DERBYSHIRE CARE SERVICES,388459,10/12/2019,3366738,762.28,0.00,N/A,N/A
Physical Support,Community Support - Physical Support,Community Support,DERBYSHIRE CARE SERVICES,388459,10/12/2019,3366922,703.44,0.00,N/A,N/A
Physical Support,Community Support - Physical Support,Community Support,DERBYSHIRE CARE SERVICES,388459,10/12/2019,3366746,"1,103.24",0.00,N/A,N/A
Physical Support,Community Support - Physical Support,Community Support,DERBYSHIRE CARE SERVICES,388459,10/12/2019,3366584,703.44,0.00,N/A,N/A
Physical Support,Community Support - Physical Support,Community Support,DERBYSHIRE CARE SERVICES,388459,10/12/2019,3366589,958.72,0.00,N/A,N/A
Physical Support,Community Support - Physical Support,Community Support,DERBYSHIRE CARE SERVICES,388459,10/12/2019,3366939,"1,456.52",0.00,N/A,N/A
Physical Support,Community Support - Physical Support,Community Support,DERBYSHIRE CARE SERVICES,388459,10/12/2019,3366593,"1,103.24",0.00,N/A,N/A
Physical Support,Community Support - Physical Support,Community Support,DERBYSHIRE CARE SERVICES,388459,10/12/2019,3366600,548.10,0.00,N/A,N/A
Physical Support,Community Support - Physical Support,Community Support,DERBYSHIRE CARE SERVICES,388459,10/12/2019,3366954,631.28,0.00,N/A,N/A
Physical Support,Community Support - Physical Support,Community Support,DERBYSHIRE CARE SERVICES,388459,10/12/2019,3366955,648.64,0.00,N/A,N/A
Physical Support,Community Support - Physical Support,Community Support,DERBYSHIRE CARE SERVICES,388459,10/12/2019,3366956,655.74,0.00,N/A,N/A
Physical Support,Community Support - Physical Support,Community Support,DERBYSHIRE CARE SERVICES,388459,10/12/2019,3366957,713.28,0.00,N/A,N/A
Physical Support,Community Support - Physical Support,Community Support,DERBYSHIRE CARE SERVICES,388459,10/12/2019,3366958,863.04,0.00,N/A,N/A
Physical Support,Community Support - Physical Support,Community Support,DERBYSHIRE CARE SERVICES,388459,10/12/2019,3366959,863.04,0.00,N/A,N/A
Physical Support,Community Support - Physical Support,Community Support,DERBYSHIRE CARE SERVICES,388459,10/12/2019,3366960,912.88,0.00,N/A,N/A
Physical Support,Community Support - Physical Support,Community Support,DERBYSHIRE CARE SERVICES,388459,10/12/2019,3366961,990.36,0.00,N/A,N/A
Physical Support,Community Support - Physical Support,Community Support,DERBYSHIRE CARE SERVICES,388459,10/12/2019,3366608,754.96,0.00,N/A,N/A
Physical Support,Community Support - Physical Support,Community Support,DERBYSHIRE CARE SERVICES,388459,10/12/2019,3366609,918.04,0.00,N/A,N/A
Physical Support,Community Support - Physical Support,Community Support,DERBYSHIRE CARE SERVICES,388459,10/12/2019,3366610,998.01,0.00,N/A,N/A
Physical Support,Community Support - Physical Support,Community Support,DERBYSHIRE CARE SERVICES,388459,10/12/2019,3366973,"1,032.24",0.00,N/A,N/A
Physical Support,Community Support - Physical Support,Community Support,DERBYSHIRE CARE SERVICES,388459,10/12/2019,3366974,"1,103.24",0.00,N/A,N/A
Physical Support,Community Support - Physical Support,Community Support,DERBYSHIRE CARE SERVICES,388459,10/12/2019,3366621,"1,032.24",0.00,N/A,N/A
Physical Support,Community Support - Physical Support,Community Support,DERBYSHIRE CARE SERVICES,388459,10/12/2019,3366780,546.23,0.00,N/A,N/A
Physical Support,Community Support - Physical Support,Community Support,DERBYSHIRE CARE SERVICES,388459,10/12/2019,3366781,657.28,0.00,N/A,N/A
Physical Support,Community Support - Physical Support,Community Support,DERBYSHIRE CARE SERVICES,388459,10/12/2019,3366782,797.76,0.00,N/A,N/A
Physical Support,Community Support - Physical Support,Community Support,DERBYSHIRE CARE SERVICES,388459,10/12/2019,3366789,797.76,0.00,N/A,N/A
Physical Support,Community Support - Physical Support,Community Support,DERBYSHIRE CARE SERVICES,388459,10/12/2019,3366790,966.75,0.00,N/A,N/A
Physical Support,Community Support - Physical Support,Community Support,DERBYSHIRE CARE SERVICES,388459,10/12/2019,3366792,539.96,0.00,N/A,N/A
Physical Support,Community Support - Physical Support,Community Support,DERBYSHIRE CARE SERVICES,388459,10/12/2019,3366797,777.00,0.00,N/A,N/A
Physical Support,Community Support - Physical Support,Community Support,DERBYSHIRE CARE SERVICES,388459,10/12/2019,3366798,797.76,0.00,N/A,N/A
Physical Support,Community Support - Physical Support,Community Support,DERBYSHIRE CARE SERVICES,388459,10/12/2019,3366799,951.36,0.00,N/A,N/A
Physical Support,Community Support - Physical Support,Community Support,DERBYSHIRE CARE SERVICES,388459,10/12/2019,3366805,518.76,0.00,N/A,N/A
Physical Support,Community Support - Physical Support,Community Support,DERBYSHIRE CARE SERVICES,388459,10/12/2019,3366806,539.96,0.00,N/A,N/A
Physical Support,Community Support - Physical Support,Community Support,DERBYSHIRE CARE SERVICES,388459,10/12/2019,3366807,539.96,0.00,N/A,N/A
Physical Support,Community Support - Physical Support,Community Support,DERBYSHIRE CARE SERVICES,388459,10/12/2019,3366651,526.80,0.00,N/A,N/A
Physical Support,Community Support - Physical Support,Community Support,DERBYSHIRE CARE SERVICES,388459,10/12/2019,3366652,777.00,0.00,N/A,N/A
Physical Support,Community Support - Physical Support,Community Support,DERBYSHIRE CARE SERVICES,388459,10/12/2019,3366815,876.64,0.00,N/A,N/A
Physical Support,Community Support - Physical Support,Community Support,DERBYSHIRE CARE SERVICES,388459,10/12/2019,3366816,953.48,0.00,N/A,N/A
Physical Support,Community Support - Physical Support,Community Support,DERBYSHIRE CARE SERVICES,388459,10/12/2019,3366817,978.65,0.00,N/A,N/A
Physical Support,Community Support - Physical Support,Community Support,DERBYSHIRE CARE SERVICES,388459,10/12/2019,3366818,"1,008.92",0.00,N/A,N/A
Physical Support,Community Support - Physical Support,Community Support,DERBYSHIRE CARE SERVICES,388459,10/12/2019,3366823,"1,084.84",0.00,N/A,N/A
Physical Support,Community Support - Physical Support,Community Support,DERBYSHIRE CARE SERVICES,388459,10/12/2019,3367041,539.96,0.00,N/A,N/A
Physical Support,Community Support - Physical Support,Community Support,DERBYSHIRE CARE SERVICES,388459,10/12/2019,3367083,696.08,0.00,N/A,N/A
Physical Support,Community Support - Physical Support,Community Support,DERBYSHIRE CARE SERVICES,388459,10/12/2019,3367084,754.96,0.00,N/A,N/A
Physical Support,Community Support - Physical Support,Community Support,DERBYSHIRE CARE SERVICES,388459,10/12/2019,3367085,762.28,0.00,N/A,N/A
Physical Support,Community Support - Physical Support,Community Support,DERBYSHIRE CARE SERVICES,388459,10/12/2019,3367086,978.65,0.00,N/A,N/A
Physical Support,Community Support - Physical Support,Community Support,DERBYSHIRE CARE SERVICES,388459,10/12/2019,3367095,"1,103.24",0.00,N/A,N/A
Sensory Support,Community Support - Sensory Support,Community Support,DERBYSHIRE CARE SERVICES,388459,10/12/2019,3367229,959.68,0.00,N/A,N/A
Sensory Support,Community Support - Sensory Support,Community Support,DERBYSHIRE CARE SERVICES,388459,10/12/2019,3366185,"1,134.32",0.00,N/A,N/A
Sensory Support,Community Support - Sensory Support,Community Support,DERBYSHIRE CARE SERVICES,388459,10/12/2019,3366559,703.44,0.00,N/A,N/A
Support with Memory and Cognition,Community Support - Support with Memory and Cognition,Community Support,DERBYSHIRE CARE SERVICES,388459,10/12/2019,3367273,602.68,0.00,N/A,N/A
Support with Memory and Cognition,Community Support - Support with Memory and Cognition,Community Support,DERBYSHIRE CARE SERVICES,388459,10/12/2019,3367291,941.36,0.00,N/A,N/A
Support with Memory and Cognition,Community Support - Support with Memory and Cognition,Community Support,DERBYSHIRE CARE SERVICES,388459,10/12/2019,3366894,"1,023.64",0.00,N/A,N/A
Support with Memory and Cognition,Community Support - Support with Memory and Cognition,Community Support,DERBYSHIRE CARE SERVICES,388459,10/12/2019,3366895,"1,199.16",0.00,N/A,N/A
Support with Memory and Cognition,Community Support - Support with Memory and Cognition,Community Support,DERBYSHIRE CARE SERVICES,388459,10/12/2019,3367011,"1,125.40",0.00,N/A,N/A
Integrated Commissioning,Integrated Commissioning,Commissioning,DERBYSHIRE CARE SERVICES,1207,10/12/2019,3365685,"4,308.72",0.00,N/A,N/A
Integrated Commissioning,Integrated Commissioning,Commissioning,DERBYSHIRE CARE SERVICES,1207,10/12/2019,3365687,"2,099.12",0.00,N/A,N/A
Integrated Commissioning,Integrated Commissioning,Commissioning,DERBYSHIRE CARE SERVICES,1207,10/12/2019,3365688,"3,025.60",0.00,N/A,N/A
Mental Health Support,Mental Health - Mental Health Support,Mental Health,DERBYSHIRE CARE SERVICES,388459,10/12/2019,3366191,602.68,0.00,N/A,N/A
Mental Health Support,Mental Health - Mental Health Support,Mental Health,DERBYSHIRE CARE SERVICES,388459,10/12/2019,3366192,900.80,0.00,N/A,N/A
Mental Health Support,Mental Health - Mental Health Support,Mental Health,DERBYSHIRE CARE SERVICES,388459,10/12/2019,3366328,719.12,0.00,N/A,N/A
Mental Health Support,Mental Health - Mental Health Support,Mental Health,DERBYSHIRE CARE SERVICES,388459,10/12/2019,3366891,883.20,0.00,N/A,N/A
Mental Health Support,Mental Health - Mental Health Support,Mental Health,DERBYSHIRE CARE SERVICES,388459,10/12/2019,3366662,729.14,0.00,N/A,N/A
Mental Health Support,Mental Health - Mental Health Support,Mental Health,DERBYSHIRE CARE SERVICES,388459,10/12/2019,3366671,598.84,0.00,N/A,N/A
Mental Health Support,Mental Health - Mental Health Support,Mental Health,DERBYSHIRE CARE SERVICES,388459,10/12/2019,3366672,602.68,0.00,N/A,N/A
Mental Health Support,Mental Health - Mental Health Support,Mental Health,DERBYSHIRE CARE SERVICES,388459,10/12/2019,3366896,807.60,0.00,N/A,N/A
Mental Health Support,Mental Health - Mental Health Support,Mental Health,DERBYSHIRE CARE SERVICES,388459,10/12/2019,3366568,703.44,0.00,N/A,N/A
Public Health,Sexual Health,Public Health,DERBYSHIRE COMMUNITY HEALTH SERVICES NHS TRUST,109973,10/12/2019,3364512,"5,142.53",0.00,People Services - Adults and Health,Education and Training Services
Corporate,Corporate Resources Other,Corporate,DERBYSHIRE COUNTY COUNCIL,1042479,10/12/2019,3357664,"149,014.80",0.00,N/A,N/A
Corporate,Corporate Resources Other,Corporate,DERBYSHIRE COUNTY COUNCIL,1042478,10/12/2019,3357669,"108,312.56",0.00,N/A,N/A
Corporate,Corporate Resources Other,Corporate,DERBYSHIRE COUNTY COUNCIL,1042478,10/12/2019,3326198,"1,140.00",0.00,N/A,N/A
Commissioning - Schools Block,Recoupment - Independent Special School Fees,Schools Block,DERBYSHIRE COUNTY COUNCIL,9786,10/12/2019,3365690,"3,288.00",0.00,People Services - Children & Young People,Politics and Civic Affairs Services
Refuse & Waste Management,Refuse Collection,"Strategic Partnerships, Planning & Streetpride",DERBYSHIRE COUNTY COUNCIL,1042478,10/12/2019,3326198,"1,140.00",0.00,N/A,N/A
Early Help & Children�s Safeguarding,Integrated and Safeguarding Services Locality 2,Non-Schools,DODDS SOLICITORS LLP,952477,10/12/2019,3364752,"1,728.20",0.00,N/A,N/A
Early Help & Children�s Safeguarding,Integrated and Safeguarding Services Locality 2,Non-Schools,DODDS SOLICITORS LLP,952477,10/12/2019,3364754,"1,273.75",0.00,N/A,N/A
Early Help & Children�s Safeguarding,Integrated and Safeguarding Services Locality 2,Non-Schools,DODDS SOLICITORS LLP,952477,10/12/2019,3364783,"1,931.87",0.00,N/A,N/A
Early Help & Children�s Safeguarding,Integrated and Safeguarding Services Locality 2,Non-Schools,DODDS SOLICITORS LLP,952477,10/12/2019,3364783,"1,917.00",0.00,N/A,N/A
Early Help & Children�s Safeguarding,Integrated and Safeguarding Services Locality 2,Non-Schools,DODDS SOLICITORS LLP,952477,10/12/2019,3364783,"1,931.87",0.00,N/A,N/A
Early Help & Children�s Safeguarding,Integrated and Safeguarding Services Locality 3/4,Non-Schools,EAST NORTHANTS CHILD CONTACT SERVICES CIC,1001478,10/12/2019,3365677,"1,350.00",0.00,N/A,N/A
Mental Health Support,Mental Health - Mental Health Support,Mental Health,ELLIE SUNRISE HEALTHCARE LTD,1021481,10/12/2019,3364720,"1,376.00",0.00,N/A,N/A
Facilities Management,Accommodation Buildings,Strategic Services and Organisational Development,EMS SECURITY SERVICES LTD,471442,10/12/2019,3364697,"2,094.82",0.00,Organisation & Governance,Defense and Law Enforcement and Security
"Occupational Health, Safety, Markets & Bereavement Services",Bereavement Services,"Communities, Environment & Regulatory Services",EMS SECURITY SERVICES LTD,471442,10/12/2019,3364546,718.32,0.00,Communities & Place,Defense and Law Enforcement and Security
"Occupational Health, Safety, Markets & Bereavement Services",Bereavement Services,"Communities, Environment & Regulatory Services",EMS SECURITY SERVICES LTD,471442,10/12/2019,3364547,509.34,0.00,Communities & Place,Defense and Law Enforcement and Security
Facilities Management,Cleaning & Caretaking,Strategic Services and Organisational Development,EMS SECURITY SERVICES LTD,471442,10/12/2019,3365710,642.52,0.00,Organisation & Governance,Defense and Law Enforcement and Security
Leisure,Leisure,"Leisure, Culture and Tourism",EMS SECURITY SERVICES LTD,471442,10/12/2019,3364529,865.20,0.00,Communities & Place,Defense and Law Enforcement and Security
Traffic & Transportation,Parking Services,"Strategic Partnerships, Planning & Streetpride",EMS SECURITY SERVICES LTD,471442,10/12/2019,3364558,"2,140.86",0.00,Communities & Place,Defense and Law Enforcement and Security
Retained Housing Revenue Account,Retained Housing Revenue Account,"Regeneration, Property & Housing",EMS SECURITY SERVICES LTD,471442,10/12/2019,3367443,"9,426.20",0.00,Communities & Place,Defense and Law Enforcement and Security
General,Stores Road Depot & Fleet Management,"Strategic Partnerships, Planning & Streetpride",EMS SECURITY SERVICES LTD,471442,10/12/2019,3364532,"4,694.37",0.00,Communities & Place,Defense and Law Enforcement and Security
General,Stores Road Depot & Fleet Management,"Strategic Partnerships, Planning & Streetpride",ENTERPRISE FLEX E RENT LTD,277434,10/12/2019,3365749,980.93,0.00,Communities & Place,Transportation and Storage and Mail Serv
General,Stores Road Depot & Fleet Management,"Strategic Partnerships, Planning & Streetpride",ENTERPRISE FLEX E RENT LTD,277434,10/12/2019,3365751,"1,316.16",0.00,Communities & Place,Transportation and Storage and Mail Serv
General,Stores Road Depot & Fleet Management,"Strategic Partnerships, Planning & Streetpride",ENTERPRISE FLEX E RENT LTD,277434,10/12/2019,3365750,678.12,0.00,Communities & Place,Transportation and Storage and Mail Serv
General,Stores Road Depot & Fleet Management,"Strategic Partnerships, Planning & Streetpride",ENTERPRISE FLEX E RENT LTD,277434,10/12/2019,3367489,"13,152.24",0.00,Communities & Place,Transportation and Storage and Mail Serv
General,Stores Road Depot & Fleet Management,"Strategic Partnerships, Planning & Streetpride",ENTERPRISE FLEX E RENT LTD,277434,10/12/2019,3367489,"2,102.76",0.00,Communities & Place,Transportation and Storage and Mail Serv
Non Delegated Schools Budget,Non Delegated School Expenditure,Schools Block,ESTEEM MULTI ACADEMY TRUST,1141471,10/12/2019,3364048,"244,425.76",0.00,N/A,N/A
Non Delegated Schools Budget,Non Delegated School Expenditure,Schools Block,ESTEEM MULTI ACADEMY TRUST,1141471,10/12/2019,3364048,"244,425.76",0.00,N/A,N/A
Property Design & Maintenance,Building - Repairs & Maintenance,"Regeneration, Property & Housing",FAITHFUL AND GOULD LIMITED,945490,10/12/2019,3367193,"8,249.31",0.00,N/A,N/A
Neighbourhoods,Capital,Capital,FAITHFUL AND GOULD LIMITED,945490,10/12/2019,3367165,"7,851.33",0.00,N/A,N/A
Neighbourhoods,Capital,Capital,FAITHFUL AND GOULD LIMITED,945490,10/12/2019,3367186,"6,466.10",0.00,N/A,N/A
Neighbourhoods,Capital,Capital,FAITHFUL AND GOULD LIMITED,945490,10/12/2019,3367187,"1,075.42",0.00,N/A,N/A
Neighbourhoods,Capital,Capital,FAITHFUL AND GOULD LIMITED,945490,10/12/2019,3367213,"5,720.95",0.00,N/A,N/A
Learning Disability Support,Community Support - Learning Disability Support,Community Support,FOSSE HEALTHCARE LTD,448402,10/12/2019,3366502,"1,022.84",0.00,N/A,N/A
Mental Health Support,Community Support - Mental Health Support,Community Support,FOSSE HEALTHCARE LTD,448402,10/12/2019,3366963,862.62,0.00,N/A,N/A
Physical Support,Community Support - Physical Support,Community Support,FOSSE HEALTHCARE LTD,448402,10/12/2019,3366113,649.48,0.00,N/A,N/A
Physical Support,Community Support - Physical Support,Community Support,FOSSE HEALTHCARE LTD,448402,10/12/2019,3366123,554.72,0.00,N/A,N/A
Physical Support,Community Support - Physical Support,Community Support,FOSSE HEALTHCARE LTD,448402,10/12/2019,3366124,660.14,0.00,N/A,N/A
Physical Support,Community Support - Physical Support,Community Support,FOSSE HEALTHCARE LTD,448402,10/12/2019,3366125,997.31,0.00,N/A,N/A
Physical Support,Community Support - Physical Support,Community Support,FOSSE HEALTHCARE LTD,448402,10/12/2019,3366126,"1,070.09",0.00,N/A,N/A
Physical Support,Community Support - Physical Support,Community Support,FOSSE HEALTHCARE LTD,448402,10/12/2019,3366236,502.28,0.00,N/A,N/A
Physical Support,Community Support - Physical Support,Community Support,FOSSE HEALTHCARE LTD,448402,10/12/2019,3366241,514.81,0.00,N/A,N/A
Physical Support,Community Support - Physical Support,Community Support,FOSSE HEALTHCARE LTD,448402,10/12/2019,3366242,753.92,0.00,N/A,N/A
Physical Support,Community Support - Physical Support,Community Support,FOSSE HEALTHCARE LTD,448402,10/12/2019,3366243,852.68,0.00,N/A,N/A
Physical Support,Community Support - Physical Support,Community Support,FOSSE HEALTHCARE LTD,448402,10/12/2019,3366244,977.21,0.00,N/A,N/A
Physical Support,Community Support - Physical Support,Community Support,FOSSE HEALTHCARE LTD,448402,10/12/2019,3366383,515.76,0.00,N/A,N/A
Physical Support,Community Support - Physical Support,Community Support,FOSSE HEALTHCARE LTD,448402,10/12/2019,3366384,905.20,0.00,N/A,N/A
Physical Support,Community Support - Physical Support,Community Support,FOSSE HEALTHCARE LTD,448402,10/12/2019,3366385,"1,043.05",0.00,N/A,N/A
Physical Support,Community Support - Physical Support,Community Support,FOSSE HEALTHCARE LTD,448402,10/12/2019,3366478,995.17,0.00,N/A,N/A
Physical Support,Community Support - Physical Support,Community Support,FOSSE HEALTHCARE LTD,448402,10/12/2019,3366479,656.84,0.00,N/A,N/A
Physical Support,Community Support - Physical Support,Community Support,FOSSE HEALTHCARE LTD,448402,10/12/2019,3366492,696.36,0.00,N/A,N/A
Physical Support,Community Support - Physical Support,Community Support,FOSSE HEALTHCARE LTD,448402,10/12/2019,3366493,827.41,0.00,N/A,N/A
Physical Support,Community Support - Physical Support,Community Support,FOSSE HEALTHCARE LTD,448402,10/12/2019,3366494,953.77,0.00,N/A,N/A
Physical Support,Community Support - Physical Support,Community Support,FOSSE HEALTHCARE LTD,448402,10/12/2019,3366495,"1,042.68",0.00,N/A,N/A
Physical Support,Community Support - Physical Support,Community Support,FOSSE HEALTHCARE LTD,448402,10/12/2019,3367044,511.39,0.00,N/A,N/A
Physical Support,Community Support - Physical Support,Community Support,FOSSE HEALTHCARE LTD,448402,10/12/2019,3367075,811.89,0.00,N/A,N/A
Physical Support,Community Support - Physical Support,Community Support,FOSSE HEALTHCARE LTD,448402,10/12/2019,3366717,542.38,0.00,N/A,N/A
Physical Support,Community Support - Physical Support,Community Support,FOSSE HEALTHCARE LTD,448402,10/12/2019,3366603,567.66,0.00,N/A,N/A
Physical Support,Community Support - Physical Support,Community Support,FOSSE HEALTHCARE LTD,448402,10/12/2019,3366604,"1,044.44",0.00,N/A,N/A
Physical Support,Community Support - Physical Support,Community Support,FOSSE HEALTHCARE LTD,448402,10/12/2019,3366949,530.50,0.00,N/A,N/A
Physical Support,Community Support - Physical Support,Community Support,FOSSE HEALTHCARE LTD,448402,10/12/2019,3366950,837.16,0.00,N/A,N/A
Physical Support,Community Support - Physical Support,Community Support,FOSSE HEALTHCARE LTD,448402,10/12/2019,3366951,904.95,0.00,N/A,N/A
Physical Support,Community Support - Physical Support,Community Support,FOSSE HEALTHCARE LTD,448402,10/12/2019,3366794,655.69,0.00,N/A,N/A
Physical Support,Community Support - Physical Support,Community Support,FOSSE HEALTHCARE LTD,448402,10/12/2019,3366795,769.04,0.00,N/A,N/A
Physical Support,Community Support - Physical Support,Community Support,FOSSE HEALTHCARE LTD,448402,10/12/2019,3366810,827.72,0.00,N/A,N/A
Physical Support,Community Support - Physical Support,Community Support,FOSSE HEALTHCARE LTD,448402,10/12/2019,3366811,"1,063.76",0.00,N/A,N/A
Physical Support,Community Support - Physical Support,Community Support,FOSSE HEALTHCARE LTD,448402,10/12/2019,3367076,931.48,0.00,N/A,N/A
Physical Support,Community Support - Physical Support,Community Support,FOSSE HEALTHCARE LTD,448402,10/12/2019,3367077,991.49,0.00,N/A,N/A
Support with Memory and Cognition,Community Support - Support with Memory and Cognition,Community Support,FOSSE HEALTHCARE LTD,448402,10/12/2019,3366391,684.72,0.00,N/A,N/A
Mental Health Support,Mental Health - Mental Health Support,Mental Health,FOSSE HEALTHCARE LTD,448402,10/12/2019,3366612,510.78,0.00,N/A,N/A
Mental Health Support,Mental Health - Mental Health Support,Mental Health,FOSSE HEALTHCARE LTD,448402,10/12/2019,3366820,528.06,0.00,N/A,N/A
Learning Disability Support,Transitions and Ordinary Lives - Learning Disability Support,Transitions and Ordinary Lives,FOSSE HEALTHCARE LTD,448402,10/12/2019,3366614,761.78,0.00,N/A,N/A
Learning Disability Support,Transitions and Ordinary Lives - Learning Disability Support,Transitions and Ordinary Lives,FOSSE HEALTHCARE LTD,448402,10/12/2019,3366821,737.11,0.00,N/A,N/A
Integrated Services,Agency Placements,Non-Schools,FOSTERING PEOPLE LTD,8384,10/12/2019,3362592,"3,034.96",0.00,People Services - Children & Young People,Politics and Civic Affairs Services
Integrated Services,Agency Placements,Non-Schools,FOSTERING PEOPLE LTD,8384,10/12/2019,3362595,"1,444.30",0.00,People Services - Children & Young People,Politics and Civic Affairs Services
Public Health,Drugs and Alcohol,Public Health,FRAMEWORK HOUSING ASSOCIATION,956473,10/12/2019,3367378,"6,500.00",0.00,N/A,N/A
Early Help & Children�s Safeguarding,Integrated and Safeguarding Services Locality 3/4,Non-Schools,FUTURE HORIZONS,1205481,10/12/2019,3367514,"3,428.70",0.00,N/A,N/A
Early Help & Children�s Safeguarding,Integrated and Safeguarding Services Locality 3/4,Non-Schools,FUTURE HORIZONS,1205481,10/12/2019,3367517,"3,542.99",0.00,N/A,N/A
Neighbourhoods,Capital,Capital,GF TOMLINSON BUILDING LTD,188552,10/12/2019,3367202,"14,650.41",0.00,N/A,N/A
Adults Health and Housing,Capital,Capital,GHC BUILDERS AND JOINERS LTD,105238,10/12/2019,3367502,"5,000.00",0.00,Disabled Facilities Grant 96 Act,Building and Construction and Maintenanc
Adults Health and Housing,Capital,Capital,GHC BUILDERS AND JOINERS LTD,105238,10/12/2019,3367508,"7,755.34",0.00,Disabled Facilities Grant 96 Act,Building and Construction and Maintenanc
Culture & Business Development,Culture & Business Development,"Leisure, Culture and Tourism",GLOBAL RADIO SERVICES LTD,12978,10/12/2019,3365697,501.76,0.00,Communities & Place,Editorial and Design and Graphic and Fin
"Occupational Health, Safety, Markets & Bereavement Services",Bereavement Services,"Communities, Environment & Regulatory Services",GRANART LTD,1720,10/12/2019,3365611,"1,520.00",0.00,Communities & Place,Politics and Civic Affairs Services
Learning Disability Support,Community Support - Learning Disability Support,Community Support,GREENWICH GARDENS EXTRA CAS DCS,537476,10/12/2019,3366075,"1,183.00",0.00,N/A,N/A
Learning Disability Support,Community Support - Learning Disability Support,Community Support,GREENWICH GARDENS EXTRA CAS DCS,537476,10/12/2019,3366403,675.64,0.00,N/A,N/A
Mental Health Support,Community Support - Mental Health Support,Community Support,GREENWICH GARDENS EXTRA CAS DCS,537476,10/12/2019,3366076,837.16,0.00,N/A,N/A
Mental Health Support,Community Support - Mental Health Support,Community Support,GREENWICH GARDENS EXTRA CAS DCS,537476,10/12/2019,3366077,"1,029.80",0.00,N/A,N/A
Physical Support,Community Support - Physical Support,Community Support,GREENWICH GARDENS EXTRA CAS DCS,537476,10/12/2019,3366163,"1,370.72",0.00,N/A,N/A
Physical Support,Community Support - Physical Support,Community Support,GREENWICH GARDENS EXTRA CAS DCS,537476,10/12/2019,3366165,"1,302.24",0.00,N/A,N/A
Physical Support,Community Support - Physical Support,Community Support,GREENWICH GARDENS EXTRA CAS DCS,537476,10/12/2019,3366300,709.38,0.00,N/A,N/A
Physical Support,Community Support - Physical Support,Community Support,GREENWICH GARDENS EXTRA CAS DCS,537476,10/12/2019,3366534,"1,429.40",0.00,N/A,N/A
Physical Support,Community Support - Physical Support,Community Support,GREENWICH GARDENS EXTRA CAS DCS,537476,10/12/2019,3366535,"1,302.24",0.00,N/A,N/A
Physical Support,Community Support - Physical Support,Community Support,GREENWICH GARDENS EXTRA CAS DCS,537476,10/12/2019,3366855,"1,008.92",0.00,N/A,N/A
